Workbook

Sheet Index
A1: Number | B1: Magazine Reference | C1: Title | D1: Spreadsheet | E1: File Name | F1: Method | G1: MAXIMUM | H1: MINIMUM | I1: DIFFERENCE | J1: AVERAGE | K1: 4600 To 4999 | L1: 5000 To 5999 | M1: 6,000 To 9999 | N1: 10,000 To 19,999 | O1: Over 19,999 | P1: Total
A2: 1 | B2: Earth and Planetary Science Letters 258 (2007) 160–174 | C2: U–Pb and 40Ar/39Ar Dating | D2: Pb-206_01 | E2: C:\Essays\Geo_Dating\Lead_206_207\Pb-206_01.pdf
A3: 2 | B3: Earth and Planetary Science Letters 142 (1996) 501-512 | C3: Pb Isotope Constraints | D3: Pb-206_02 | E3: C:\Essays\Geo_Dating\Lead_206_207\Pb-206_02.pdf | F3: Pb-207/Pb-206 | G3: 5346.616532 | H3: 4861.767841 | I3: 484.8486918 | J3: 5180.140406 | K3: 8 | L3: 22 | P3: =SUM(K3:O3) -> 30
A4: 3 | B4: Earth and Planetary Science Letters 300 (2010) 152–163 | C4: The Solar System Primordial Lead | D4: Pb-206_05 | E4: C:\Essays\Geo_Dating\Lead_206_207\Pb-206_05.pdf | F4: Pb-207/Pb-206 | G4: 5381.042629 | H4: 4964.451392 | I4: 416.5912368 | J4: 5259.109615 | K4: 3 | L4: 70 | P4: =SUM(K4:O4) -> 73
A5: 4 | B5: Earth and Planetary Science Letters, 42 (1979) 58-70 | C5: Diamonds And Mantle-Derived Xenoliths | D5: Pb-206_06 | E5: C:\Essays\Geo_Dating\Lead_206_207\Pb-206_06.pdf | F5: Pb-207/Pb-206 | G5: 5248.732347 | H5: 4884.5053 | I5: 364.2270471 | J5: 4994.997779 | K5: 9 | L5: 5 | P5: =SUM(K5:O5) -> 14
A6: 5 | B6: Earth and Planetary Science Letters, 107 (1991) 618-624 | C6: Complete Pb/U Analysis | D6: Pb-206_07 | E6: C:\Essays\Geo_Dating\Lead_206_207\Pb-206_07.pdf
A7: 6 | B7: Meteoritics & Planetary Science 46, Nr 1, 35–52 (2011) | C7: Disturbance Of Isotope Systematics | D7: Pb-206_08 | E7: C:\Essays\Geo_Dating\Lead_206_207\Pb-206_08.pdf | F7: Pb-207/Pb-206 | G7: 5110.634164 | H7: 4182.585678 | I7: 928.0484861 | J7: 4565.734757 | K7: 6 | L7: 2 | P7: =SUM(K7:O7) -> 8
A8: 6 | B8: Meteoritics & Planetary Science 46, Nr 1, 35–52 (2011) | C8: Disturbance Of Isotope Systematics | D8: Pb-206_08 | E8: C:\Essays\Geo_Dating\Lead_206_207\Pb-206_08.pdf | F8: Pb-206⁄U-238 | G8: 22145.50286 | H8: 2268.117264 | I8: 19877.38559 | J8: 8087.999424 | K8: 1 | L8: 2 | M8: 5 | N8: 2 | O8: 1 | P8: 11
A9: 7 | B9: Geochimica et Cosmochimica Acta, 1970, Vol. 34, pp. 1039 to 1106. | C9: Model Lead And Radiometric Ages | D9: Pb-206_09 | E9: C:\Essays\Geo_Dating\Lead_206_207\Pb-206_09.pdf | F9: Pb-207/Pb-206 | G9: 7797.378331 | H9: 5138.691402 | I9: 2658.686929 | J9: 5828.101363 | L9: 3 | M9: 1 | P9: 4
A10: 7 | B10: Geochimica et Cosmochimica Acta, 1970, Vol. 34, pp. 1039 to 1106. | C10: Model Lead And Radiometric Ages | D10: Pb-206_09 | E10: C:\Essays\Geo_Dating\Lead_206_207\Pb-206_09.pdf | F10: Pb-207/Pb-206 | G10: 5226.392078 | H10: 5142.80037 | I10: 83.59170836 | J10: 5203.773215 | L10: 15 | P10: 15
A11: 7 | B11: Geochimica et Cosmochimica Acta, 1970, Vol. 34, pp. 1039 to 1106. | C11: Model Lead And Radiometric Ages | D11: Pb-206_09 | E11: C:\Essays\Geo_Dating\Lead_206_207\Pb-206_09.pdf | F11: Pb-207/Pb-206 | G11: 5239.245885 | H11: 4845.553447 | I11: 393.6924382 | J11: 5160.900983 | K11: 1 | L11: 27 | P11: 28
A12: 7 | B12: Geochimica et Cosmochimica Acta, 1970, Vol. 34, pp. 1039 to 1106. | C12: Model Lead And Radiometric Ages | D12: Pb-206_09 | E12: C:\Essays\Geo_Dating\Lead_206_207\Pb-206_09.pdf | F12: Pb-207/Pb-206 | G12: 6461.618858 | H12: 6338.489922 | I12: 123.1289358 | J12: 6385.837302 | M12: 32 | P12: 32
A13: 8 | B13: Geochimica et Cosmochimica Acta, Vol. 45. pp. 635 to 645, 1981 | C13: U-Th-Pb Systematics | D13: Pb-206_12 | E13: C:\Essays\Geo_Dating\Lead_206_207\Pb-206_12.pdf | F13: Pb-207/Pb-206 | G13: 4747.166785 | H13: 2567.626082 | I13: 2179.540704 | J13: 3774.731199 | K13: 2 | P13: 2
A14: 9 | B14: Geochimica et Cosmochimica Acta, Vol. 62, No. 21/22, pp. 3527–3540, 1998 | C14: The Influence of High U-Th | D14: Pb-206_13 | E14: C:\Essays\Geo_Dating\Lead_206_207\Pb-206_13.pdf | F14: Pb-207/Pb-206 | G14: 5042.300457 | H14: 1325.158694 | I14: 3717.141763 | J14: 4179.655947 | K14: 8 | L14: 1 | P14: 9
A15: 9 | B15: Geochimica et Cosmochimica Acta, Vol. 62, No. 21/22, pp. 3527–3540, 1998 | C15: The Influence of High U-Th | D15: Pb-206_13 | E15: C:\Essays\Geo_Dating\Lead_206_207\Pb-206_13.pdf | F15: Pb-206⁄U-238 | G15: 14007.74335 | H15: 177.3488787 | I15: 13830.39447 | J15: 1620.738044 | N15: 1 | P15: 1
A16: 9 | B16: Geochimica et Cosmochimica Acta, Vol. 62, No. 21/22, pp. 3527–3540, 1998 | C16: The Influence of High U-Th | D16: Pb-206_13 | E16: C:\Essays\Geo_Dating\Lead_206_207\Pb-206_13.pdf | F16: Pb-208/Th-232 | G16: 37154.25956 | H16: 160.9635038 | I16: 36993.29606 | J16: 4084.078007 | O16: 1 | P16: 1
A17: 9 | B17: Geochimica et Cosmochimica Acta, Vol. 62, No. 21/22, pp. 3527–3540, 1998 | C17: The Influence of High U-Th | D17: Pb-206_13 | E17: C:\Essays\Geo_Dating\Lead_206_207\Pb-206_13.pdf | F17: Pb-206⁄U-238 | G17: 29040.11258 | H17: 270.4886227 | I17: 28769.62396 | J17: 5341.968525 | M17: 2 | N17: 1 | O17: 1 | P17: 4
A18: 9 | B18: Geochimica et Cosmochimica Acta, Vol. 62, No. 21/22, pp. 3527–3540, 1998 | C18: The Influence of High U-Th | D18: Pb-206_13 | E18: C:\Essays\Geo_Dating\Lead_206_207\Pb-206_13.pdf | F18: Pb-208/Th-232 | G18: 14316.14094 | H18: 287.9090841 | I18: 14028.23186 | J18: 3578.807917 | N18: 2 | P18: 2
A19: 9 | B19: Geochimica et Cosmochimica Acta, Vol. 62, No. 21/22, pp. 3527–3540, 1998 | C19: The Influence of High U-Th | D19: Pb-206_13 | E19: C:\Essays\Geo_Dating\Lead_206_207\Pb-206_13.pdf | F19: Pb-207/Pb-206 | G19: 4999.781335 | H19: 3923.956871 | I19: 1075.824465 | J19: 4708.883051 | K19: 9 | P19: 9
A20: 10 | B20: Geochimica et Cosmochimica Acta, Vol. 63, No. 3/4, pp. 473–488, 1999 | C20: Pb-Pb and Sm-Nd Isotope Results | D20: Pb-206_14 | E20: C:\Essays\Geo_Dating\Lead_206_207\Pb-206_14.pdf | F20: Pb-207/Pb-206 | G20: 5402.485252 | H20: 4342.063203 | I20: 1060.422049 | J20: 5173.115208 | K20: 4 | L20: 26 | P20: 30
A21: 11 | B21: Geochimica et Cosmochimica Acta, Vol. 61, No. 8, pp. 1713-1731, 1997 | C21: Ages Of Basaltic Achondrites | D21: Pb-206_15 | E21: C:\Essays\Geo_Dating\Lead_206_207\Pb-206_15.pdf | F21: Pb-207/Pb-206 | G21: 5135.139442 | H21: 4556.750763 | I21: 578.388679 | J21: 4940.851958 | K21: 19 | L21: 7 | P21: 26
A22: 11 | B22: Geochimica et Cosmochimica Acta, Vol. 61, No. 8, pp. 1713-1731, 1997 | C22: Ages Of Basaltic Achondrites | D22: Pb-206_15 | E22: C:\Essays\Geo_Dating\Lead_206_207\Pb-206_15.pdf | F22: Pb-207/Pb-206 | G22: 5081.418707 | H22: 4370.528155 | I22: 710.8905522 | J22: 4685.629756 | K22: 14 | L22: 3 | P22: 17
A23: 12 | B23: Geochimica et Cosmochimica Acta, 1992, Vol. 56, pp. 347-368 | C23: New Aspects Of Dating Eclogites | D23: Pb-206_16 | E23: C:\Essays\Geo_Dating\Lead_206_207\Pb-206_16.pdf | F23: Pb-207/Pb-206 | G23: 5066.498794 | H23: 4986.922194 | I23: 79.57660029 | J23: 5016.166887 | K23: 11 | L23: 11 | P23: 22
A24: 13 | B24: Geochimica et Cosmochimica Acta, Vol. 61, No. 23, pp. 5005-5022, 1997 | C24: Dating Scheelite Stages | D24: Pb-206_17 | E24: C:\Essays\Geo_Dating\Lead_206_207\Pb-206_17.pdf | F24: Pb-207/Pb-206 | G24: 5025.904928 | H24: 3830.537865 | I24: 1195.367063 | J24: 4914.361575 | K24: 4 | L24: 13 | P24: 17
A25: 14 | B25: Earth and Planetary Sctence Letters, 113 (1992) 107-128 | C25: Sr, Nd, and Pb Isotopes | D25: Pb-206_18 | E25: C:\Essays\Geo_Dating\Lead_206_207\Pb-206_18.pdf | F25: Pb-207/Pb-206 | G25: 5076.583029 | H25: 4945.156008 | I25: 131.4270206 | J25: 5013.656546 | K25: 18 | L25: 32 | P25: 50
A26: 14 | B26: Earth and Planetary Sctence Letters, 113 (1992) 107-128 | C26: Sr, Nd, and Pb Isotopes | D26: Pb-206_18 | E26: C:\Essays\Geo_Dating\Lead_206_207\Pb-206_18.pdf | F26: Pb-206⁄U-238 | G26: 22200.70461 | H26: 58.13189039 | I26: 22142.57272 | J26: 6853.117731 | K26: 2 | L26: 5 | M26: 16 | N26: 5 | O26: 2 | P26: 30
A27: 15 | B27: Earth and Planetary Science Letters 174 (1999) 75-80 | C27: U-Pb Dating Of A Fossil Tooth | D27: Pb-206_19 | E27: C:\Essays\Geo_Dating\Lead_206_207\Pb-206_19.pdf
A28: 16 | B28: Geochimica et Cosmochimica Acta 73 (2009) 469–488 | C28: Pb/Pb Geochronology | D28: Pb-206_22 | E28: C:\Essays\Geo_Dating\Lead_206_207\Pb-206_22.pdf | F28: Pb-207/Pb-206 | G28: 5860.201579 | H28: 4397.017993 | I28: 1463.183587 | J28: 5506.994909 | L28: 22 | P28: =SUM(K28:O28) -> 22
A29: 17 | B29: Geochimica et Cosmochimica Acta 72 (2008) 5799–5818 | C29: U, Th And Pb Isotope Compositions | D29: Pb-206_23 | E29: C:\Essays\Geo_Dating\Lead_206_207\Pb-206_23.pdf | F29: Pb-207/Pb-206 | G29: 5007.992406 | H29: 4871.481281 | I29: 136.511125 | J29: 4915.273431 | K29: 22 | L29: 3 | P29: 25
A30: 17 | B30: Geochimica et Cosmochimica Acta 72 (2008) 5799–5818 | C30: U, Th And Pb Isotope Compositions | D30: Pb-206_23 | E30: C:\Essays\Geo_Dating\Lead_206_207\Pb-206_23.pdf | F30: Pb-208/Th-232 | G30: 42037.68124 | H30: 1938.689533 | I30: 40098.9917 | J30: 8096.51606 | K30: 1 | L30: 1 | N30: 4 | O30: 2 | P30: 8
A31: 17 | B31: Geochimica et Cosmochimica Acta 72 (2008) 5799–5818 | C31: U, Th And Pb Isotope Compositions | D31: Pb-206_23 | E31: C:\Essays\Geo_Dating\Lead_206_207\Pb-206_23.pdf | F31: Pb-206⁄U-238 | G31: 15306.78499 | H31: 1436.962903 | I31: 13869.82208 | J31: 4270.628329 | L31: 1 | M31: 1 | N31: 3 | P31: 5
A32: 18 | B32: Geochimica et Cosmochimica Acta, Vol. 62, No. 16, pp. 2823–2835, 1998 | C32: Using The U-Pb System | D32: Pb-206_24 | E32: C:\Essays\Geo_Dating\Lead_206_207\Pb-206_24.pdf | F32: Pb-207/Pb-206 | G32: 4982.058295 | H32: 4024.356321 | I32: 957.7019739 | J32: 4615.922594 | K32: 34 | P32: 34
A33: 19 | B33: Geochimica et Cosmochimica Acta 71 (2007) 5514–5527 | C33: Pb Isotopic Compositions Of Rocks | D33: Pb-206_25 | E33: C:\Essays\Geo_Dating\Lead_206_207\Pb-206_25.pdf | F33: Pb-207/Pb-206 | G33: 5265.041568 | H33: 5054.790103 | I33: 210.2514652 | J33: 5243.360864 | L33: 113 | P33: 113
K34: =SUM(K1:K33) -> 176 | L34: 384 | M34: 57 | N34: 18 | O34: 7 | P34: 642

Sheet Pb-206_01
L1: 207Pb | M1: 207Pb | Q1: 206Pb
H2: Pb-207/206 | I2: Pb-207/206 | L2: 235U | M2: 235U | Q2: 238U | T2: Earth and Planetary Science Letters 258 (2007) 160–174
H3: Ratio | I3: Ages | L3: Ratio | M3: Age | Q3: Age
A4: IT.Z02 | B4: 4.6 | C4: 765 | D4: 0.9 | E4: 0.55 | F4: 360.9 | G4: 1.6 | H4: 0.0667 | I4: =[1]!AgePb76($H$4) -> 828.4201031 | J4: 0.00139 | K4: 2.1 | L4: 0.0172 | M4: =[1]!AgePb7U5(L4) -> 17.31609338 | N4: 0.0027 | O4: 1.2 | P4: 0.74 | Q4: 17.4 | R4: 0.2
A5: IT.Z03 | B5: 7.4 | C5: 797 | D5: 1.1 | E5: 0.5 | F5: 360.1 | G5: 2.6 | H5: 0.0619 | I5: =[1]!AgePb76($H$5) -> 670.6555981 | J5: 0.00107 | K5: 11.7 | L5: 0.0173 | M5: =[1]!AgePb7U5(L5) -> 17.41590985 | N5: 0.00272 | O5: 2 | P5: 0.07 | Q5: 17.5 | R5: 0.3
A6: IT.Z04 | B6: 4.5 | C6: 1686 | D6: 1.1 | E6: 0.55 | F6: 366.9 | G6: 0.8 | H6: 0.0584 | I6: =[1]!AgePb76($H$6) -> 544.8006657 | J6: 0.00084 | K6: 4 | L6: 0.017 | M6: =[1]!AgePb7U5(L6) -> 17.116431 | N6: 0.00268 | O6: 0.6 | P6: 0.6 | Q6: 17.3 | R6: 0.1
A7: IT.Z05 | B7: 6 | C7: 928 | D7: 1.1 | E7: 0.54 | F7: 362 | G7: 1 | H7: 0.0634 | I7: =[1]!AgePb76($H$7) -> 721.6756432 | J7: 0.00116 | K7: 1.1 | L7: 0.0173 | M7: =[1]!AgePb7U5(L7) -> 17.41590985 | N7: 0.0027 | O7: 0.8 | P7: 0.73 | Q7: 17.4 | R7: 0.1
A8: IT.Z06 | B8: 3.2 | C8: 2995 | D8: 2.1 | E8: 0.64 | F8: 361.7 | G8: 0.7 | H8: 0.065 | I8: =[1]!AgePb76($H$8) -> 774.3364695 | J8: 0.00124 | K8: 1 | L8: 0.0174 | M8: =[1]!AgePb7U5(L8) -> 17.51571651 | N8: 0.0027 | O8: 0.6 | P8: 0.63 | Q8: 17.4 | R8: 0.1
A9: IT.Z07 | B9: 3.9 | C9: 629 | D9: 1.2 | E9: 0.66 | F9: 349.7 | G9: 0.5 | H9: 0.0847 | I9: =[1]!AgePb76($H$9) -> 1308.679275 | J9: 0.0026 | K9: 1 | L9: 0.0175 | M9: =[1]!AgePb7U5(L9) -> 17.61551336 | N9: 0.00272 | O9: 0.4 | P9: 0.54 | Q9: 17.5 | R9: 0.1
A10: IT.Z08 | B10: 4.1 | C10: 734 | D10: 1.3 | E10: 0.56 | F10: 352.7 | G10: 1 | H10: 0.0821 | I10: =[1]!AgePb76($H$10) -> 1247.903109 | J10: 0.00243 | K10: 3.9 | L10: 0.0173 | M10: =[1]!AgePb7U5(L10) -> 17.41590985 | N10: 0.00271 | O10: 0.8 | P10: 0.44 | Q10: 17.4 | R10: 0.1
A11: IT.Z09 | B11: 7.9 | C11: 619 | D11: 5 | E11: 0.51 | F11: 329.7 | G11: 13.3 | H11: 0.1297 | I11: =[1]!AgePb76($H$11) -> 2093.903504 | J11: 0.00532 | K11: 7.8 | L11: 0.0196 | M11: =[1]!AgePb7U5(L11) -> 19.70898464 | N11: 0.00273 | O11: 10.3 | P11: 0.14 | Q11: 17.6 | R11: 1.8
A12: IT.Z12 | B12: 4.3 | C12: 909 | D12: 1.6 | E12: 0.59 | F12: 353.9 | G12: 0.4 | H12: 0.0813 | I12: =[1]!AgePb76($H$12) -> 1228.705872 | J12: 0.00233 | K12: 4.1 | L12: 0.0175 | M12: =[1]!AgePb7U5(L12) -> 17.61551336 | N12: 0.0027 | O12: 0.4 | P12: 0.6 | Q12: 17.4 | R12: 0.4

Sheet Pb-206_02
A1: Sample b | B1: 206pb/ 204 Pb | D1: 207pb/ 204 Pb | F1: 208 pb/ 204 Pb | H1: Pb-207/206 | I1: Pb-207/206 | K1: Earth and Planetary Science Letters 142 (1996) 501-512
A2: Feldspars DKM-15-90 | H2: Ratio | I2: Ages
A3: 1 R | B3: 13.601 | C3: 0.001 | D3: 14.64 | E3: 0.002 | F3: 33.423 | G3: 0.004 | H3: =(D3/B3) -> 1.076391442 | I3: =[1]!AgePb76($H$3) -> 5340.598219
A4: 1 L | B4: 13.954 | C4: 0.02 | D4: 14.745 | E4: 0.021 | F4: 33.805 | G4: 0.047 | H4: =(D4/B4) -> 1.056686255 | I4: =[1]!AgePb76($H$4) -> 5314.729489
A5: 1L (MS rep.) | B5: 13.952 | C5: 0.017 | D5: 14.739 | E5: 0.018 | F5: 33.757 | G5: 0.041 | H5: 1.056407683 | I5: =[1]!AgePb76($H$5) -> 5314.360145
A6: 2R | B6: 13.538 | C6: 0.009 | D6: 14.635 | E6: 0.009 | F6: 33.417 | G6: 0.021 | H6: 1.081031172 | I6: =[1]!AgePb76($H$6) -> 5346.616532
A7: 3R | B7: 13.528 | C7: 0.001 | D7: 14.609 | E7: 0.002 | F7: 33.355 | G7: 0.004 | H7: 1.079908338 | I7: =[1]!AgePb76($H$7) -> 5345.162579
A8: 3L1 | B8: 14.917 | C8: 0.001 | D8: 15.007 | E8: 0.002 | F8: 35.014 | G8: 0.003 | H8: 1.006033385 | I8: =[1]!AgePb76($H$8) -> 5245.823368
A9: 3L2 | B9: 13.692 | C9: 0.005 | D9: 14.676 | E9: 0.006 | F9: 33.581 | G9: 0.014 | H9: 1.071866784 | I9: =[1]!AgePb76($H$9) -> 5334.702753
A10: SR | B10: 13.61 | C10: 0.004 | D10: 14.637 | E10: 0.005 | F10: 33.429 | G10: 0.009 | H10: 1.075459221 | I10: =[1]!AgePb76($H$10) -> 5339.38571
A11: 5L | B11: 13.951 | C11: 0.012 | D11: 14.726 | E11: 0.014 | F11: 33.821 | G11: 0.034 | H11: 1.055551573 | I11: =[1]!AgePb76($H$11) -> 5313.224427
A12: 6R | B12: 13.747 | C12: 0.004 | D12: 14.684 | E12: 0.004 | F12: 33.556 | G12: 0.011 | H12: 1.068160326 | I12: =[1]!AgePb76($H$12) -> 5329.853777
A13: 6L | B13: 14.505 | C13: 0.017 | D13: 14.811 | E13: 0.019 | F13: 34.091 | G13: 0.051 | H13: 1.021096174 | I13: =[1]!AgePb76($H$13) -> 5266.690201
A14: 7R | B14: 13.561 | C14: 0.003 | D14: 14.61 | E14: 0.003 | F14: 33.346 | G14: 0.007 | H14: 1.077354177 | I14: =[1]!AgePb76($H$14) -> 5341.849255
A15: 71. | B15: 14.242 | C15: 0.017 | D15: 14.748 | E15: 0.021 | F15: 34.021 | G15: 0.051 | H15: 1.035528718 | I15: =[1]!AgePb76($H$15) -> 5286.381107
A16: 8R | B16: 13.546 | C16: 0.002 | D16: 14.631 | E16: 0.002 | F16: 33.427 | G16: 0.007 | H16: 1.080097446 | I16: =[1]!AgePb76($H$16) -> 5345.407565
A17: R d | B17: 13.78 | D17: 14.647 | F17: 33.523 | H17: 1.062917271 | I17: =[1]!AgePb76($H$17) -> 5322.964142
A18: R d | B18: 13.676 | D18: 14.623 | F18: 33.454 | H18: 1.069245393 | I18: =[1]!AgePb76($H$18) -> 5331.275153
A19: DKM-16-90 d | B19: 13.854 | D19: 14.679 | F19: 33.77 | H19: 1.059549589 | I19: =[1]!AgePb76($H$19) -> 5318.519898
A20: DKM-17-90 d | B20: 14.143 | D20: 14.743 | F20: 33.945 | H20: 1.042423814 | I20: =[1]!AgePb76($H$20) -> 5295.6863
A21: 3 | B21: 20.576 | C21: 0.021 | D21: 15.783 | E21: 0.018 | F21: 39.247 | G21: 0.048 | H21: 0.7670587092 | I21: =[1]!AgePb76($H$21) -> 4861.767841
A22: 13 d | B22: 19.7 | D22: 15.6 | F22: 39.791 | H22: 0.7918781726 | I22: =[1]!AgePb76($H$22) -> 4907.198524
A23: 15 e | B23: 17.552 | C23: 0nin | D23: 15.301 | E23: 0.004 | F23: 37.198 | G23: 0.039 | H23: 0.8717525068 | I23: =[1]!AgePb76($H$23) -> 5043.739591
A24: 17 d | B24: 18.134 | D24: 15.381 | F24: 37.603 | H24: 0.8481857285 | I24: =[1]!AgePb76($H$24) -> 5004.883491
A25: 18 d | B25: 18.587 | D25: 15.477 | F25: 38.112 | H25: 0.832678754 | I25: =[1]!AgePb76($H$25) -> 4978.685435
A26: 21 ' | B26: 18.972 | C26: 0.011 | D26: 15.438 | E26: 0.016 | F26: 38.005 | G26: 0.04 | H26: 0.8137254902 | I26: =[1]!AgePb76($H$26) -> 4945.951766
A27: 22 | B27: 18.922 | C27: 0.003 | D27: 15.568 | E27: 0.003 | F27: 39.198 | G27: 0.008 | H27: 0.8227460099 | I27: =[1]!AgePb76($H$27) -> 4961.630824
A28: 23 e | B28: 17.957 | C28: 0.012 | D28: 15.373 | E28: 0.004 | F28: 37.825 | G28: 0.005 | H28: 0.856100685 | I28: =[1]!AgePb76($H$28) -> 5018.059885
A29: 23 | B29: 17.94 | C29: 0.003 | D29: 15.357 | E29: 0.003 | F29: 37.779 | G29: 0.007 | H29: 0.8560200669 | I29: =[1]!AgePb76($H$29) -> 5017.926329
A30: 29 | B30: 18.492 | C30: 0.007 | D30: 15.468 | E30: 0.006 | F30: 38.501 | G30: 0.014 | H30: 0.8364698248 | I30: =[1]!AgePb76($H$30) -> 4985.137797
A31: 30 d | B31: 19.066 | D31: 15.552 | F31: 38.46 | H31: 0.8156928564 | I31: =[1]!AgePb76($H$31) -> 4949.387059
A32: 32 | B32: 18.272 | C32: 0.005 | D32: 15.408 | E32: 0.004 | F32: 39.436 | G32: 0.012 | H32: 0.8432574431 | I32: =[1]!AgePb76($H$32) -> 4996.613006
H33: AVG | I33: =AVERAGE(I3:I32) -> 5180.140406
H34: MAX | I34: =MAX(I3:I32) -> 5346.616532
H35: MIN | I35: =MIN(I3:I32) -> 4861.767841
H36: STD DEV | I36: =STDEV(I3:I32) -> 176.5946175

Sheet Pb-206_04
H1: Earth and Planetary Science Letters, 91 (1989) 286-296
B3: Pb-207/206 | C3: Pb-207/206 | D3: Pb-207/206 | E3: Pb-207/206
A4: Group a | B4: Ratio | C4: Ages | D4: Ratio | E4: Ages
A5: 15 medium (yes) no | B5: 0.263 | C5: =[1]!AgePb76($B$5) -> 3264.766785 | D5: 0.273 | E5: =[1]!AgePb76($D$5) -> 3323.341099
A6: 4 | B6: 0.264 | C6: =[1]!AgePb76($B$6) -> 3270.735716 | D6: 0.271 | E6: =[1]!AgePb76($D$6) -> 3311.820709
A7: 1 | B7: 0.271 | C7: =[1]!AgePb76($B$7) -> 3311.820709 | D7: 0.272 | E7: =[1]!AgePb76($D$7) -> 3317.592764
A8: 39 | B8: 0.275 | C8: =[1]!AgePb76($B$8) -> 3334.767363 | D8: 0.277 | E8: =[1]!AgePb76($D$8) -> 3346.100991
A9: Group b
A10: 38 | B10: 0.278 | C10: =[1]!AgePb76($B$10) -> 3351.733523 | D10: 0.281 | E10: =[1]!AgePb76($D$10) -> 3368.496131
A11: 13 | B11: 0.276 | C11: =[1]!AgePb76($B$11) -> 3340.445665 | D11: 0.282 | E11: =[1]!AgePb76($D$11) -> 3374.039253
A12: 6 | B12: 0.279 | C12: =[1]!AgePb76($B$12) -> 3357.34344 | D12: 0.283 | E12: =[1]!AgePb76($D$12) -> 3379.560455
A13: 7 | B13: 0.278 | C13: =[1]!AgePb76($B$13) -> 3351.733523 | D13: 0.281 | E13: =[1]!AgePb76($D$13) -> 3368.496131
A14: 22 | B14: 0.272 | C14: =[1]!AgePb76($B$14) -> 3317.592764 | D14: 0.283 | E14: =[1]!AgePb76($D$14) -> 3379.560455
A15: 24 | B15: 0.269 | C15: =[1]!AgePb76($B$15) -> 3300.204665 | D15: 0.284 | E15: =[1]!AgePb76($D$15) -> 3385.059904
A16: 35 | B16: 0.277 | C16: =[1]!AgePb76($B$16) -> 3346.100991 | D16: 0.284 | E16: =[1]!AgePb76($D$16) -> 3385.059904
A17: 8 | B17: 0.283 | C17: =[1]!AgePb76($B$17) -> 3379.560455
A18: 20 | B18: 0.274 | C18: =[1]!AgePb76($B$18) -> 3329.065903 | D18: 0.284 | E18: =[1]!AgePb76($D$18) -> 3385.059904
A19: 40 | B19: 0.267 | C19: =[1]!AgePb76($B$19) -> 3288.491404 | D19: 0.284 | E19: =[1]!AgePb76($D$19) -> 3385.059904
A20: 19 | B20: 0.281 | C20: =[1]!AgePb76($B$20) -> 3368.496131 | D20: 0.285 | E20: =[1]!AgePb76($D$20) -> 3390.537769
A21: 29 | B21: 0.284 | C21: =[1]!AgePb76($B$21) -> 3385.059904 | D21: 0.285 | E21: =[1]!AgePb76($D$21) -> 3390.537769
A22: 21 | B22: 0.258 | C22: =[1]!AgePb76($B$22) -> 3234.534778 | D22: 0.286 | E22: =[1]!AgePb76($D$22) -> 3395.994213
A23: 32 | B23: 0.284 | C23: =[1]!AgePb76($B$23) -> 3385.059904 | D23: 0.287 | E23: =[1]!AgePb76($D$23) -> 3401.4294
A24: 42 | B24: 0.283 | C24: =[1]!AgePb76($B$24) -> 3379.560455 | D24: 0.287 | E24: =[1]!AgePb76($D$24) -> 3401.4294
A25: 12 | B25: 0.284 | C25: =[1]!AgePb76($B$25) -> 3385.059904 | D25: 0.286 | E25: =[1]!AgePb76($D$25) -> 3395.994213
A26: 30 | B26: 0.285 | C26: =[1]!AgePb76($B$26) -> 3390.537769 | D26: 0.287 | E26: =[1]!AgePb76($D$26) -> 3401.4294
A27: 17 | B27: 0.285 | C27: =[1]!AgePb76($B$27) -> 3390.537769 | D27: 0.287 | E27: =[1]!AgePb76($D$27) -> 3401.4294
A28: 25 | B28: 0.275 | C28: =[1]!AgePb76($B$28) -> 3334.767363 | D28: 0.287 | E28: =[1]!AgePb76($D$28) -> 3401.4294
A29: Group c
A30: 31 | B30: 0.29 | C30: =[1]!AgePb76($B$30) -> 3417.609024 | D30: 0.293 | E30: =[1]!AgePb76($D$30) -> 3433.603032
A31: 9 | B31: 0.294 | C31: =[1]!AgePb76($B$31) -> 3438.893836 | D31: 0.295 | E31: =[1]!AgePb76($D$31) -> 3444.164624
A32: 28 | B32: 0.272 | C32: =[1]!AgePb76($B$32) -> 3317.592764 | D32: 0.294 | E32: =[1]!AgePb76($D$32) -> 3438.893836
A33: 27 | B33: 0.282 | C33: =[1]!AgePb76($B$33) -> 3374.039253 | D33: 0.294 | E33: =[1]!AgePb76($D$33) -> 3438.893836
A34: 34 | B34: 0.27 | C34: =[1]!AgePb76($B$34) -> 3306.02474 | D34: 0.296 | E34: =[1]!AgePb76($D$34) -> 3449.415543
A35: 37 | B35: 0.289 | C35: =[1]!AgePb76($B$35) -> 3412.236647 | D35: 0.297 | E35: =[1]!AgePb76($D$35) -> 3454.64674
A36: 18 | B36: 0.298 | C36: =[1]!AgePb76($B$36) -> 3459.858358 | D36: 0.3 | E36: =[1]!AgePb76($D$36) -> 3470.223428
A37: 16 | B37: 0.302 | C37: =[1]!AgePb76($B$37) -> 3480.511879 | D37: 0.303 | E37: =[1]!AgePb76($D$37) -> 3485.627716
A38: 36 | B38: 0.291 | C38: =[1]!AgePb76($B$38) -> 3422.960778 | D38: 0.304 | E38: =[1]!AgePb76($D$38) -> 3490.724808
A39: 33 | B39: 0.286 | C39: =[1]!AgePb76($B$39) -> 3395.994213 | D39: 0.304 | E39: =[1]!AgePb76($D$39) -> 3490.724808
A40: 3 | B40: 0.306 | C40: =[1]!AgePb76($B$40) -> 3500.863294 | D40: 0.309 | E40: =[1]!AgePb76($D$40) -> 3515.933739
A41: 10 | B41: 0.295 | C41: =[1]!AgePb76($B$41) -> 3444.164624 | D41: 0.308 | E41: =[1]!AgePb76($D$41) -> 3510.928389
A42: 14 | B42: 0.312 | C42: =[1]!AgePb76($B$42) -> 3530.842516 | D42: 0.316 | E42: =[1]!AgePb76($D$42) -> 3550.475191
A43: 2 | B43: 0.312 | C43: =[1]!AgePb76($B$43) -> 3530.842516 | D43: 0.315 | E43: =[1]!AgePb76($D$43) -> 3545.592983
A44: Group d
A45: 23 | B45: 0.327 | C45: =[1]!AgePb76($B$45) -> 3603.075405 | D45: 0.448 | E45: =[1]!AgePb76($D$45) -> 4078.580719
A46: 5 | B46: 0.447 | C46: =[1]!AgePb76($B$46) -> 4075.255246 | D46: 0.452 | E46: =[1]!AgePb76($D$46) -> 4091.802282
A47: 41 | B47: 0.428 | C47: =[1]!AgePb76($B$47) -> 4010.484681 | D47: 0.46 | E47: =[1]!AgePb76($D$47) -> 4117.867626
A48: 11 | B48: 0.381 | C48: =[1]!AgePb76($B$48) -> 3835.737808 | D48: 0.462 | E48: =[1]!AgePb76($D$48) -> 4124.306962
A49: 26 | B49: 0.358 | C49: =[1]!AgePb76($B$49) -> 3741.388838 | D49: 0.478 | E49: =[1]!AgePb76($D$49) -> 4174.756134

Sheet Pb-206_05
A1: 154 J. Blichert-Toft et al. / Earth and Planetary Science Letters 300 (2010) 152-163 Table 1 Blank-corrected Pb isotope compositions of troilite inclusions in iron meteorites. | I1: Pb-207/206 | J1: Pb-207/206
A2: Samples | B2: Type | C2: Collection | D2: Sample weight (g) | E2: Sample ID | F2: ng Pb | G2: 204Pb/206Pb | H2: 2s% | I2: Ratio | J2: Ages | K2: 208Pb/206Pb | L2: 2s% | N2: Earth and Planetary Science Letters 300 (2010) 152–163
A3: Canyon Diablo #2619 | B3: IAB-IIICD | C3: AMNH | D3: 1.1948 | E3: CD-AMNH2619-L1-N1 | F3: >100 | G3: 0.065395 | H3: 0.0018 | I3: 0.89354 | J3: =[1]!AgePb76($I$3) -> 5078.682917 | K3: 2.3013 | L3: 0.034
E4: CD-AMNH2619-L2-N1 | F4: >100 | G4: 0.067745 | H4: 0.0028 | I4: 0.90568 | J4: =[1]!AgePb76($I$4) -> 5097.763446 | K4: 2.35039 | L4: 0.055
E5: CD-AMNH2619-L3-N1 | F5: >100 | G5: 0.068301 | H5: 0.0026 | I5: 0.90887 | J5: =[1]!AgePb76($I$5) -> 5102.732223 | K5: 2.36166 | L5: 0.051
E6: CD-AMNH2619-L4-N1 | F6: >100 | G6: 0.072979 | H6: 0.0027 | I6: 0.93284 | J6: =[1]!AgePb76($I$6) -> 5139.487166 | K6: 2.45991 | L6: 0.053
E7: CD-AMNH2619-L5-N1 | F7: >100 | G7: 0.092636 | H7: 0.0071 | I7: 1.03289 | J7: =[1]!AgePb76($I$7) -> 5282.802735 | K7: 2.86867 | L7: 0.147
E8: CD-AMNH2619-L6-N1 | F8: 98 | G8: 0.094402 | H8: 0.0085 | I8: 1.04088 | J8: =[1]!AgePb76($I$8) -> 5293.608523 | K8: 2.89963 | L8: 0.173
E9: CD-AMNH2619-L7-CHF | F9: 5 | G9: 0.083923 | H9: 0.1259 | I9: 0.98935 | J9: =[1]!AgePb76($I$9) -> 5222.322576 | K9: 2.68718 | L9: 2.569
E10: CD-AMNH2619-L8-CHC | F10: 3 | G10: 0.07974 | H10: 0.2102 | I10: 0.96881 | J10: =[1]!AgePb76($I$10) -> 5192.806924 | K10: 2.60381 | L10: 4.258
A11: Canyon Diablo #9 | B11: IAB–IIICD | C11: AMNH | D11: 0.608 | E11: CD-AMNH9-B-L1-N1 | F11: >100 | G11: 0.055852 | H11: 0.0007 | I11: 0.85178 | J11: =[1]!AgePb76($I$11) -> 5010.883155 | K11: 2.11033 | L11: 0.006
E12: CD-AMNH9-B-L2-N1 | F12: >100 | G12: 0.055733 | H12: 0.0004 | I12: 0.85091 | J12: =[1]!AgePb76($I$12) -> 5009.433395 | K12: 2.10942 | L12: 0.003
E13: CD-AMNH9-B-R-CN | F13: >100 | G13: 0.058351 | H13: 0.0006 | I13: 0.86348 | J13: =[1]!AgePb76($I$13) -> 5030.22857 | K13: 2.16468 | L13: 0.01
A14: Canyon Diablo (Tilton) | B14: IAB–IIICD | C14: CIW | D14: 0.6657 | E14: CD-Til-A-L1-N1 | F14: >100 | G14: 0.08644 | H14: 0.0075 | I14: 0.9886 | J14: =[1]!AgePb76($I$14) -> 5221.256281 | K14: 2.72665 | L14: 0.151
E15: CD-Til-A-L1-N1-rr | F15: >100 | G15: 0.086394 | H15: 0.008 | I15: 0.9885 | J15: =[1]!AgePb76($I$15) -> 5221.114044 | K15: 2.72647 | L15: 0.162
E16: CD-Til-A-L2-N1 | F16: >100 | G16: 0.106115 | H16: 0.0105 | I16: 1.10053 | J16: =[1]!AgePb76($I$16) -> 5371.61459 | K16: 3.14426 | L16: 0.216
E17: CD-Til-A-L2-N1-rr | F17: >100 | G17: 0.106114 | H17: 0.0147 | I17: 1.10045 | J17: =[1]!AgePb76($I$17) -> 5371.512984 | K17: 3.14516 | L17: 0.302
E18: CD-Til-A-R-CN | F18: >100 | G18: 0.106375 | H18: 0.0108 | I18: 1.10214 | J18: =[1]!AgePb76($I$18) -> 5373.657746 | K18: 3.14915 | L18: 0.219
E19: CD-Til-A-R-CN-rr | F19: >100 | G19: 0.106486 | H19: 0.012 | I19: 1.10246 | J19: =[1]!AgePb76($I$19) -> 5374.063464 | K19: 3.1532 | L19: 0.246
A20: Mundrabilla #63692 | B20: IAB–IIICD | C20: Mainz | D20: 3.4578 | E20: Mun63-G-L1-N1 | F20: 25 | G20: 0.064134 | H20: 0.0071 | I20: 0.88964 | J20: =[1]!AgePb76($I$20) -> 5072.494869 | K20: 2.23897 | L20: 0.111
E21: Mun63-G-L2-N1 | F21: 21 | G21: 0.064382 | H21: 0.0091 | I21: 0.90517 | J21: =[1]!AgePb76($I$21) -> 5096.967345 | K21: 2.28589 | L21: 0.18
E22: Mun63-G-L3-N1 | F22: 8 | G22: 0.062892 | H22: 0.0211 | I22: 0.89786 | J22: =[1]!AgePb76($I$22) -> 5085.504024 | K22: 2.25551 | L22: 0.416
E23: Mun63-G-R-CN | F23: 7 | G23: 0.064542 | H23: 0.0308 | I23: 0.90426 | J23: =[1]!AgePb76($I$23) -> 5095.54567 | K23: 2.28711 | L23: 0.601
A24: Mundrabilla #77992 | B24: IAB–IIICD | C24: Mainz | D24: 3.7739 | E24: Mun77-F-L1-N1 | F24: >100 | G24: 0.087598 | H24: 0.0088 | I24: 1.01609 | J24: =[1]!AgePb76($I$24) -> 5259.791323 | K24: 2.74969 | L24: 0.178
E25: Mun77-F-L2-N1 | F25: >100 | G25: 0.097608 | H25: 0.007 | I25: 1.06188 | J25: =[1]!AgePb76($I$25) -> 5321.596868 | K25: 2.96076 | L25: 0.142
E26: Mun77-F-L3-N1 | F26: >100 | G26: 0.096623 | H26: 0.0115 | I26: 1.09939 | J26: =[1]!AgePb76($I$26) -> 5370.165976 | K26: 3.08028 | L26: 0.27
E27: Mun77-F-R-CN | F27: >100 | G27: 0.103638 | H27: 0.0107 | I27: 1.08707 | J27: =[1]!AgePb76($I$27) -> 5354.408975 | K27: 3.0796 | L27: 0.216
A28: Nantan K | B28: IAB–IIICD | C28: Alain Carion | D28: 4.6931 | E28: Nan-K-L1 -N1 | F28: >100 | G28: 0.099562 | H28: 0.008 | I28: 1.06803 | J28: =[1]!AgePb76($I$28) -> 5329.682955 | K28: 3.00767 | L28: 0.163
E29: Nan-K-L2-N1 | F29: >100 | G29: 0.105414 | H29: 0.0127 | I29: 1.09694 | J29: =[1]!AgePb76($I$29) -> 5367.047362 | K29: 3.12858 | L29: 0.259
E30: Nan-K-L3-N1 | F30: >100 | G30: 0.106794 | H30: 0.0113 | I30: 1.10374 | J30: =[1]!AgePb76($I$30) -> 5375.685096 | K30: 3.15681 | L30: 0.232
E31: Nan-K-R-CN | F31: >100 | G31: 0.107401 | H31: 0.0118 | I31: 1.10734 | J31: =[1]!AgePb76($I$31) -> 5380.235331 | K31: 3.17226 | L31: 0.241
A32: Nantan N1 | B32: IAB–IIICD | C32: Alain Carion | D32: 2.2208 | E32: N1-L1-N1 | F32: >100 | G32: 0.091516 | H32: 0.0063 | I32: 1.02718 | J32: =[1]!AgePb76($I$32) -> 5275.026228 | K32: 2.8384 | L32: 0.128
E33: N1-L2-N1 | F33: >100 | G33: 0.105476 | H33: 0.0098 | I33: 1.09754 | J33: =[1]!AgePb76($I$33) -> 5367.811783 | K33: 3.1314 | L33: 0.203
E34: N1-L3-N1 | F34: >100 | G34: 0.106859 | H34: 0.0114 | I34: 1.10472 | J34: =[1]!AgePb76($I$34) -> 5376.925319 | K34: 3.1614 | L34: 0.234
E35: N1 -L4-N1 | F35: >100 | G35: 0.10738 | H35: 0.0123 | I35: 1.10709 | J35: =[1]!AgePb76($I$35) -> 5379.919846 | K35: 3.17114 | L35: 0.252
E36: N1-L5-N1 | F36: >100 | G36: 0.107271 | H36: 0.0116 | I36: 1.10665 | J36: =[1]!AgePb76($I$36) -> 5379.364412 | K36: 3.16956 | L36: 0.237
E37: N1-L6-N1 | F37: >100 | G37: 0.107315 | H37: 0.0114 | I37: 1.10685 | J37: =[1]!AgePb76($I$37) -> 5379.616911 | K37: 3.16996 | L37: 0.234
E38: N1-L7-CN | F38: >100 | G38: 0.107343 | H38: 0.0094 | I38: 1.10695 | J38: =[1]!AgePb76($I$38) -> 5379.743142 | K38: 3.17029 | L38: 0.193
E39: N1-L8-CN | F39: >100 | G39: 0.107458 | H39: 0.0103 | I39: 1.10753 | J39: =[1]!AgePb76($I$39) -> 5380.475049 | K39: 3.17333 | L39: 0.211
E40: N1-L9-CHB | F40: >100 | G40: 0.107468 | H40: 0.0112 | I40: 1.10762 | J40: =[1]!AgePb76($I$40) -> 5380.588584 | K40: 3.17346 | L40: 0.23
A41: Nantan N2 | B41: IAB–IIICD | C41: Alain Carion | D41: 3.0695 | E41: N2-L1-N1 | F41: >100 | G41: 0.105929 | H41: 0.0116 | I41: 1.10003 | J41: =[1]!AgePb76($I$41) -> 5370.979428 | K41: 3.14217 | L41: 0.239
E42: N2-L2-N1 | F42: >100 | G42: 0.101905 | H42: 0.0113 | I42: 1.07989 | J42: =[1]!AgePb76($I$42) -> 5345.138819 | K42: 3.05799 | L42: 0.232
E43: N2-L3-N1 | F43: >100 | G43: 0.107137 | H43: 0.0129 | I43: 1.10664 | J43: =[1]!AgePb76($I$43) -> 5379.351785 | K43: 3.17016 | L43: 0.265
E44: N2-L4-N1 | F44: >100 | G44: 0.107202 | H44: 0.0131 | I44: 1.10672 | J44: =[1]!AgePb76($I$44) -> 5379.452792 | K44: 3.17048 | L44: 0.271
E45: N2-L5-N1 | F45: >100 | G45: 0.107062 | H45: 0.0115 | I45: 1.10616 | J45: =[1]!AgePb76($I$45) -> 5378.745585 | K45: 3.16758 | L45: 0.235
E46: N2-L6-N1 | F46: >100 | G46: 0.106846 | H46: 0.0115 | I46: 1.10522 | J46: =[1]!AgePb76($I$46) -> 5377.557639 | K46: 3.16378 | L46: 0.236
E47: N2-L7-CN | F47: >100 | G47: 0.107452 | H47: 0.0117 | I47: 1.10762 | J47: =[1]!AgePb76($I$47) -> 5380.588584 | K47: 3.17361 | L47: 0.241
E48: N2-L8-CN | F48: >100 | G48: 0.107356 | H48: 0.0105 | I48: 1.10733 | J48: =[1]!AgePb76($I$48) -> 5380.222713 | K48: 3.17292 | L48: 0.217
E49: N2-L9-CHB | F49: >100 | G49: 0.107353 | H49: 0.0139 | I49: 1.10798 | J49: =[1]!AgePb76($I$49) -> 5381.042629 | K49: 3.17606 | L49: 0.286
E50: N2-R-CN | F50: >100 | G50: 0.107352 | H50: 0.0273 | I50: 1.10735 | J50: =[1]!AgePb76($I$50) -> 5380.247949 | K50: 3.17286 | L50: 0.558
A51: Seeläsgen n° 3056 | B51: IAB–IIICD | C51: MNHN | D51: 3.0248 | E51: See-L1-N1 | F51: >100 | G51: 0.077758 | H51: 0.0038 | I51: 0.96638 | J51: =[1]!AgePb76($I$51) -> 5189.271335 | K51: 2.56643 | L51: 0.078
E52: See-L2-N1 | F52: >100 | G52: 0.094872 | H52: 0.008 | I52: 1.04766 | J52: =[1]!AgePb76($I$52) -> 5302.709423 | K52: 2.91443 | L52: 0.165
E53: See-L3-N2.5 | F53: >100 | G53: 0.106231 | H53: 0.0112 | I53: 1.10164 | J53: =[1]!AgePb76($I$53) -> 5373.023562 | K53: 3.14528 | L53: 0.23
E54: See-L4-N7 | F54: >100 | G54: 0.10701 | H54: 0.0145 | I54: 1.10502 | J54: =[1]!AgePb76($I$54) -> 5377.304748 | K54: 3.15897 | L54: 0.297
E55: See-L5-N7 | F55: >100 | G55: 0.107213 | H55: 0.0138 | I55: 1.10601 | J55: =[1]!AgePb76($I$55) -> 5378.556091 | K55: 3.16434 | L55: 0.282
E56: See-L6-N7 | F56: >100 | G56: 0.107092 | H56: 0.011 | I56: 1.10549 | J56: =[1]!AgePb76($I$56) -> 5377.898967 | K56: 3.16211 | L56: 0.226
E57: See-L7-R | F57: >100 | G57: 0.107102 | H57: 0.0148 | I57: 1.10557 | J57: =[1]!AgePb76($I$57) -> 5378.000084 | K57: 3.16171 | L57: 0.301
E58: See-RR | F58: 38 | G58: 0.106817 | H58: 0.0292 | I58: 1.10437 | J58: =[1]!AgePb76($I$58) -> 5376.482516 | K58: 3.15458 | L58: 0.598
A59: Toluca #4937 | B59: IAB–IIICD | C59: AMNH | D59: 0.6178 | E59: Tol-C-L1 -N1 | F59: 35 | G59: 0.060739 | H59: 0.0033 | I59: 0.877 | J59: =[1]!AgePb76($I$59) -> 5052.239681 | K59: 2.20819 | L59: 0.063
E60: Tol-C-L2-N1 | F60: 6 | G60: 0.06878 | H60: 0.0466 | I60: 0.91935 | J60: =[1]!AgePb76($I$60) -> 5118.926825 | K60: 2.37675 | L60: 0.944
E61: Tol-C-rR-CN | F61: 73 | G61: 0.072935 | H61: 0.005 | I61: 0.93845 | J61: =[1]!AgePb76($I$61) -> 5147.944919 | K61: 2.46222 | L61: 0.102
A62: Cape York | B62: IIIA | C62: MNHN | D62: 2.3343 | E62: CY-L1-N1 | F62: >100 | G62: 0.071502 | H62: 0.0041 | I62: 0.94715 | J62: =[1]!AgePb76($I$62) -> 5160.955901 | K62: 2.43103 | L62: 0.082
E63: CY-L2-N1 | F63: 37 | G63: 0.0745 | H63: 0.0113 | I63: 0.96214 | J63: =[1]!AgePb76($I$63) -> 5183.079658 | K63: 2.49156 | L63: 0.228
E64: CY-L3-N2.5 | F64: >100 | G64: 0.097998 | H64: 0.0097 | I64: 1.06653 | J64: =[1]!AgePb76($I$64) -> 5327.715277 | K64: 2.97784 | L64: 0.198
E65: CY-L4-N7 | F65: 11 | G65: 0.10209 | H65: 0.1091 | I65: 1.08408 | J65: =[1]!AgePb76($I$65) -> 5350.556432 | K65: 3.06222 | L65: 2.244
E66: CY-L5-N7 | F66: 58 | G66: 0.10554 | H66: 0.0201 | I66: 1.09906 | J66: =[1]!AgePb76($I$66) -> 5369.746345 | K66: 3.13363 | L66: 0.413
E67: CY-L6-N7 | F67: 23 | G67: 0.105061 | H67: 0.0518 | I67: 1.097 | J67: =[1]!AgePb76($I$67) -> 5367.123824 | K67: 3.12367 | L67: 1.066
E68: CY-L7-R | F68: 38 | G68: 0.105926 | H68: 0.03 | I68: 1.10041 | J68: =[1]!AgePb76($I$68) -> 5371.462178 | K68: 3.14148 | L68: 0.618
E69: CY-RR | F69: 2 | G69: 0.070666 | H69: 0.2512 | I69: 0.93753 | J69: =[1]!AgePb76($I$69) -> 5146.561585 | K69: 2.43515 | L69: 5.483
A70: Mt Edith #242 | B70: IIIB | C70: AMNH | D70: 0.8035 | E70: Mt Edith-D-L1-N1 | F70: >100 | G70: 0.052557 | H70: 0.0005 | I70: 0.82495 | J70: =[1]!AgePb76($I$70) -> 4965.433919 | K70: 2.03683 | L70: 0.007
E71: Mt Edith-D-L2-N1 | F71: >100 | G71: 0.052603 | H71: 0.0003 | I71: 0.82508 | J71: =[1]!AgePb76($I$71) -> 4965.657903 | K71: 2.03771 | L71: 0.005
E72: Mt Edith-D-R-CN | F72: >100 | G72: 0.052492 | H72: 0.0005 | I72: 0.82438 | J72: =[1]!AgePb76($I$72) -> 4964.451392 | K72: 2.0357 | L72: 0.009
A73: Seymchan | B73: Pallasite | C73: Luc Labenne | D73: 1.6777 | E73: Seym-E-L1-N1 | F73: >100 | G73: 0.055844 | H73: 0.0005 | I73: 0.86975 | J73: =[1]!AgePb76($I$73) -> 5040.481531 | K73: 2.11172 | L73: 0.004
E74: Seym-E-L2-N1 | F74: 46 | G74: 0.055934 | H74: 0.0011 | I74: 0.86859 | J74: =[1]!AgePb76($I$74) -> 5038.590578 | K74: 2.11313 | L74: 0.011
E75: Seym-E-R-CN | F75: >100 | G75: 0.055949 | H75: 0.0004 | I75: 0.86635 | J75: =[1]!AgePb76($I$75) -> 5034.931486 | K75: 2.11032 | L75: 0.003
I76: AVG | J76: =AVERAGE(J3:J75) -> 5259.109615
I77: MAX | J77: =MAX(J3:J75) -> 5381.042629
I78: MIN | J78: =MIN(J3:J75) -> 4964.451392
I79: STD DEV | J79: =STDEV(J3:J75) -> 140.5354981

Sheet Pb-206_06
A1: Sample | B1: Pb isotope ratios | C1: Pb isotope ratios | D1: Pb-207/206 | E1: Pb-207/206 | G1: Earth and Planetary Science Letters, 42 (1979) 58-70
B2: 206/204 | C2: 207/204 | D2: Ratio | E2: Ages
A3: HRV 67 | B3: 18.73 | C3: 15.32 | D3: =(C3/B3) -> 0.8179391351 | E3: =[1]!AgePb76($D$3) -> 4953.298614
A4: HRV 173b | B4: 14.93 | C4: 14.86 | D4: 0.9953114534 | E4: =[1]!AgePb76($D$4) -> 5230.767863
A5: HRV 158a | B5: 16.81 | C5: 15.215 | D5: 0.9051160024 | E5: =[1]!AgePb76($D$5) -> 5096.883028
A6: 10A | B6: 14.78 | C6: 14.9 | D6: 1.00811908 | E6: =[1]!AgePb76($D$6) -> 5248.732347
A7: JJG 6 | B7: 17.48 | C7: 15.34 | D7: 0.8775743707 | E7: =[1]!AgePb76($D$7) -> 5053.16679
A8: LBM 1 | B8: 19.02 | C8: 15.46 | D8: 0.8128286015 | E8: =[1]!AgePb76($D$8) -> 4944.382742
A9: LBM 9 | B9: 19.22 | C9: 15.51 | D9: 0.8069719043 | E9: =[1]!AgePb76($D$9) -> 4934.091502
A10: LBM 11 ) | B10: 17.65 | C10: 15.35 | D10: 0.8696883853 | E10: =[1]!AgePb76($D$10) -> 5040.381158
A11: LBM 90 | B11: 20.17 | C11: 15.72 | D11: 0.7793753099 | E11: =[1]!AgePb76($D$11) -> 4884.5053
A12: LBM 38b | B12: 19.89 | C12: 15.71 | D12: 0.7898441428 | E12: =[1]!AgePb76($D$12) -> 4903.532766
A13: KD 771 | B13: 19.61 | C13: 15.66 | D13: 0.7985721571 | E13: =[1]!AgePb76($D$13) -> 4919.192135
A14: KD 772 | B14: 19.76 | C14: 15.68 | D14: 0.7935222672 | E14: =[1]!AgePb76($D$14) -> 4910.154218
A15: KD 773 | B15: 19.62 | C15: 15.6 | D15: 0.7951070336 | E15: =[1]!AgePb76($D$15) -> 4912.99709
A16: KD 774 | B16: 19.88 | C16: 15.64 | D16: 0.7867203219 | E16: =[1]!AgePb76($D$16) -> 4897.883357
D17: Average | E17: =AVERAGE(E3:E16) -> 4994.997779
D18: Maximum | E18: =MAX(E3:E16) -> 5248.732347
D19: Minimum | E19: =MIN(E3:E16) -> 4884.5053
D20: Std Deviation | E20: =STDEV(E3:E16) -> 121.9954651

Sheet Pb-206_07
H1: Earth and Planetary Science Letters, 107 (1991) 618-624
A3: Sample | B3: Pb-207/206 | C3: Pb-207/206
A4: Number | B4: Ratio | C4: Ages
A5: 1 | B5: 0.10839 | C5: =[1]!AgePb76($B$5) -> 1772.531334
A6: 2 | B6: 0.11964 | C6: =[1]!AgePb76($B$6) -> 1950.851543
A7: 3 | B7: 0.12623 | C7: =[1]!AgePb76($B$7) -> 2046.116051
A8: 4 | B8: 0.06096 | C8: =[1]!AgePb76($B$8) -> 637.8229549
A9: 5 | B9: 0.07767 | C9: =[1]!AgePb76($B$9) -> 1138.444947
A10: 6 | B10: 0.08758 | C10: =[1]!AgePb76($B$10) -> 1373.287379
A11: 7 | B11: 0.07858 | C11: =[1]!AgePb76($B$11) -> 1161.575532
A12: 8 | B12: 0.10029 | C12: =[1]!AgePb76($B$12) -> 1629.467794
A13: 9 | B13: 0.07157 | C13: =[1]!AgePb76($B$13) -> 973.7380345
A14: 10 | B14: 0.08315 | C14: =[1]!AgePb76($B$14) -> 1272.739228
A20: Sample | B20: 238U/206Pb | C20: Age | D20: 206Pb/238U | E20: Age | F20: 238U/206Pb
A21: Number | B21: Ratio | C21: Million Years | D21: Ratio | E21: Million Years | F21: Ratio
A22: 1 | B22: 1304 | C22: =[1]!AgePb6U8(1/B22) -> 4.941674586 | D22: =(1/F22) -> 0.0007352941176 | E22: =[1]!AgePb6U8(D22) -> 4.738268631 | F22: 1360
A23: 2 | B23: 1400 | C23: =[1]!AgePb6U8(1/B23) -> 4.602937848 | D23: 0 | F23: 0
A24: 3 | B24: 1316 | C24: =[1]!AgePb6U8(1/B24) -> 4.896630833 | D24: =(1/F24) -> 0.0008968609865 | E24: =[1]!AgePb6U8(D24) -> 5.778946315 | F24: 1115
A25: 4 | B25: 2100 | C25: =[1]!AgePb6U8(1/B25) -> 3.068990385 | D25: 0 | F25: 0
A26: 5 | B26: 1960 | C26: =[1]!AgePb6U8(1/B26) -> 3.288148086 | D26: 0 | F26: 0
A27: 6 | B27: 1520 | C27: =[1]!AgePb6U8(1/B27) -> 4.239667487 | D27: 0 | F27: 0
A28: 7 | B28: 1990 | C28: =[1]!AgePb6U8(1/B28) -> 3.238590464 | D28: 0 | F28: 0
A29: 8 | B29: 1316 | C29: =[1]!AgePb6U8(1/B29) -> 4.896630833 | D29: 0 | F29: 0
A30: 9 | B30: 2580 | C30: =[1]!AgePb6U8(1/B30) -> 2.498126046 | D30: =(1/F30) -> 0.0003720238095 | E30: =[1]!AgePb6U8(D30) -> 2.397773575 | F30: 2688
A31: 10 | B31: 2320 | C31: =[1]!AgePb6U8(1/B31) -> 2.778028133 | D31: =(1/F31) -> 0.0004345936549 | E31: =[1]!AgePb6U8(D31) -> 2.800962105 | F31: 2301
C32: 46517.16359
C33: 45237.75112
C34: 50906.8471
C35: 49905.13192
B36: AVG | C36: =AVERAGE(C22:C35) -> 13757.52451
B37: MAX | C37: =MAX(C22:C35) -> 50906.8471
B38: MIN | C38: =MIN(C22:C35) -> 2.498126046
B39: STD DEV | C39: =STDEV(C22:C35) -> 22604.55593

Sheet Pb-206_08
A1: Table 4. U-Pb data for 10017. | O1: Pb-207/206 | P1: Pb-207/206
B2: wt (mg) | C2: U (ppm) | D2: U (ng) | E2: Pb (ppm) | F2: Pb (ng) | G2: 238U⁄204Pb | I2: 206Pb⁄204Pbb | K2: 207Pb⁄204Pbb | M2: 208Pb⁄204Pbb | O2: Ratio | P2: Ages
A3: Plag(R) | B3: 3.07 | C3: 0.08755 | D3: 0.2688 | E3: 0.1624 | F3: 0.4986 | G3: 73.4 | H3: 3.8 | I3: 52.43 | J3: 0.92 | K3: 39.39 | L3: 0.67 | M3: 64.96 | N3: 0.79 | O3: =(K3/I3) -> 0.7512874309 | P3: =[1]!AgePb76($O$3) -> 4832.07799
A4: Plag(L) | D4: 0.06121 | F4: 0.3742 | G4: 13.4 | H4: 3.2 | I4: 26.277 | J4: 0.097 | K4: 20.692 | L4: 0.079 | M4: 47.1 | N4: 0.15 | O4: =(K4/I4) -> 0.7874567112 | P4: =[1]!AgePb76($O$4) -> 4899.217261
A5: Px(R) | B5: 8.77 | C5: 0.169 | D5: 1.482 | E5: 0.3894 | F5: 3.415 | G5: 87.43 | H5: 0.5 | I5: 88.77 | J5: 0.26 | K5: 51.5 | L5: 0.15 | M5: 92.19 | N5: 0.27 | O5: 0.5801509519 | P5: =[1]!AgePb76($O$5) -> 4459.056893
A6: Px(L) | D6: 0.3162 | F6: 2.232 | G6: 17.19 | H6: 0.15 | I6: 40.763 | J6: 0.07 | K6: 28.502 | L6: 0.055 | M6: 70.13 | N6: 0.15 | O6: 0.6992125212 | P6: =[1]!AgePb76($O$6) -> 4729.101093
A7: WR(R) | B7: 20.14 | C7: 0.689 | D7: 13.88 | E7: 1.262 | F7: 25.42 | G7: 164.78 | H7: 0.44 | I7: 143.86 | J7: 0.25 | K7: 69.13 | L7: 0.13 | M7: 135.68 | N7: 0.29 | O7: 0.4805366328 | P7: =[1]!AgePb76($O$7) -> 4182.585678
A8: WR(L) | D8: 2.922 | F8: 10.3 | G8: 69.33 | H8: 0.26 | I8: 84.98 | J8: 0.15 | K8: 41.609 | L8: 0.082 | M8: 155.29 | N8: 0.36 | O8: 0.4896328548 | P8: =[1]!AgePb76($O$8) -> 4210.297789
A9: Ilm | B9: 28 | C9: 1.618 | D9: 45.29 | E9: 3.629 | F9: 101.6 | G9: 103.57 | H9: 0.19 | I9: 99.301 | J9: 0.09 | K9: 49.47 | L9: 0.061 | M9: 119.3 | N9: 0.19 | O9: 0.4981822942 | P9: =[1]!AgePb76($O$9) -> 4235.839903
A10: Plag(R) | B10: 4.87 | C10: 0.01432 | D10: 0.06972 | E10: 0.1087 | F10: 0.5296 | G10: 30.6 | H10: 3 | I10: 90.7 | J10: 2.7 | K10: 70.2 | L10: 2.1 | M10: 107.2 | N10: 2.6 | O10: 0.7739801544 | P10: =[1]!AgePb76($O$10) -> 4874.592854
A11: Plag(L) | D11: 0.01335 | F11: 0.5048 | G11: 2.9 | H11: 4.8 | I11: 40.53 | J11: 0.23 | K11: 25.95 | L11: 0.13 | M11: 61.52 | N11: 0.3 | O11: 0.6402664693 | P11: =[1]!AgePb76($O$11) -> 4602.14807
A12: Plag-rej | B12: 7.81 | C12: 0.01533 | D12: 0.1197 | E12: 0.2281 | F12: 1.782 | G12: 19.3 | H12: 1.4 | I12: 119 | J12: 1.4 | K12: 73.42 | L12: 0.83 | M12: 139 | N12: 1.5 | O12: 0.6169747899 | P12: =[1]!AgePb76($O$12) -> 4548.491536
A13: Px(R) | B13: 3.09 | C13: 0.0367 | D13: 0.1134 | E13: 0.1435 | F13: 0.4436 | G13: 35.6 | H13: 3 | I13: 51.6 | J13: 1.3 | K13: 33.83 | L13: 0.78 | M13: 74.8 | N13: 1.7 | O13: 0.655620155 | P13: =[1]!AgePb76($O$13) -> 4636.385391
A14: Px(L) | D14: 0.01037 | F14: 0.8401 | G14: 1.45 | H14: 0.62 | I14: 43.56 | J14: 0.15 | K14: 27.18 | L14: 0.13 | M14: 64.24 | N14: 0.24 | O14: 0.6239669421 | P14: =[1]!AgePb76($O$14) -> 4564.824484
A15: Px-rej | B15: 11.32 | C15: 0.05266 | D15: 0.5962 | E15: 0.4526 | F15: 5.124 | G15: 30.63 | H15: 0.25 | I15: 109.94 | J15: 0.38 | K15: 62.19 | L15: 0.22 | M15: 131.76 | N15: 0.49 | O15: 0.5656721848 | P15: =[1]!AgePb76($O$15) -> 4422.206043
A16: WR(R) | B16: 28.42 | C16: 0.47146 | D16: 13.4 | E16: 0.449 | F16: 12.76 | G16: 437.2 | H16: 4.4 | I16: 184.36 | J16: 0.46 | K16: 92.34 | L16: 0.25 | M16: 204.6 | N16: 0.62 | O16: 0.5008678672 | P16: =[1]!AgePb76($O$16) -> 4243.765339
A17: WR(L) | D17: 3.727 | F17: 27.41 | G17: 39.04 | H17: 0.24 | I17: 122.7 | J17: 0.14 | K17: 63.226 | L17: 0.092 | M17: 145.65 | N17: 0.25 | O17: 0.5152893236 | P17: =[1]!AgePb76($O$17) -> 4285.552556
A18: Ilm | B18: 9.46 | C18: 0.4793 | D18: 4.534 | E18: 1.221 | F18: 11.55 | G18: 171.66 | H18: 0.69 | I18: 192.71 | J18: 0.48 | K18: 96.05 | L18: 0.26 | M18: 216.79 | N18: 0.64 | O18: 0.498417311 | P18: =[1]!AgePb76($O$18) -> 4236.53531
A19: All Faraday runs: NBS 981 (n = 10)c | F19: 2 | I19: 16.902 | J19: 0.034 | K19: 15.44 | L19: 0.038 | M19: 36.54 | N19: 0.11 | O19: 0.9135013608 | P19: =[1]!AgePb76($O$19) -> 5109.913276
A20: Faraday–Daly runs: NBS 981 (n = 17) | F20: 0.5–2 | I20: 16.889 | J20: 0.081 | K20: 15.436 | L20: 0.091 | M20: 36.53 | N20: 0.24 | O20: 0.9139676713 | P20: =[1]!AgePb76($O$20) -> 5110.634164
O21: AVG | P21: =AVERAGE(P3:P20) -> 4565.734757
O22: MAX | P22: =MAX(P3:P20) -> 5110.634164
I23: 206Pb⁄238U | J23: 206Pb⁄238U | O23: MIN | P23: =MIN(P3:P20) -> 4182.585678
B24: Meteoritics & Planetary Science 46, Nr 1, 35–52 (2011) | G24: 238U⁄204Pb | H24: 206Pb⁄204Pb | I24: Ratio | J24: Age | O24: STD DEV | P24: =STDEV(P3:P20) -> 307.588436
G25: 73.4 | H25: 52.43 | I25: =(H25/G25) -> 0.7143051771 | J25: =[1]!AgePb6U8(I25) -> 3474.667874
G26: 13.4 | H26: 26.277 | I26: =(H26/G26) -> 1.960970149 | J26: =[1]!AgePb6U8(I26) -> 6997.691976
G27: 87.43 | H27: 88.77 | I27: 1.015326547 | J27: =[1]!AgePb6U8(I27) -> 4517.526126
G28: 17.19 | H28: 40.763 | I28: 2.371320535 | J28: =[1]!AgePb6U8(I28) -> 7834.356279
G29: 164.78 | H29: 143.86 | I29: 0.873042845 | J29: =[1]!AgePb6U8(I29) -> 4045.539393
G30: 69.33 | H30: 84.98 | I30: 1.225732006 | J30: =[1]!AgePb6U8(I30) -> 5157.684791
G31: 103.57 | H31: 99.301 | I31: 0.9587815004 | J31: =[1]!AgePb6U8(I31) -> 4334.069921
G32: 30.6 | H32: 90.7 | I32: 2.964052288 | J32: =[1]!AgePb6U8(I32) -> 8878.432277
G33: 2.9 | H33: 40.53 | I33: 13.97586207 | J33: =[1]!AgePb6U8(I33) -> 17446.83133
G34: 19.3 | H34: 119 | I34: 6.165803109 | J34: =[1]!AgePb6U8(I34) -> 12695.0533
G35: 35.6 | H35: 51.6 | I35: 1.449438202 | J35: =[1]!AgePb6U8(I35) -> 5775.076184
G36: 1.45 | H36: 43.56 | I36: 30.04137931 | J36: =[1]!AgePb6U8(I36) -> 22145.50286
G37: 30.63 | H37: 109.94 | I37: 3.589291544 | J37: =[1]!AgePb6U8(I37) -> 9822.566733
G38: 437.2 | H38: 184.36 | I38: 0.4216834401 | J38: =[1]!AgePb6U8(I38) -> 2268.117264
G39: 39.04 | H39: 122.7 | I39: 3.142930328 | J39: =[1]!AgePb6U8(I39) -> 9162.954689
G40: 171.66 | H40: 192.71 | I40: 1.122626121 | J40: =[1]!AgePb6U8(I40) -> 4851.919798
I41: Average | J41: =AVERAGE(J25:J40) -> 8087.999424
I42: Maximum | J42: =MAX(J25:J41) -> 22145.50286
I43: Minimum | J43: =MIN(J25:J42) -> 2268.117264
I44: Std Deviation | J44: =STDEV(J25:J40) -> 5386.479366

Sheet Pb-206_09
J1: 4846
J2: 5008
J3: 5056
A4: Table 1. | J4: 5074
A5: CIT shelf lead | B5: Pb206 | C5: Pb206 | D5: Pb207 | E5: Pb207/Pb206 | J5: 5085
B6: Pb207 | C6: pb208 | D6: Pb206 | E6: Age | J6: 5089
A7: This work-average of 16 analyses | B7: 1.0709 | C7: 0 | D7: =(1/B7) -> 0.933794005 | E7: =[1]!AgePb76($D$7) -> 5140.929239 | J7: 5089
A8: TILTON anSTEIGE(1965) | B8: 1.0726 | C8: 0 | D8: =(1/B8) -> 0.9323140034 | E8: =[1]!AgePb76($D$8) -> 5138.691402 | J8: 5114
A9: Normalization factor | B9: 1.0014 | C9: 0 | D9: =(1/B9) -> 0.9986019573 | E9: =[1]!AgePb76($D$9) -> 5235.406478 | J9: 5139
A10: Pecent standardeviation (this paper) | B10: 0.07 | C10: 0 | D10: =(1/B10) -> 14.28571429 | E10: =[1]!AgePb76($D$10) ->  | J10: 5140
A11: Pecent standardeviation | B11: 0.15 | C11: 0 | D11: =(1/B11) -> 6.666666667 | E11: =[1]!AgePb76($D$11) -> 7797.378331 | J11: 5141
A12: (TILTON anSTEIGER, 1965) | J12: 5143
J13: 5157
J14: 5157
J15: 5158
A16: Table 2. | J16: 5169
A17: Province, Canadian Shield | J17: 5179
J18: 5180
A19: Sample name annumber | B19: Pb206 | C19: Pb206 | D19: Pb206 | E19: Pb207 | F19: Pb208 | G19: Pb-207/206 | H19: Pb-207/206 | J19: 5182
B20: Pb207 | C20: Pb208 | D20: Pb204 | E20: Pb204 | F20: Pb204 | G20: Ratio | H20: Ages | J20: 5184
A21: 1. Western NucleaMine | B21: 1.014 | C21: 0.4395 | D21: 15.57 | E21: 15.36 | F21: 35.43 | G21: =(E21/D21) -> 0.9865125241 | H21: =[1]!AgePb76($G$21) -> 5218.283951 | J21: 5184
B22: 1.0152 | C22: 0.4399 | D22: 15.58 | E22: 15.36 | F22: 35.42 | G22: =(E22/D22) -> 0.9858793325 | H22: =[1]!AgePb76($G$22) -> 5217.381042 | J22: 5211
A23: 2, Hanson Lake | B23: 1.0126 | C23: 0.4388 | D23: 15.51 | E23: 15.32 | F23: 35.35 | G23: 0.9877498388 | H23: =[1]!AgePb76($G$23) -> 5220.046549 | J23: 5217
A24: 3.Flin Flon Mine | B24: 1.0113 | C24: 0.4384 | D24: 15.42 | E24: 15.25 | F24: 35.17 | G24: 0.9889753567 | H24: =[1]!AgePb76($G$24) -> 5221.790043 | J24: 5218
A25: 4.Paskwachi Bay | B25: 1.0083 | C25: 0.4346 | D25: 15.46 | E25: 15.33 | F25: 35.57 | G25: 0.9915912031 | H25: =[1]!AgePb76($G$25) -> 5225.50387 | J25: 5219
A26: 5.Stall Lake Mine | B26: 1.0079 | C26: 0.4361 | D26: 15.52 | E26: 15.39 | F26: 35.59 | G26: 0.9916237113 | H26: =[1]!AgePb76($G$26) -> 5225.549958 | J26: 5220
A27: 6.Chisel Lake | B27: 1.0123 | C27: 0.4378 | D27: 15.51 | E27: 15.32 | F27: 35.43 | G27: 0.9877498388 | H27: =[1]!AgePb76($G$27) -> 5220.046549 | J27: 5220
A28: 7.Sulphide Lake | B28: 1.0131 | C28: 0.4371 | D28: 15.51 | E28: 15.31 | F28: 35.48 | G28: 0.9871050935 | H28: =[1]!AgePb76($G$28) -> 5219.128378 | J28: 5221
A29: 8.Osborne Mine | B29: 1.0089 | C29: 0.4379 | D29: 15.42 | E29: 15.29 | F29: 35.21 | G29: 0.9915693904 | H29: =[1]!AgePb76($G$29) -> 5225.472944 | J29: 5221
B30: 1.0079 | C30: 0.438 | D30: 15.42 | E30: 15.3 | F30: 35.2 | G30: 0.9922178988 | H30: =[1]!AgePb76($G$30) -> 5226.392078 | J30: 5221
A31: 9.Brabant Lake | B31: 1.0109 | C31: 0.4357 | D31: 15.44 | E31: 15.28 | F31: 35.44 | G31: 0.9896373057 | H31: =[1]!AgePb76($G$31) -> 5222.73082 | J31: 5222
A32: 10.Compulsion River | B32: 1.0589 | C32: 0.4538 | D32: 16.55 | E32: 15.63 | F32: 36.47 | G32: 0.9444108761 | H32: =[1]!AgePb76($G$32) -> 5156.873194 | J32: 5223
B33: 1.0592 | C33: 0.4542 | D33: 16.55 | E33: 15.63 | F33: 36.44 | G33: 0.9444108761 | H33: =[1]!AgePb76($G$33) -> 5156.873194 | J33: 5223
B34: 1.0584 | C34: 0.4535 | D34: 16.54 | E34: 15.63 | F34: 36.47 | G34: 0.9449818622 | H34: =[1]!AgePb76($G$34) -> 5157.725291 | J34: 5223
A35: 11.Falconbridge | B35: 1.0694 | C35: 0.4589 | D35: 16.47 | E35: 15.4 | F35: 36.89 | G35: 0.935033394 | H35: =[1]!AgePb76($G$35) -> 5142.80037 | J35: 5223
G36: AVG | H36: =AVERAGE(H21:H35) -> 5203.773215 | J36: 5223
G37: MAX | H37: =MAX(H21:H35) -> 5226.392078 | J37: 5224
G38: MIN | H38: =MIN(H21:H35) -> 5142.80037 | J38: 5225
G39: STD DEV | H39: =STDEV(H21:H35) -> 31.63566848 | J39: 5226
J40: 5226
A41: Table 3. | J41: 5226
A42: antotal digestion | J42: 5229
A43: Sample numbeand locality | B43: pb-206 | C43: pb-207 | D43: Pb-207/206 | E43: Pb-207/206 | J43: 5235
B44: pb-204 | C44: pb-204 | D44: Ratio | E44: Ages | J44: 5236
A45: Churchill Province | J45: 5236
A46: HL 8P (pegmatite, | B46: 15.54 | C46: 14.91 | D46: =(C46/B46) -> 0.9594594595 | E46: =[1]!AgePb76($D$46) -> 5179.150347 | J46: 5239
A47: Hanson Lake, Sask.) | B47: 15.54 | C47: 14.92 | D47: =(C47/B47) -> 0.9601029601 | E47: =[1]!AgePb76($D$47) -> 5180.094691 | J47: 6338
B48: 15.51 | C48: 14.91 | D48: 0.9613152805 | E48: =[1]!AgePb76($D$48) -> 5181.871966 | J48: 6349
A49: HL 9P (pegmatite, | B49: 15.71 | C49: 15.12 | D49: 0.962444303 | E49: =[1]!AgePb76($D$49) -> 5183.524993 | J49: 6356
A50: Hanson Lake, Sask.) | B50: 15.72 | C50: 15.13 | D50: 0.9624681934 | E50: =[1]!AgePb76($D$50) -> 5183.559949 | J50: 6358
B51: 15.46 | C51: 15.17 | D51: 0.9812419146 | E51: =[1]!AgePb76($D$51) -> 5210.749502 | J51: 6359
A52: HL 15P (pegmatite. | B52: 20.53 | C52: 15.57 | D52: 0.758402338 | E52: =[1]!AgePb76($D$52) -> 4845.553447 | J52: 6366
A53: Hanson Lake, Sask.) | B53: 17.39 | C53: 15.29 | D53: 0.8792409431 | E53: =[1]!AgePb76($D$53) -> 5055.853216 | J53: 6372
B54: 17.23 | C54: 15.47 | D54: 0.8978525827 | E54: =[1]!AgePb76($D$54) -> 5085.492342 | J54: 6376
A55: CL3P (pegmatite, neaLa Ronge, Sask.) | B55: 17.04 | C55: 15.34 | D55: 0.9002347418 | E55: =[1]!AgePb76($D$55) -> 5089.23884 | J55: 6378
B56: 15.78 | C56: 15.03 | D56: 0.9524714829 | E56: =[1]!AgePb76($D$56) -> 5168.852045 | J56: 6382
A57: CL7P (pegmatite, neaLa Ronge, Sask.) | B57: 16.4 | C57: 15.02 | D57: 0.9158536585 | E57: =[1]!AgePb76($D$57) -> 5113.545818 | J57: 6383
B58: 15.54 | C58: 14.5 | D58: 0.9330759331 | E58: =[1]!AgePb76($D$58) -> 5139.843948 | J58: 6383
A59: CL14 (K-spafrom | B59: 15.11 | C59: 15.02 | D59: 0.9940436797 | E59: =[1]!AgePb76($D$59) -> 5228.976358 | J59: 6384
A60: granodiorite gneiss, | B60: 15.04 | C60: 15.02 | D60: 0.9986702128 | E60: =[1]!AgePb76($D$60) -> 5235.502527 | J60: 6384
A61: FosteLake, Sask.) | B61: 15.03 | C61: 15.01 | D61: 0.998669328 | E61: =[1]!AgePb76($D$61) -> 5235.501282 | J61: 6385
B62: 14.99 | C62: 15.01 | D62: 1.001334223 | E62: =[1]!AgePb76($D$62) -> 5239.245885 | J62: 6387
A63: CL18 (K-spafrom | B63: 15.32 | C63: 15.14 | D63: 0.9882506527 | E63: =[1]!AgePb76($D$63) -> 5220.759313 | J63: 6387
A64: granodiorite, Black | B64: 15.31 | C64: 15.13 | D64: 0.9882429784 | E64: =[1]!AgePb76($D$64) -> 5220.748393 | J64: 6388
A65: BeaIslanLake, | B65: 15.3 | C65: 15.14 | D65: 0.9895424837 | E65: =[1]!AgePb76($D$65) -> 5222.596098 | J65: 6389
A66: Sask.) | B66: 15.3 | C66: 15.14 | D66: 0.9895424837 | E66: =[1]!AgePb76($D$66) -> 5222.596098 | J66: 6389
A67: CL19 (K-spafrom | B67: 18.42 | C67: 15.66 | D67: 0.8501628664 | E67: =[1]!AgePb76($D$67) -> 5008.187122 | J67: 6390
A68: granite gneiss, Sand- | B68: 17.36 | C68: 15.46 | D68: 0.8905529954 | E68: =[1]!AgePb76($D$68) -> 5073.946075 | J68: 6393
A69: fly Lake, Sask.) | B69: 17.07 | C69: 15.36 | D69: 0.8998242531 | E69: =[1]!AgePb76($D$69) -> 5088.594001 | J69: 6393
A70: NB 3 (K-spafrom | B70: 15.31 | C70: 15.16 | D70: 0.990202482 | E70: =[1]!AgePb76($D$70) -> 5223.533536 | J70: 6394
A71: granite, Wollaston | B71: 15.28 | C71: 15.1 | D71: 0.9882198953 | E71: =[1]!AgePb76($D$71) -> 5220.715549 | J71: 6394
A72: Lake, Sask.) | B72: 15.27 | C72: 15.12 | D72: 0.9901768173 | E72: =[1]!AgePb76($D$72) -> 5223.497095 | J72: 6395
B73: 15.27 | C73: 15.12 | D73: 0.9901768173 | E73: =[1]!AgePb76($D$73) -> 5223.497095 | J73: 6396
D74: AVG | E74: =AVERAGE(E46:E73) -> 5160.900983 | J74: 6399
D75: MAX | E75: =MAX(E46:E73) -> 5239.245885 | J75: 6399
D76: MIN | E76: =MIN(E46:E73) -> 4845.553447 | J76: 6412
D77: STD DEV | E77: =STDEV(E46:E73) -> 89.61434927 | J77: 6426
J78: 6462
J79: 7797
A81: Table 4.
A82: Province, Canadian Shield
A83: Sample number pb2O6 and locality pf,--2o4 | B83: pb-206 | C83: pb-207 | D83: Pb-207/206 | E83: Pb-207/206
B84: pb-204 | C84: pb-204 | D84: Ratio | E84: Ages
A85: La Ronge area (CLR series)
A86: CLR 1P 15.58 | B86: 15.26 | C86: 35.83 | D86: =(C86/B86) -> 2.347968545 | E86: =[1]!AgePb76($D$86) -> 6411.666707
A87: CLR 3P 15.91 | B87: 15.02 | C87: 34.66 | D87: =(C87/B87) -> 2.30758988 | E87: =[1]!AgePb76($D$87) -> 6388.231791
A88: CLR 7P 15.60 | B88: 14.41 | C88: 35.11 | D88: 2.436502429 | E88: =[1]!AgePb76($D$88) -> 6461.618858
A89: CLR 10P 16.05 | B89: 14.49 | C89: 33.05 | D89: 2.280883368 | E89: =[1]!AgePb76($D$89) -> 6372.496854
A90: CLR 12P 15.79 | B90: 14.76 | C90: 32.83 | D90: 2.224254743 | E90: =[1]!AgePb76($D$90) -> 6338.489922
A91: CLR 14 15.04 | B91: 15.02 | C91: 34.67 | D91: 2.308255659 | E91: =[1]!AgePb76($D$91) -> 6388.621635 | H91: Geochimica et Cosmochimica Acta, 1970, Vol. 34, pp. 1039 to 1106.
A92: 15.03* | B92: 15.01 | C92: 34.67 | D92: 2.309793471 | E92: =[1]!AgePb76($D$92) -> 6389.52165
A93: CLR 15 15.57 | B93: 15.32 | C93: 34.33 | D93: 2.240861619 | E93: =[1]!AgePb76($D$93) -> 6348.555102
A94: CLR 16P 15.47 | B94: 15.29 | C94: 35.17 | D94: 2.300196207 | E94: =[1]!AgePb76($D$94) -> 6383.894587
A95: 15.46* | B95: 15.28 | C95: 35.17 | D95: 2.301701571 | E95: =[1]!AgePb76($D$95) -> 6384.778821
A96: CLR 17P 15.49 | B96: 15.31 | C96: 35.19 | D96: 2.298497714 | E96: =[1]!AgePb76($D$96) -> 6382.896191
A97: CLR 18 15.31 | B97: 15.13 | C97: 34.17 | D97: 2.258426966 | E97: =[1]!AgePb76($D$97) -> 6359.117245
A98: 15.3 | B98: 15.14 | C98: 34.17 | D98: 2.256935271 | E98: =[1]!AgePb76($D$98) -> 6358.2236
A99: CLR 19P 15.72 | B99: 15.19 | C99: 35.34 | D99: 2.326530612 | E99: =[1]!AgePb76($D$99) -> 6399.277142
A100: CLR 19 17.36 | B100: 15.46 | C100: 36.7 | D100: 2.373868047 | E100: =[1]!AgePb76($D$100) -> 6426.479102
A101: CLR 20 15.74 | B101: 15.07 | C101: 34.96 | D101: 2.319840743 | E101: =[1]!AgePb76($D$101) -> 6395.386618
A102: Nekweaga Bay area (NB series)
A103: NB 1P 15.75 | B103: 15.32 | C103: 35.33 | D103: 2.30613577 | E103: =[1]!AgePb76($D$103) -> 6387.379936
A104: NB 3 15.28 | B104: 15.11 | C104: 35.06 | D104: 2.32031767 | E104: =[1]!AgePb76($D$104) -> 6395.664362
A105: 15.27 | B105: 15.12 | C105: 35.04 | D105: 2.317460317 | E105: =[1]!AgePb76($D$105) -> 6393.999461
A106: NB 4 16.74 | B106: 15.21 | C106: 35.38 | D106: 2.326101249 | E106: =[1]!AgePb76($D$106) -> 6399.027793
A107: Hanson Lake area (HL series)
A108: HL 8P 15.54 | B108: 14.92 | C108: 33.86 | D108: 2.269436997 | E108: =[1]!AgePb76($D$108) -> 6365.694238
A109: HL 9P 15.72 | B109: 15.13 | C109: 34.87 | D109: 2.304692664 | E109: =[1]!AgePb76($D$109) -> 6386.533976
A110: HL 9 15.44 | B110: 14.95 | C110: 34.2 | D110: 2.287625418 | E110: =[1]!AgePb76($D$110) -> 6376.48711
A111: HL 10 15.89 | B111: 15.24 | C111: 35.19 | D111: 2.309055118 | E111: =[1]!AgePb76($D$111) -> 6389.089602
A112: 15.49* | B112: 15.23 | C112: 34.31 | D112: 2.252790545 | E112: =[1]!AgePb76($D$112) -> 6355.737355
A113: HL 12 16.45 | B113: 15.16 | C113: 34.73 | D113: 2.290897098 | E113: =[1]!AgePb76($D$113) -> 6378.419044
A114: HL 15P 17.39 | B114: 15.29 | C114: 35.14 | D114: 2.29823414 | E114: =[1]!AgePb76($D$114) -> 6382.74119
A115: }lin Flon area (FF series)
A116: FF 6 16.03 | B116: 15.28 | C116: 35.39 | D116: 2.316099476 | E116: =[1]!AgePb76($D$116) -> 6393.205787
A117: 15.94* | B117: 15.38 | C117: 35.39 | D117: 2.301040312 | E117: =[1]!AgePb76($D$117) -> 6384.390479
A118: FF 7 15.84 | B118: 14.96 | C118: 34.65 | D118: 2.316176471 | E118: =[1]!AgePb76($D$118) -> 6393.250705
A119: FF 19 15.96 | B119: 15.09 | C119: 34.97 | D119: 2.317428761 | E119: =[1]!AgePb76($D$119) -> 6393.981062
A120: FF 20 18.60 | B120: 15.63 | C120: 35.9 | D120: 2.296865003 | E120: =[1]!AgePb76($D$120) -> 6381.935739
D121: AVG | E121: =AVERAGE(E86:E120) -> 6385.837302
D122: MAX | E122: =MAX(E86:E120) -> 6461.618858
D123: MIN | E123: =MIN(E86:E120) -> 6338.489922
D124: STD DEV | E124: =STDEV(E86:E120) -> 22.48129688

Sheet Pb-206_12
B1: Pb-206/204 | C1: Pb-207/204 | D1: Pb-207/206 | E1: Pb-207/206 | H1: Geochimica et Cosmochimica Acta, Vol. 45. pp. 635 to 645, 1981
B2: Ratio | C2: Ratio | D2: Ratio | E2: Ages
B3: 42.06 | C3: 19.96 | D3: =(C3/B3) -> 0.4745601522 | E3: =[1]!AgePb76($D$3) -> 4164.066389
B4: 42.22 | C4: 20.05 | D4: =(C4/B4) -> 0.4748934154 | E4: =[1]!AgePb76($D$4) -> 4165.105719
B5: 72.54 | C5: 23.29 | D5: 0.3210642404 | E5: =[1]!AgePb76($D$5) -> 3574.939557
B6: 72.46 | C6: 23.22 | D6: 0.3204526635 | E6: =[1]!AgePb76($D$6) -> 3572.007944
B7: 142 | C7: 32.18 | D7: 0.2266197183 | E7: =[1]!AgePb76($D$7) -> 3028.327875
B8: 102.6 | C8: 26.83 | D8: 0.2615009747 | E8: =[1]!AgePb76($D$8) -> 3255.77131
B9: 50.92 | C9: 20.47 | D9: 0.4020031422 | E9: =[1]!AgePb76($D$9) -> 3916.587358
B10: 51.97 | C10: 20.65 | D10: 0.3973446219 | E10: =[1]!AgePb76($D$10) -> 3899.060817
B11: 53.44 | C11: 21.5 | D11: 0.4023203593 | E11: =[1]!AgePb76($D$11) -> 3917.772714
B12: 52.69 | C12: 21.41 | D12: 0.4063389638 | E12: =[1]!AgePb76($D$12) -> 3932.701236
B13: 35.82 | C13: 18.83 | D13: 0.5256839754 | E13: =[1]!AgePb76($D$13) -> 4314.894642
B14: 36.02 | C14: 18.95 | D14: 0.526096613 | E14: =[1]!AgePb76($D$14) -> 4316.046461
B15: 56.14 | C15: 20.92 | D15: 0.372639829 | E15: =[1]!AgePb76($D$15) -> 3802.185814
B16: 39.62 | C16: 18.51 | D16: 0.4671882887 | E16: =[1]!AgePb76($D$16) -> 4140.871278
B17: 24.66 | C17: 17.36 | D17: 0.703974047 | E17: =[1]!AgePb76($D$17) -> 4738.851756
B18: 24.56 | C18: 17.39 | D18: 0.7080618893 | E18: =[1]!AgePb76($D$18) -> 4747.166785
B19: 28.93 | C19: 17.85 | D19: 0.6170065676 | E19: =[1]!AgePb76($D$19) -> 4548.566215
B20: 28.95 | C20: 17.86 | D20: 0.616925734 | E20: =[1]!AgePb76($D$20) -> 4548.376246
B21: 74.68 | C21: 25.44 | D21: 0.3406534547 | E21: =[1]!AgePb76($D$21) -> 3665.703812
B22: 74.43 | C22: 25.33 | D22: 0.3403197635 | E22: =[1]!AgePb76($D$22) -> 3664.206471
B23: 41.21 | C23: 20.11 | D23: 0.4879883523 | E23: =[1]!AgePb76($D$23) -> 4205.32929
B24: 41.31 | C24: 20.18 | D24: 0.4885015735 | E24: =[1]!AgePb76($D$24) -> 4206.88182
B25: 782 | C25: 135 | D25: 0.1726342711 | E25: =[1]!AgePb76($D$25) -> 2583.347416
B26: 767.5 | C26: 133.5 | D26: 0.1739413681 | E26: =[1]!AgePb76($D$26) -> 2595.93309
B27: 145.4 | C27: 36.99 | D27: 0.2544016506 | E27: =[1]!AgePb76($D$27) -> 3212.36727
B28: 147.6 | C28: 37.59 | D28: 0.2546747967 | E28: =[1]!AgePb76($D$28) -> 3214.062314
B29: 861.9 | C29: 147.4 | D29: 0.1710175194 | E29: =[1]!AgePb76($D$29) -> 2567.626082
B30: 211.6 | C30: 53.2 | D30: 0.2514177694 | E30: =[1]!AgePb76($D$30) -> 3193.715888
D31: AVG | E31: =AVERAGE(E3:E30) -> 3774.731199
D32: MAX | E32: =MAX(E3:E30) -> 4747.166785
D33: MIN | E33: =MIN(E3:E30) -> 2567.626082
D34: STD DEV | E34: =STDEV(E3:E30) -> 629.9634111

Sheet Pb-206_13
A1: Table 3 | B1: Page 3531 | K1: 238/204 | M1: 206/204 | O1: 207/204 | P1: Pb-207/206 | Q1: Pb-207/206 | S1: Geochimica et Cosmochimica Acta, Vol. 62, No. 21/22, pp. 3527–3540, 1998
A2: Leach | B2: A | C2: =(A2 &"-" & B2) -> Leach-A | D2: 0.018 | E2: 0.658 | F2: 0.02 | G2: 1.426 | H2: 0.581 | I2: — | J2: — | K2: — | M2: — | N2: — | O2: — | P2: Ratio | Q2: Ages
A3: Leach | B3: B | C3: =(A3 &"-" & B3) -> Leach-B | D3: 0.048 | E3: 2.37 | F3: 0.071 | G3: 0.122 | H3: 0.05 | I3: 0.728 | J3: 2 | K3: 239.4 | M3: 19.847 | N3: -0.052 | O3: 15.693 | P3: =(O3/M3) -> 0.7906988462 | Q3: =[1]!AgePb76($P$3) -> 4905.074348 | R3: -0.191
A4: Leach | B4: C | C4: Leach-C | D4: 0.046 | E4: 2.655 | F4: 0.079 | G4: 0.058 | H4: 0.024 | I4: 0.667 | J4: 1.847 | K4: 547.4 | M4: 22.766 | N4: -0.17 | O4: 15.822 | P4: =(O4/M4) -> 0.6949837477 | Q4: =[1]!AgePb76($P$4) -> 4720.381705 | R4: -0.515
A5: Leach | B5: D | C5: Leach-D | D5: 0.043 | E5: 2.414 | F5: 0.072 | G5: 0.049 | H5: 0.02 | I5: 0.617 | J5: 1.618 | K5: 622.7 | M5: 23.379 | N5: -0.33 | O5: 15.953 | P5: 0.6823645152 | Q5: =[1]!AgePb76($P$5) -> 4694.020661 | R5: -0.972
A6: Leach | B6: D1 | C6: Leach-D1 | D6: 0.526 | E6: 25.33 | F6: 0.758 | G6: 0.685 | H6: 0.279 | I6: 10.11 | J6: 20.57 | K6: 541.7 | M6: 24.43 | N6: -0.045 | O6: 16.005 | P6: 0.6551371265 | Q6: =[1]!AgePb76($P$6) -> 4635.321428 | R6: -0.171
A7: Leach | B7: E | C7: Leach-E | D7: 0.318 | E7: 0.33 | F7: 0.01 | G7: 0.112 | H7: 0.045 | I7: 17.17 | J7: 1.263 | K7: 15146 | M7: 570.42 | N7: -3.524 | O7: 48.727 | P7: 0.08542302163 | Q7: =[1]!AgePb76($P$7) -> 1325.158694 | R7: -0.596
A8: Leach | B8: A | C8: Leach-A | D8: 0.023 | E8: 0.248 | F8: 0.067 | G8: 2.24 | H8: 0.852 | I8: 2.312 | J8: 7.211 | K8: 149.3 | M8: 17.997 | N8: -0.031 | O8: 15.673 | P8: 0.8708673668 | Q8: =[1]!AgePb76($P$8) -> 5042.300457 | R8: -0.129
A9: Leach | B9: B | C9: Leach-B | D9: 0.013 | E9: 0.129 | F9: 0.035 | G9: 0.032 | H9: 0.012 | I9: 0.039 | J9: 0.027 | K9: 2.312 | L9: 268.7 | M9: 18.561 | N9: -0.142 | O9: 15.546 | P9: 0.8375626313 | Q9: =[1]!AgePb76($P$9) -> 4986.991973 | R9: -0.348
A10: Leach | B10: C | C10: Leach-C | D10: 0.186 | E10: 1.622 | F10: 0.44 | G10: 0.063 | H10: 0.024 | I10: 0.643 | J10: 0.916 | K10: 802.5 | L10: 1984 | M10: 23.472 | N10: -0.154 | O10: 15.863 | P10: 0.6758265167 | Q10: =[1]!AgePb76($P$10) -> 4680.157192 | R10: -0.303
A11: Leach | B11: D | C11: Leach-D | D11: 0.044 | E11: 0.445 | F11: 0.121 | G11: 0.026 | H11: 0.01 | I11: 0.18 | J11: 0.294 | K11: 442.4 | L11: 1260 | M11: 21.555 | N11: -0.508 | O11: 15.974 | P11: 0.7410809557 | Q11: =[1]!AgePb76($P$11) -> 4812.50766 | R11: -0.689
A12: Leach | B12: D1 | C12: Leach-D1 | D12: 0.417 | E12: 1.243 | F12: 0.337 | G12: 0.233 | H12: 0.089 | I12: 2.091 | J12: 3.791 | K12: 488.3 | L12: 411.2 | M12: 22.814 | N12: -0.056 | O12: 15.863 | P12: 0.695318664 | Q12: =[1]!AgePb76($P$12) -> 4721.074341 | R12: -0.187
A13: Leach | B13: E | C13: Leach-E | D13: 0.318 | E13: — | F13: — | G13: 0.035 | H13: 0.013 | I13: 4.345 | J13: 0.343 | K13: 18853 | L13: — | M13: 525.87 | N13: -10.06 | O13: 48.021 | P13: 0.09131724571 | Q13: =[1]!AgePb76($P$13) -> 1453.226959 | R13: -1.293
P14: Average | Q14: =AVERAGE(Q3:Q13) -> 4179.655947
P15: Maximum | Q15: =MAX(Q3:Q13) -> 5042.300457
P16: Minimum | Q16: =MIN(Q3:Q13) -> 1325.158694
P17: Std Deviation | Q17: =STDEV(Q3:Q13) -> 1386.090602
A18: Table 3 | B18: Page 3531
A19: U238/Pb204 | B19: Th232/Pb204 | C19: Pb208/Pb204 | D19: Pb206/Pb204 | E19: 206-Pb/238-U | F19: 206-Pb/238-U | G19: 208-Pb/232-Th | H19: 208-Pb/232-Th | J19: Dating | K19: 206Pb/238U | L19: 208Pb/232Th | M19: Pb207/Pb206
A20: Ratio | B20: Ratio | C20: Ratio | D20: Ratio | E20: Ratio | F20: Age | G20: Ratio | H20: Age | J20: Summary | K20: Age | L20: Age | M20: Ages
J21: Average | K21: 1620.738044 | L21: 4084.078007 | M21: 4179.655947
A22: 239.4 | B22: 1377 | C22: 43.059 | D22: 19.847 | E22: =(D22/A22) -> 0.08290309106 | F22: =[1]!AgePb6U8(E22) -> 513.4277652 | G22: =(C22/B22) -> 0.03127015251 | H22: =[1]!AgePb8Th2(G22) -> 622.3587731 | J22: Maximum | K22: 14007.74335 | L22: 37154.25956 | M22: 5042.300457
A23: 547.4 | B23: 3687 | C23: 51.198 | D23: 22.766 | E23: =(D23/A23) -> 0.04158933138 | F23: =[1]!AgePb6U8(E23) -> 262.6768728 | G23: =(C23/B23) -> 0.01388608625 | H23: =[1]!AgePb8Th2(G23) -> 278.7379056 | J23: Minimum | K23: 177.3488787 | L23: 160.9635038 | M23: 1325.158694
A24: 622.7 | B24: 4033 | C24: 52.012 | D24: 23.379 | E24: 0.037544564 | F24: =[1]!AgePb6U8(E24) -> 237.5950069 | G24: 0.01289660303 | H24: =[1]!AgePb8Th2(G24) -> 259.0025264 | J24: Std Deviation | K24: 3930.740693 | L24: 11000.20628 | M24: 1386.090602
A25: 541.7 | B25: 3038 | C25: 50.639 | D25: 24.43 | E25: 0.04509876315 | F25: =[1]!AgePb6U8(E25) -> 284.3602975 | G25: 0.01666853193 | H25: =[1]!AgePb8Th2(G25) -> 334.1311093
A26: 15146 | B26: 1833 | C26: 77.001 | D26: 570.42 | E26: 0.03766142876 | F26: =[1]!AgePb6U8(E26) -> 238.3210637 | G26: 0.04200818331 | H26: =[1]!AgePb8Th2(G26) -> 831.7290907
A27: 149.3 | B27: 852.8 | C27: 0 | D27: 0 | E27: 0 | G27: 0
A28: 0 | B28: 0 | C28: 0 | D28: 0 | E28: 0 | G28: 0
A29: 0 | B29: 0 | C29: 0 | D29: 0 | E29: 0 | G29: 0 | V29: 4720
A30: 2.312 | B30: 7.211 | C30: 38.112 | D30: 17.997 | E30: =(D30/A30) -> 7.78416955 | F30: =[1]!AgePb6U8(E30) -> 14007.74335 | G30: =(C30/B30) -> 5.285258633 | H30: =[1]!AgePb8Th2(G30) -> 37154.25956 | V30: 4721
A31: 92.21 | B31: 268.7 | C31: 15.546 | D31: 18.561 | E31: 0.2012905325 | F31: =[1]!AgePb6U8(E31) -> 1182.2493 | G31: 0.05785634537 | H31: =[1]!AgePb8Th2(G31) -> 1136.827585 | V31: 4813
A32: 802.5 | B32: 1984 | C32: 15.863 | D32: 23.472 | E32: 0.02924859813 | F32: =[1]!AgePb6U8(E32) -> 185.843801 | G32: 0.00799546371 | H32: =[1]!AgePb8Th2(G32) -> 160.9635038 | V32: 4835
A33: 442.4 | B33: 1260 | C33: 15.974 | D33: 21.555 | E33: 0.04872287523 | F33: =[1]!AgePb6U8(E33) -> 306.6760004 | G33: 0.01267777778 | H33: =[1]!AgePb8Th2(G33) -> 254.6354235 | V33: 4882
A34: 488.3 | B34: 411.2 | C34: 15.863 | D34: 22.814 | E34: 0.0467212779 | F34: =[1]!AgePb6U8(E34) -> 294.3605881 | G34: 0.03857733463 | H34: =[1]!AgePb8Th2(G34) -> 765.0698168 | V34: 4897
A35: 18853 | B35: 0 | C35: 48.021 | D35: 525.87 | E35: 0.0278931735 | F35: =[1]!AgePb6U8(E35) -> 177.3488787 | G35: =(B35/C35) -> 0 | V35: 4905
A36: 61.53 | B36: 94.08 | C36: 15.742 | D36: 19.294 | E36: 0.313570616 | F36: =[1]!AgePb6U8(E36) -> 1758.253604 | G36: 0.1673256803 | H36: =[1]!AgePb8Th2(G36) -> 3127.142782 | V36: 4961
E37: Average | F37: =AVERAGE(F22:F36) -> 1620.738044 | G37: Average | H37: =AVERAGE(H22:H36) -> 4084.078007 | V37: 4981
E38: Maximum | F38: =MAX(F22:F36) -> 14007.74335 | G38: Maximum | H38: =MAX(H22:H36) -> 37154.25956 | V38: 4981
E39: Minimum | F39: =MIN(F22:F36) -> 177.3488787 | G39: Minimum | H39: =MIN(H22:H36) -> 160.9635038 | V39: 4986
E40: Std Deviation | F40: =STDEV(F22:F36) -> 3930.740693 | G40: Std Deviation | H40: =STDEV(H22:H36) -> 11000.20628 | V40: 4987
V41: 5000
V42: 5042
A43: Table 2 | B43: Page 3529 | V43: 7832
B44: 238U/ | C44: 232Th/ | D44: 206Pb/ | E44: 207Pb/ | F44: 208Pb/ | G44: 208Pb/ | V44: 8025
A45: Sample | B45: 204Pb | C45: 204Pb | D45: 204Pb | E45: 204Pb | F45: 204Pb | G45: 204Pb | H45: 206-Pb/238-U | I45: 206-Pb/238-U | J45: 208-Pb/232-Th | K45: 208-Pb/232-Th | L45: 207Pb/206Pb | M45: 207Pb/206Pb | V45: 13524
A46: Number | B46: Ratio | C46: Ratio | D46: Ratio | E46: Ratio | F46: Ratio | G46: Ratio | H46: Ratio | I46: Age | J46: Ratio | K46: Age | L46: Ratio | M46: Age | V46: 14008
A47: WR | B47: 7.59 | C47: 38.01 | D47: 18.766 | E47: 15.649 | F47: 39.17 | G47: 39.17 | H47: =(D47/B47) -> 2.472463768 | I47: =[1]!AgePb6U8(H47) -> 8024.911276 | J47: =(F47/C47) -> 1.030518285 | K47: =[1]!AgePb8Th2(J47) -> 14316.14094 | L47: =(E47/D47) -> 0.8339017372 | M47: =[1]!AgePb76($L$47) -> 4980.770344 | V47: 14316
A48: plag | B48: 0.209 | C48: 0 | D48: 18.696 | E48: 15.653 | F48: 39.157 | G48: 39.157 | H48: =(D48/B48) -> 89.45454545 | I48: =[1]!AgePb6U8(H48) -> 29040.11258 | J48: 0 | L48: =(E48/D48) -> 0.8372379119 | M48: =[1]!AgePb76($L$48) -> 4986.441287 | V48: 19484
A49: grt core 1 | B49: 635.7 | C49: 442.8 | D49: 40.512 | E49: 17.23 | F49: 41.638 | G49: 41.638 | H49: 0.06372817367 | I49: =[1]!AgePb6U8(H49) -> 398.2587101 | J49: =(F49/C49) -> 0.09403342367 | K49: =[1]!AgePb8Th2(J49) -> 1816.498339 | L49: 0.4253060821 | M49: =[1]!AgePb76($L$49) -> 4001.047962 | V49: 29040
A50: grt core 2 | B50: 166.6 | C50: 2131 | D50: 20.98 | E50: 15.797 | F50: 49.786 | G50: 49.786 | H50: 0.1259303721 | I50: =[1]!AgePb6U8(H50) -> 764.6071964 | J50: 0.0233627405 | K50: =[1]!AgePb8Th2(J50) -> 466.7813878 | L50: 0.7529551954 | M50: =[1]!AgePb76($L$50) -> 4835.248867 | V50: 37154
A51: grt rim | B51: 164.1 | C51: 395.6 | D51: 24.042 | E51: 15.979 | F51: 39.931 | G51: 39.931 | H51: 0.1465082267 | I51: =[1]!AgePb6U8(H51) -> 881.3601855 | J51: 0.100937816 | K51: =[1]!AgePb8Th2(J51) -> 1943.655918 | L51: 0.6646285667 | M51: =[1]!AgePb76($L$51) -> 4656.075715 | V51: =COUNT(V29:V50) -> 22
A52: WR | B52: 7.926 | C52: 41.17 | D52: 18.784 | E52: 15.663 | F52: 39.213 | G52: 39.213 | H52: 2.369921776 | I52: =[1]!AgePb6U8(H52) -> 7831.681111 | J52: 0.9524653874 | K52: =[1]!AgePb8Th2(J52) -> 13523.85801 | L52: 0.8338479557 | M52: =[1]!AgePb76($L$52) -> 4980.678727
A53: plag | B53: 0.949 | C53: 0 | D53: 18.546 | E53: 15.674 | F53: 39.009 | G53: 39.009 | H53: 19.5426765 | I53: =[1]!AgePb6U8(H53) -> 19484.31589 | J53: 0 | L53: 0.8451418096 | M53: =[1]!AgePb76($L$53) -> 4999.781335
A54: grt core 1 | B54: 962.1 | C54: 3692 | D54: 42.314 | E54: 17.094 | F54: 56.425 | G54: 56.425 | H54: 0.04398087517 | I54: =[1]!AgePb6U8(H54) -> 277.4612119 | J54: 0.01528304442 | K54: =[1]!AgePb8Th2(J54) -> 306.5676628 | L54: 0.4039797703 | M54: =[1]!AgePb76($L$54) -> 3923.956871
A55: grt core 2 | B55: 519 | C55: 3168 | D55: 26.458 | E55: 16.081 | F55: 56.034 | G55: 56.034 | H55: 0.05097880539 | I55: =[1]!AgePb6U8(H55) -> 320.5281261 | J55: 0.0176875 | K55: =[1]!AgePb8Th2(J55) -> 354.3789094 | L55: 0.607793484 | M55: =[1]!AgePb76($L$55) -> 4526.740468
A56: grt core 3 | B56: 589 | C56: 3772 | D56: 25.24 | E56: 15.966 | F56: 54.114 | G56: 54.114 | H56: 0.04285229202 | I56: =[1]!AgePb6U8(H56) -> 270.4886227 | J56: 0.01434623542 | K56: =[1]!AgePb8Th2(J56) -> 287.9090841 | L56: 0.6325673534 | M56: =[1]!AgePb76($L$56) -> 4584.646807
A57: grt outer core | B57: 177.6 | C57: 242.4 | D57: 20.225 | E57: 15.737 | F57: 39.637 | G57: 39.637 | H57: 0.1138795045 | I57: =[1]!AgePb6U8(H57) -> 695.2391358 | J57: 0.1635189769 | K57: =[1]!AgePb8Th2(J57) -> 3061.122058 | L57: 0.7780964153 | M57: =[1]!AgePb76($L$57) -> 4882.162228
A58: grt rim 1 | B58: 151.8 | C58: 390.4 | D58: 19.965 | E58: 15.693 | F58: 39.692 | G58: 39.692 | H58: 0.1315217391 | I58: =[1]!AgePb6U8(H58) -> 796.5408449 | J58: 0.101670082 | K58: =[1]!AgePb8Th2(J58) -> 1957.095195 | L58: 0.7860255447 | M58: =[1]!AgePb76($L$58) -> 4896.623611
A59: grt rim 2 | B59: 176.3 | C59: 575.6 | D59: 19.009 | E59: 15.636 | F59: 39.237 | G59: 39.237 | H59: 0.1078218945 | I59: =[1]!AgePb6U8(H59) -> 660.0859331 | J59: 0.06816712995 | K59: =[1]!AgePb8Th2(J59) -> 1332.879576 | L59: 0.8225577358 | M59: =[1]!AgePb76($L$59) -> 4961.305446
H60: Average | I60: =AVERAGE(I47:I59) -> 5341.968525 | J60: Average | K60: =AVERAGE(K47:K59) -> 3578.807917 | L60: Average | M60: =AVERAGE(M47:M59) -> 4708.883051
H61: Maximum | I61: =MAX(I47:I59) -> 29040.11258 | J61: Maximum | K61: =MAX(K47:K59) -> 14316.14094 | L61: Maximum | M61: =MAX(M47:M59) -> 4999.781335
H62: Minimum | I62: =MIN(I47:I59) -> 270.4886227 | J62: Minimum | K62: =MIN(K47:K59) -> 287.9090841 | L62: Minimum | M62: =MIN(M47:M59) -> 3923.956871
H63: Std Deviation | I63: =STDEV(I47:I59) -> 9041.807708 | J63: Std Deviation | K63: =STDEV(K47:K59) -> 5191.677637 | L63: Std Deviation | M63: =STDEV(M47:M59) -> 367.7581126
H68: Dating | I68: 206Pb/238U | J68: 208Pb/232Th | K68: Pb207/Pb206
H69: Summary | I69: Age | J69: Age | K69: Ages
H70: Average | I70: 5341.968525 | J70: 3578.807917 | K70: 4708.883051
H71: Maximum | I71: 29040.11258 | J71: 14316.14094 | K71: 4999.781335
H72: Minimum | I72: 270.4886227 | J72: 287.9090841 | K72: 3923.956871
H73: Std Deviation | I73: 9041.807708 | J73: 5191.677637 | K73: 367.7581126

Sheet Pb-206_14
F1: 206Pb/204Pb | H1: 207Pb/204Pb | J1: Pb-207/206 | K1: Pb-207/206 | S1: Geochimica et Cosmochimica Acta, Vol. 63, No. 3/4, pp. 473–488, 1999
F2: Ratio | H2: Ratio | J2: Ratio | K2: Ages
A3: GGU | B3: 242573a | C3: Mgt | D3: bulk | E3: [m] | F3: 12.4 | G3: 0.015 | H3: 13.816 | I3: 0.017 | J3: =(H3/F3) -> 1.114193548 | K3: =[1]!AgePb76($J$3) -> 5388.854961 | L3: 0.972 | M3: 0.963 | N3: 0.011 | O3: 1.537
A4: GGU | B4: 242573a | C4: Mgt | D4: 1N | E4: HBr | F4: 16.267 | G4: 0.04 | H4: 14.954 | I4: 0.037 | J4: =(H4/F4) -> 0.9192844409 | K4: =[1]!AgePb76($J$4) -> 5118.826126 | L4: 36.204 | M4: 0.091 | N4: 0.984 | O4: 0.982
A5: GGU | B5: 242573a | C5: Mgt | D5: 4N | E5: HBr | F5: 14.557 | G5: 0.044 | H5: 14.361 | I5: 0.044 | J5: 0.9865356873 | K5: =[1]!AgePb76($J$5) -> 5218.316969 | L5: 34.302 | M5: 0.107 | N5: 0.991 | O5: 0.973
A6: GGU | B6: 242573a | C6: Mgt | D6: 8.8N | E6: HBr | F6: 12.343 | G6: 0.024 | H6: 13.754 | I6: 0.03 | J6: 1.114315807 | K6: =[1]!AgePb76($J$6) -> 5389.008216 | L6: 32.071 | M6: 0.067 | N6: 0.928 | O6: 0.965
A7: GGU | B7: 242573a | C7: Mgt | D7: 7N | E7: HNO3 | F7: 13.35 | G7: 0.042 | H7: 14.104 | I7: 0.045 | J7: 1.056479401 | K7: =[1]!AgePb76($J$7) -> 5314.455241 | L7: 33.271 | M7: 0.108 | N7: 0.99 | O7: 0.978
A8: GGU | B8: 242573a | C8: Mgt | D8: residue | E8: — | F8: 13.384 | G8: 0.025 | H8: 14.136 | I8: 0.028 | J8: 1.056186491 | K8: =[1]!AgePb76($J$8) -> 5314.066804 | L8: 33.287 | M8: 0.065 | N8: 0.945 | O8: 0.97
A9: GGU | B9: 242573a | C9: Mgt | D9: 1N | E9: HBr | F9: 16.488 | G9: 0.033 | H9: 15.019 | I9: 0.031 | J9: 0.9109049005 | K9: =[1]!AgePb76($J$9) -> 5105.892158 | L9: 36.348 | M9: 0.077 | N9: 0.984 | O9: 0.979
A10: GGU | B10: 242573a | C10: Mgt | D10: 1N | E10: HBr | F10: 14.973 | G10: 0.039 | H10: 14.488 | I10: 0.038 | J10: 0.9676083617 | K10: =[1]!AgePb76($J$10) -> 5191.059745 | L10: 34.778 | M10: 0.094 | N10: 0.986 | O10: 0.976
A11: GGU | B11: 242573a | C11: Mgt | D11: 1.5N | E11: HBr | F11: 14.302 | G11: 0.049 | H11: 14.253 | I11: 0.049 | J11: 0.9965739057 | K11: =[1]!AgePb76($J$11) -> 5232.549453 | L11: 34.036 | M11: 0.118 | N11: 0.993 | O11: 0.989
A12: GGU | B12: 242573a | C12: Mgt | D12: 1.5N | E12: HBr | F12: 14.394 | G12: 0.04 | H12: 14.299 | I12: 0.04 | J12: 0.9934000278 | K12: =[1]!AgePb76($J$12) -> 5228.065882 | L12: 34.17 | M12: 0.098 | N12: 0.987 | O12: 0.974
A13: GGU | B13: 242573a | C13: Mgt | D13: 4N | E13: HBr | F13: 12.667 | G13: 0.014 | H13: 13.699 | I13: 0.016 | J13: 1.08147154 | K13: =[1]!AgePb76($J$13) -> 5347.18633 | L13: 32.289 | M13: 0.04 | N13: 0.95 | O13: 0.936
A14: GGU | B14: 242573a | C14: Mgt | D14: 8N | E14: HBr | F14: 12.244 | G14: 0.03 | H14: 13.776 | I14: 0.035 | J14: 1.125122509 | K14: =[1]!AgePb76($J$14) -> 5402.485252 | L14: 32.125 | M14: 0.082 | N14: 0.99 | O14: 0.987
A15: GGU | B15: 242573a | C15: Trem | D15: bulk | E15: [t] | F15: 13.287 | G15: 0.074 | H15: 14.038 | I15: 0.079 | J15: 1.056521412 | K15: =[1]!AgePb76($J$15) -> 5314.510945 | L15: 0.993 | M15: 0.992 | N15: 0.0057 | O15: 0.305
A16: GGU | B16: 242573a | C16: Trem | D16: 1N | E16: HBr | F16: 16.785 | G16: 0.043 | H16: 15.132 | I16: 0.039 | J16: 0.9015192136 | K16: =[1]!AgePb76($J$16) -> 5091.25461 | L16: 36.629 | M16: 0.096 | N16: 0.988 | O16: 0.984
A17: GGU | B17: 242573a | C17: Trem | D17: mix | E17: 309 | F17: 14.112 | G17: 0.055 | H17: 14.254 | I17: 0.056 | J17: 1.010062358 | K17: =[1]!AgePb76($J$17) -> 5251.436976 | L17: 0.136 | M17: 0.996 | N17: 0.994
A18: GGU | B18: 242573a | C18: Trem | D18: 4N | E18: HBr | F18: 14.023 | G18: 0.054 | H18: 14.248 | I18: 0.056 | J18: 1.016045069 | K18: =[1]!AgePb76($J$18) -> 5259.729242 | L18: 33.904 | M18: 0.134 | N18: 0.99 | O18: 0.989
A19: GGU | B19: 242573a | C19: Trem | D19: 8N | E19: HBr | F19: 13.302 | G19: 0.044 | H19: 13.998 | I19: 0.047 | J19: 1.052322959 | K19: =[1]!AgePb76($J$19) -> 5308.932572 | L19: 33.439 | M19: 0.113 | N19: 0.99 | O19: 0.994
A20: GGU | B20: 242573a | C20: Trem | D20: 7N | E20: HhNO3 | F20: 13.941 | G20: 0.045 | H20: 14.273 | I20: 0.047 | J20: 1.023814647 | K20: =[1]!AgePb76($J$20) -> 5270.421506 | L20: 33.782 | M20: 0.111 | N20: 0.987 | O20: 0.986
A21: GGU | B21: 242573a | C21: Trem | D21: residue | E21: — | F21: 12.524 | G21: 0.052 | H21: 13.846 | I21: 0.059 | J21: 1.10555733 | K21: =[1]!AgePb76($J$21) -> 5377.98407 | L21: 0.141 | M21: 0.986 | N21: 0.974
A22: GGU | B22: 242573b | C22: Mgt, | D22: vein | E22: bulk | F22: 14.371 | G22: 0.05 | H22: 14.47 | I22: 0.051 | J22: 1.006888873 | K22: =[1]!AgePb76($J$22) -> 5247.017313 | L22: 0.121 | M22: 0.991 | N22: 0.99
A23: GGU | B23: 242573b | C23: Mgt, | D23: vein | E23: 1N | F23: 16.732 | G23: 0.016 | H23: 15.219 | I23: 0.016 | J23: 0.9095744681 | K23: =[1]!AgePb76($J$23) -> 5103.827018 | L23: 36.637 | M23: 0.041 | N23: 0.963 | O23: 0.943 | P23: 0.943
A24: GGU | B24: 242573b | C24: Mgt, | D24: vein | E24: 4N | F24: 15.23 | G24: 0.028 | H24: 14.776 | I24: 0.028 | J24: 0.9701904137 | K24: =[1]!AgePb76($J$24) -> 5194.811215 | L24: 35.226 | M24: 0.069 | N24: 0.983 | O24: 0.977 | P24: 0.977
A25: GGU | B25: 242573b | C25: Mgt, | D25: vein | E25: 8N | F25: 12.345 | G25: 0.02 | H25: 13.775 | I25: 0.023 | J25: 1.115836371 | K25: =[1]!AgePb76($J$25) -> 5390.912818 | L25: 32.144 | M25: 0.056 | N25: 0.976 | O25: 0.972 | P25: 0.972
A26: GGU | B26: 242573b | C26: Mgt, | D26: vein | E26: 8N | F26: 12.662 | G26: 0.021 | H26: 13.856 | I26: 0.024 | J26: 1.094297899 | K26: =[1]!AgePb76($J$26) -> 5363.675981 | L26: 32.664 | M26: 0.058 | N26: 0.977 | O26: 0.97 | P26: 0.97
A27: GGU | B27: 242573b | C27: Mgt, | D27: vein | E27: 8N | F27: 12.46 | G27: 0.044 | H27: 13.805 | I27: 0.05 | J27: 1.107945425 | K27: =[1]!AgePb76($J$27) -> 5380.999029 | L27: 32.292 | M27: 0.117 | N27: 0.99 | O27: 0.981 | P27: 0.981
A28: GGU | B28: 242573b | C28: Py | D28: bulk | E28: — | F28: 13.975 | G28: 0.009 | H28: 14.291 | I28: 0.011 | J28: 1.022611807 | K28: =[1]!AgePb76($J$28) -> 5268.771811 | L28: 0.03 | M28: 0.921 | N28: 0.917
A29: 940081 | B29: Mgt | C29: 1N | D29: HBr | E29: 2h | F29: 21.205 | G29: 0.09 | H29: 16.268 | I29: 0.07 | J29: 0.7671775525 | K29: =[1]!AgePb76($J$29) -> 4861.989089 | L29: 0.185 | M29: 0.995 | N29: 0.994
A30: 940081 | B30: Mgt | C30: 4N | D30: HBr | E30: 6h | F30: 36.003 | G30: 0.248 | H30: 19.28 | I30: 0.133 | J30: 0.5355109296 | K30: =[1]!AgePb76($J$30) -> 4342.063203 | L30: 0.425 | M30: 0.997 | N30: 0.996
A31: 940081 | B31: Mgt | C31: 8N | D31: HBr | E31: 12h | F31: 26.437 | G31: 0.065 | H31: 17.331 | I31: 0.044 | J31: 0.6555584976 | K31: =[1]!AgePb76($J$31) -> 4636.249626 | L31: 0.106 | M31: 0.991 | N31: 0.983
A32: 940081 | B32: Mgt | C32: 8N | D32: HBr | E32: 24h | F32: 22.333 | G32: 0.11 | H32: 16.539 | I32: 0.082 | J32: 0.740563292 | K32: =[1]!AgePb76($J$32) -> 4811.507422 | L32: 0.199 | M32: 0.993 | N32: 0.99
A33: 940081 | B33: Mgt | C33: 8N | D33: HBr | E33: 36h | F33: 26.045 | G33: 0.13 | H33: 17.115 | I33: 0.086 | J33: 0.6571318871 | K33: =[1]!AgePb76($J$33) -> 4639.709853 | L33: 0.221 | M33: 0.996 | N33: 0.99
J34: AVG | K34: =AVERAGE(K3:K33) -> 5173.115208
J35: MAX | K35: =MAX(K3:K33) -> 5402.485252
J36: MIN | K36: =MIN(K3:K33) -> 4342.063203
J37: STD DEV | K37: =STDEV(K3:K33) -> 256.9247699

Sheet Pb-206_15
A1: Table 1. | H1: Pb-207/206 | I1: Pb-207/206 | L1: Geochimica et Cosmochimica Acta, Vol. 61, No. 8, pp. 1713-1731, 1997
A2: Moama | H2: Ratio | I2: Ages
A3: Whole Rock | B3: 314 | C3: 70 | D3: 0.38 | E3: 19.044 | F3: 16.423 | G3: 0.052503 | H3: 0.86254 | I3: =[1]!AgePb76($H$3) -> 5028.684635
A4: *HBr leach | C4: 274 | D4: 0.32 | E4: 17.106 | F4: 15.47 | G4: 0.058465 | H4: 0.90445 | I4: =[1]!AgePb76($H$4) -> 5095.842628
A5: HF-HBr leach | C5: 67 | D5: 0.38 | E5: 17.184 | F5: 15.518 | G5: 0.058219 | H5: 0.90347 | I5: =[1]!AgePb76($H$5) -> 5094.310237
A6: Pyroxene (HBr, HF-HBr) | B6: 149 | C6: 59 | D6: 0.54 | E6: 21.015 | F6: 17.721 | G6: 0.04753 | H6: 0.84337 | I6: =[1]!AgePb76($H$6) -> 4996.802468
A7: Plagioclase (HBr, HF-HBr) | B7: 104 | C7: 49 | D7: 0.77 | E7: 15.941 | F7: 14.799 | G7: 0.062876 | H7: 0.92997 | I7: =[1]!AgePb76($H$7) -> 5135.139442
A8: Moore County***
A9: *Whole Rock I (2 mm depth) | B9: 129 | C9: 285 | D9: 0.78 | E9: 21.041 | F9: 16.924 | G9: 0.047511 | H9: 0.80426 | I9: =[1]!AgePb76($H$9) -> 4929.299268
A10: Whole Rock A (10 mm depth) | B10: 103 | C10: 25 | D10: 0.97 | E10: 48.52 | F10: 33.803 | G10: 0.19661 | H10: 0.69289 | I10: =[1]!AgePb76($H$10) -> 4716.043549
A11: *HBr leach 1 | C11: 172 | D11: 0.97 | E11: 19.343 | F11: 16.014 | G11: 0.051682 | H11: 0.82776 | I11: =[1]!AgePb76($H$11) -> 4970.267079
A12: *HBr leach 2 | C12: 4 | D12: 0.97 | E12: 18.813 | F12: 15.59 | G12: 0.052787 | H12: 0.82417 | I12: =[1]!AgePb76($H$12) -> 4964.089226
A13: Whole Rock B (10 mm depth) | B13: 684 | C13: 25 | D13: 0.23 | E13: 45.891 | F13: 32.208 | G13: 0.021562 | H13: 0.70092 | I13: =[1]!AgePb76($H$13) -> 4732.605811
A14: *HBr leach 1 | C14: 216 | D14: 0.15 | E14: 19.335 | F14: 15.901 | G14: 0.051717 | H14: 0.82239 | I14: =[1]!AgePb76($H$14) -> 4961.015495
A15: *HBr leach 2 | C15: 21 | D15: 0.15 | E15: 18.744 | F15: 15.534 | G15: 0.053342 | H15: 0.82864 | I15: =[1]!AgePb76($H$15) -> 4971.777082
A16: *HBr leach 3 | C16: 22 | D16: 0.15 | E16: 19.048 | F16: 15.7 | G16: 0.052256 | H16: 0.82168 | I16: =[1]!AgePb76($H$16) -> 4959.787483
A17: flf-HBr leach | C17: 22 | D17: 0.15 | E17: 21.815 | F17: 17.807 | G17: 0.046122 | H17: 0.81617 | I17: =[1]!AgePb76($H$17) -> 4950.218889
A18: *Pyroxene II (HBr) | B18: 3 | C18: 692 | D18: 20 | E18: 22.731 | F18: 17.781 | G18: 0.043727 | H18: 0.78098 | I18: =[1]!AgePb76($H$18) -> 4887.439479
A19: Pyroxene IVA (HBr) | B19: 11 | C19: 94 | D19: 5.5 | E19: 29.378 | F19: 22.432 | G19: 0.03306 | H19: 0.76031 | I19: =[1]!AgePb76($H$19) -> 4849.143606
A20: Pyroxene IVB (HBr) | B20: 38 | C20: 98 | D20: 2 | E20: 32.501 | F20: 23.943 | G20: 0.030378 | H20: 0.73511 | I20: =[1]!AgePb76($H$20) -> 4800.924936
A21: *Plagioclase III | B21: 207 | C21: 39 | D21: 0.72 | E21: 20.517 | F21: 16.425 | G21: 0.048638 | H21: 0.79975 | I21: =[1]!AgePb76($H$21) -> 4921.291404
A22: *HBr leach | C22: 44 | D22: 0.48 | E22: 19.962 | F22: 16.056 | G22: 0.050047 | H22: 0.80387 | I22: =[1]!AgePb76($H$22) -> 4928.608682
A23: Plagioclase IV | B23: 52 | C23: 22 | D23: 1.1 | E23: 17.774 | F23: 15.665 | G23: 0.056386 | H23: 0.88416 | I23: =[1]!AgePb76($H$23) -> 5063.751078
A24: *HBr leach 1 | C24: 31 | D24: 1.1 | E24: 20.076 | F24: 16.784 | G24: 0.049653 | H24: 0.83623 | I24: =[1]!AgePb76($H$24) -> 4984.730539
A25: *HBr leach 2 | C25: 5 | D25: 1.1 | E25: 20.354 | F25: 16.45 | G25: 0.048017 | H25: 0.8032 | I25: =[1]!AgePb76($H$25) -> 4927.421457
A26: Serra de Mage
A27: Whole Rock | B27: 220 | C27: 24 | D27: 0.41 | E27: 27.875 | F27: 22.091 | G27: 0.035619 | H27: 0.79195 | I27: =[1]!AgePb76($H$27) -> 4907.327789
A28: *HBr leach | C28: 20 | D28: 0.41 | E28: 18.659 | F28: 15.959 | G28: 0.053584 | H28: 0.85582 | I28: =[1]!AgePb76($H$28) -> 5017.594832
A29: *HF-HBr leach | C29: 36 | D29: 0.41 | E29: 19.077 | F29: 16.069 | G29: 0.052401 | H29: 0.84245 | I29: =[1]!AgePb76($H$29) -> 4995.253088
A30: Pyroxene (HBr) | B30: 219 | C30: 33 | D30: 0.46 | E30: 91.896 | F30: 57.185 | G30: 0.010513 | H30: 0.6205 | I30: =[1]!AgePb76($H$30) -> 4556.750763
A31: Plagioclase (HBr) | B31: 207 | C31: 80 | D31: 0.48 | E31: 18.945 | F31: 16.663 | G31: 0.052778 | H31: 0.87988 | I31: =[1]!AgePb76($H$31) -> 5056.881908
H32: AVG | I32: =AVERAGE(I1:I31) -> 4940.851958
H33: MAX | I33: =MAX(I1:I31) -> 5135.139442
H34: MIN | I34: =MIN(I1:I31) -> 4556.750763
H35: STD DEV | I35: =STDEV(I1:I31) -> 126.0299422
A38: Table 2. | H38: Pb-207/206 | I38: Pb-207/206
A39: Bereba | H39: Ratio | I39: Ages
A40: Whole Rock | B40: 332 | C40: 96 | D40: 0.6 | E40: 607.58 | F40: 375.96 | G40: 0.0014494 | H40: 0.61799 | I40: =[1]!AgePb76($H$40) -> 4550.87526
A41: HBr leach | C41: 11 | D41: 0.3 | E41: 173.67 | F41: 116.78 | G41: 0.0046369 | H41: 0.66878 | I41: =[1]!AgePb76($H$41) -> 4665.053798
A42: HF-HBr leach | C42: 81 | D42: 0.45 | E42: 87.883 | F42: 51.068 | G42: 0.011134 | H42: 0.57966 | I42: =[1]!AgePb76($H$42) -> 4457.823633
A43: Plagioclase | B43: 35 | C43: 154 | D43: 1.7 | E43: 29.467 | F43: 26.362 | G43: 0.033739 | H43: 0.89527 | I43: =[1]!AgePb76($H$43) -> 5081.418707
A44: HBr leach | C44: 176 | D44: 1.7 | E44: 21.83 | F44: 18.14 | G44: 0.045723 | H44: 0.83101 | I44: =[1]!AgePb76($H$44) -> 4975.835331
A45: Glass | B45: 90 | C45: 120 | D45: 0.67 | E45: 49.486 | F45: 29.296 | G45: 0.020027 | H45: 0.59073 | I45: =[1]!AgePb76($H$45) -> 4485.361732
A46: 2 N HBr leach | C46: 26 | D46: 0.67 | E46: 32.806 | F46: 22.827 | G46: 0.029969 | H46: 0.69288 | I46: =[1]!AgePb76($H$46) -> 4716.022796
A47: Bouvante
A48: Whole Rock (HBr) | B48: 210 | C48: 90 | D48: 0.48 | E48: 219.42 | F48: 139.98 | G48: 0.004348 | H48: 0.63716 | I48: =[1]!AgePb76($H$48) -> 4595.113899
A49: Pyroxene | B49: 286 | C49: 125 | D49: 0.41 | E49: 1921.5 | F49: 1167.5 | G49: 0.0004391 | H49: 0.60721 | I49: =[1]!AgePb76($H$49) -> 4525.34625
A50: HF-HBr leach | C50: 88 | D50: 0.41 | E50: 289.02 | F50: 181.65 | G50: 0.0033429 | H50: 0.62804 | I50: =[1]!AgePb76($H$50) -> 4574.248419
A51: Plagioclase-A | B51: 68 | C51: 87 | D51: 1.1 | E51: 689.43 | F51: 420.83 | G51: 0.0011241 | H51: 0.60905 | I51: =[1]!AgePb76($H$51) -> 4529.737999
A52: *HF-HBr leach | C52: 206 | D52: 1.1 | E52: 120.81 | F52: 78.348 | G52: 0.008137 | H52: 0.64797 | I52: =[1]!AgePb76($H$52) -> 4619.43494
A53: Plagioclase-B | B53: 45 | C53: 74 | D53: 2.5 | E53: 242.7 | F53: 151.6 | G53: 0.0032256 | H53: 0.62095 | I53: =[1]!AgePb76($H$53) -> 4557.801442
A54: HF-HBr leach | C54: 123 | D54: 2.5 | E54: 72.707 | F54: 51.935 | G54: 0.013227 | H54: 0.71279 | I54: =[1]!AgePb76($H$54) -> 4756.720442
A55: Cachari
A56: Whole Rock | B56: 179 | C56: 279 | D56: 0.84 | E56: 55.488 | F56: 37.675 | G56: 0.017939 | H56: 0.67864 | I56: =[1]!AgePb76($H$56) -> 4686.140544
A57: Devitrified Glass | B57: 192 | C57: 828 | D57: 0.78 | E57: 27.2 | F57: 20.766 | G57: 0.03675 | H57: 0.7634 | I57: =[1]!AgePb76($H$57) -> 4854.938565
A58: Shocked Plagioclase | B58: 283 | C58: 111 | D58: 0.53 | E58: 211.45 | F58: 127.91 | G58: 0.0043544 | H58: 0.60309 | I58: =[1]!AgePb76($H$58) -> 4515.46047
A59: Mafic Glass | B59: 31 | C59: 238 | D59: 3.2 | E59: 175.55 | F59: 105.47 | G59: 0.00524 | H59: 0.59863 | I59: =[1]!AgePb76($H$59) -> 4504.676721
A60: HBr leach 1 | C60: 63 | D60: 3.2 | E60: 19.138 | F60: 15.94 | G60: 0.052131 | H60: 0.83222 | I60: =[1]!AgePb76($H$60) -> 4977.902524
A61: HBr leach 2 | C61: 14 | D61: 3.2 | E61: 14.444 | F61: 12.518 | G61: 0.072593 | H61: 0.87123 | I61: =[1]!AgePb76($H$61) -> 5042.890244
A62: Plagioclase | B62: 42 | C62: 100 | D62: 2.3 | E62: 56.491 | F62: 48.417 | G62: 0.016984 | H62: 0.85761 | I62: =[1]!AgePb76($H$62) -> 5020.557821
A63: HBr leach 1 | C63: 74 | D63: 2.3 | E63: 30.833 | F63: 21.912 | G63: 0.031748 | H63: 0.70645 | I63: =[1]!AgePb76($H$63) -> 4743.894202
A64: Nuevo Laredo Whole Rock | B64: 208 | C64: 147 | D64: 0.58 | E64: 509.99 | F64: 315.78 | G64: 0.0018365 | H64: 0.61869 | I64: =[1]!AgePb76($H$64) -> 4552.516419
A65: HBr leach | C65: 134 | D65: 0.58 | E65: 157.42 | F65: 101.67 | G65: 0.0061905 | H65: 0.64523 | I65: =[1]!AgePb76($H$65) -> 4613.311696
A66: HF-HBr leach | C66: 32 | D66: 0.58 | E66: 106.61 | F66: 71.757 | G66: 0.0088182 | H66: 0.67112 | I66: =[1]!AgePb76($H$66) -> 4670.088133
A67: Pyroxene | B67: 53 | C67: 139 | D67: 1.5 | E67: 184.93 | F67: 117.31 | G67: 0.0050816 | H67: 0.63307 | I67: =[1]!AgePb76($H$67) -> 4585.796354
A68: *HBr leach 2 | C68: 790 | D68: 1.5 | E68: 19.678 | F68: 16.43 | G68: 0.050811 | H68: 0.83497 | I68: =[1]!AgePb76($H$68) -> 4982.588834
A69: Plagioclase | B69: 110 | C69: 312 | D69: 0.91 | E69: 44.129 | F69: 31.338 | G69: 0.022591 | H69: 0.70988 | I69: =[1]!AgePb76($H$69) -> 4750.848516
A70: *HBr leach 3 | C70: 7582 | D70: 0.73 | E70: 18.813 | F70: 15.895 | G70: 0.053153 | H70: 0.84486 | I70: =[1]!AgePb76($H$70) -> 4999.307985
A71: Stannern
A72: Whole Rock | B72: 87 | C72: 119 | D72: 0.86 | E72: 113.64 | F72: 67.881 | G72: 0.0085663 | H72: 0.5961 | I72: =[1]!AgePb76($H$72) -> 4498.521018
A73: Pyroxene | B73: 16 | C73: 303 | D73: 3.1 | E73: 179.28 | F73: 98.183 | G73: 0.0052996 | H73: 0.54602 | I73: =[1]!AgePb76($H$73) -> 4370.528155
A74: Plagioclase | B74: 125 | C74: 1148 | D74: 0.8 | E74: 127.9 | F74: 75.259 | G74: 0.00795 | H74: 0.58831 | I74: =[1]!AgePb76($H$74) -> 4479.389358
H75: AVG | I75: =AVERAGE(I40:I74) -> 4685.629756
H76: MAX | I76: =MAX(I40:I74) -> 5081.418707
H77: MIN | I77: =MIN(I40:I74) -> 4370.528155
H78: STD DEV | I78: =STDEV(I40:I74) -> 202.2905345

Sheet Pb-206_16
A5: Tab. 5: Biotite ages from eclogite host rocks (micaschists/paragneisses). Saualpe and
A6: Koralpe
A7: Sample | C7: Rh PP. | D7: Sr P.0 | E7: sr Itb/"Sr | F7: "Sr/'Sr ± 2 e. | G7: Mineral-Wit isochron age
A8: 89 I17 | B8: Wit | C8: 176.7 | D8: 147.99 | E8: 3..175 | F8: 9.7298911
A9: (VI A 1'1671) | B9: Biotite .15-.12 | C9: 628.5 | D9: 6.26 | E9: 300.7 | F9: 1.0271717 | G9: 70.1 ± 1.3
A10: 891'19 | B10: Wit | C10: 107.9 | D10: 143 | E10: 2.192 | F10: 0.71813 ± 9
A11: OVA P1675) | B11: Biotite .15-.12 | C11: 195.8 | D11: 1.31 | E11: 313.3 | F11: 0.993311 + 16 | G11: 56.8 + 1.0
A12: 89122 | B12: Wit | C12: 133.3 | D12: 153 | E12: 2.532 | F12: 0.72345 + 7
A13: (WAP1676) | B13: Biotite .15.-.42 | C13: 599.1 | D13: 2.99 | E13: 613.8 | F13: 1.27203116 | G13: 63.2 ± 1.2
A14: 891.58 | B14: WR | C14: 229.5 | D14: 119 | E14: 5.611 | F14: 0.7326017
A15: (WA P1687) | B15: Biotite .15-.12 | C15: 586.-I | D15: 2.01 | E15: 932.1 | F15: 1.72000 ± 40 | G15: 75.0 1 2.0
A16: 89T65 | B16: W It | C16: 93.9 | D16: 95 | E16: 2.868 | F16: 0.71009 ± .1
A17: (WA P1688) | B17: Biotite .15-.12 | C17: 330 | D17: 113.4 | E17: 8.155 | F17: 0.71706 + 5 | G17: 87.8 ± L3
B18: White mica .15-.15 | C18: 275 | D18: 118.15 | E18: 6.76 | F18: 0.71181 ± 5 | G18: 79.9 ± 1.2
A19: 89T69 | B19: 00R | C19: 155.6 | D19: 163.4 | E19: 2.77 | F19: 0.72817 ± 6
A20: (WA P1689) | B20: Biotite 15-..12') | C20: -169.7 | D20: 20.32 | E20: 67.817 | F20: 0.81336111 | G20: 92.0 ± 2.0
A21: 89T73 | B21: WR | C21: 203.1 | D21: 110.9 | E21: 5.327 | F21: 0.73012 ± 7
A22: (WA P1691) | B22: Biotite 15-.42 | C22: 575.9 | D22: 9.9 | E22: 172.71 | F22: 0.93758 ±.I | G22: 87.0 + 2.0
A23: 89-1'75 | B23: WR | C23: 38.7 | D23: 46.6 | E23: 2.113 | F23: 0.72279 + 9
A24: (\VAP1692) | B24: Biotite .15-.42 | C24: 532.6 | D24: 8.79 | E24: 179.7 | F24: 0.93016113 | G24: 82.4 ± 1.5
A25: 89171 | B25: WR | C25: 171.7 | D25: 110.9 | E25: 1.578 | F25: 0.72030 ± 8
A26: (WAP1690) 901-09 | B26: WR | C26: 183.8 | D26: 133 | E26: 1.019 | F26: 0.72712 ± 8
A27: (WAP17-14) | B27: Biotite .15-.12 | C27: 671.2 | D27: 11.22 | E27: 176.7 | F27: 0.88298 ± 9 | G27: 63.5 1 1.2
A28: 9011 I | B28: WR | C28: 111.5 | D28: 217.1 | E28: 1.891 | F28: 0.71979 ± 11
A29: (WAPI715) | B29: Biotite .15-.12 | C29: 711.6 | D29: 10.79 | E29: 195.1 | F29: 0.90163 1- 12 | G29: 66.21 1.2
A30: o) unclean separate
A34: Table 6 | C34: Sample U ppb | D34: Pb ppb | E34: p | F34: 206 pb / | G34: 207 pb / | H34: 208 Pb / | I34: Pb-207/206 | J34: Pb-207/206 | L34: Geochimica et Cosmochimica Acta, 1992, Vol. 56, pp. 347-368
A35: Sample | C35: weight (mg) | F35: 204 pb | G35: 204pb | H35: 204 Pb | I35: Ratio | J35: Ages
A36: 88T35 | B36: WR | C36: 21.0 116.6 | D36: 4819.5 | E36: 1.77 | F36: 18.534 | G36: 15.612 | H36: 38.549 | I36: =(G36/F36) -> 0.8423438006 | J36: =[1]!AgePb76($I$36) -> 4995.074121
B37: Cpx | C37: 83.66 3.20 | D37: 404.5 | E37: 0.579 | F37: 18.45 | G37: 15.658 | H37: 38.657 | I37: =(G37/F37) -> 0.8486720867 | J37: =[1]!AgePb76($I$37) -> 5005.696913
B38: Gnt | C38: 73.08 81.69 | D38: 109.4 | F38: 17.998 | G38: 15.59 | H38: 37.906 | I38: 0.8662073564 | J38: =[1]!AgePb76($I$38) -> 5034.698134
B39: Amp | C39: 85.18 14.18 | D39: 861.2 | E39: 1.204 | F39: 18.478 | G39: 15.637 | H39: 38.547 | I39: 0.8462495941 | J39: =[1]!AgePb76($I$39) -> 5001.640438
B40: Zoi | C40: 27.35 542.5 | D40: 44620.3 | E40: 0.894 | F40: 18.599 | G40: 15.658 | H40: 38.827 | I40: 0.841873219 | J40: =[1]!AgePb76($I$40) -> 4994.280809
B41: Pheng | C41: 87.01 n. det. | D41: 6714.3 | F41: 18.717 | G41: 15.713 | H41: 38.865 | I41: 0.839504194 | J41: =[1]!AgePb76($I$41) -> 4990.279911
A42: SKP30 | B42: WR | C42: 8.81 326.4 | D42: 7772.6 | E42: 3.087 | F42: 18.585 | G42: 15.648 | H42: 38.805 | I42: 0.8419693301 | J42: =[1]!AgePb76($I$42) -> 4994.442873
B43: WRL | C43: 11.68 m det. | D43: 5618.7 | F43: 18.654 | G43: 15.659 | H43: 39.139 | I43: 0.8394446231 | J43: =[1]!AgePb76($I$43) -> 4990.179151
B44: Gnt | C44: 19.92 68.7 | D44: 185.8 | E44: 26.382 | F44: 17.702 | G44: 15.55 | H44: 37.594 | I44: 0.8784318156 | J44: =[1]!AgePb76($I$44) -> 5054.549621
A45: SK30 | B45: WR | C45: 9.57 182.6 | D45: 39209.6 | E45: 0.339 | F45: 18.49 | G45: 15.556 | H45: 38.325 | I45: 0.8413196322 | J45: =[1]!AgePb76($I$45) -> 4993.346963
A46: 86T09 | B46: Gnt | C46: 21.58 11.8 | D46: 71.8 | E46: 11.734 | F46: 17.754 | G46: 15.583 | H46: 37.59 | I46: 0.8777176974 | J46: =[1]!AgePb76($I$46) -> 5053.398038
A47: GE2 | B47: WR | C47: 9.79 459.9 | D47: 4081.6 | E47: 8.236 | F47: 18.624 | G47: 15.598 | H47: 38.41 | I47: 0.8375214777 | J47: =[1]!AgePb76($I$47) -> 4986.922194
B48: Cpx | C48: 24.54 36.4 | D48: 409 | E48: 6.51 | F48: 18.48 | G48: 15.607 | H48: 38.562 | I48: 0.844534632 | J48: =[1]!AgePb76($I$48) -> 4998.761262
B49: Gnt | C49: 34.39 34.9 | D49: 53.25 | E49: 46.659 | F49: 17.604 | G49: 15.595 | H49: 37.531 | I49: 0.8858782095 | J49: =[1]!AgePb76($I$49) -> 5066.498794
B50: Epi | C50: 8.05 4858.8 | D50: 47333.8 | E50: 7.497 | F50: 18.559 | G50: 15.585 | H50: 38.426 | I50: 0.8397542971 | J50: =[1]!AgePb76($I$50) -> 4990.702861
A51: GE/a | B51: WR | C51: 10.53 548.5 | D51: 3948.2 | E51: 10.076 | F51: 18.392 | G51: 15.539 | H51: 38.132 | I51: 0.8448782079 | J51: =[1]!AgePb76($I$51) -> 4999.338574
B52: WRL | C52: 9.02 n. det. | D52: 1351.7 | F52: 18.5 | G52: 15.612 | H52: 38.327 | I52: 0.8438918919 | J52: =[1]!AgePb76($I$52) -> 4997.680593
B53: Cpx | C53: 82.42 322.7 | D53: 408.7 | F53: 18.377 | G53: 15.56 | H53: 38.126 | I53: 0.8467105621 | J53: =[1]!AgePb76($I$53) -> 5002.41328
A54: BAR1 | B54: WR | C54: 7.73 354.9 | D54: 1952.8 | E54: 12.87 | F54: 17.536 | G54: 15.513 | H54: 37.286 | I54: 0.8846373175 | J54: =[1]!AgePb76($I$54) -> 5064.51496
B55: Plag/s | C55: 94.68 86.9 | D55: 159.6 | E55: 38.72 | F55: 17.719 | G55: 15.482 | H55: 37.393 | I55: 0.8737513404 | J55: =[1]!AgePb76($I$55) -> 5046.983764
B56: Plag/v | C56: 112.56 207.1 | D56: 166.9 | E56: 87.98 | F56: 17.703 | G56: 15.446 | H56: 37.283 | I56: 0.8725074846 | J56: =[1]!AgePb76($I$56) -> 5044.965872
B57: Cpx | C57: 24.33 8.73 | D57: 74.4 | E57: 8.375 | F57: 17.77 | G57: 15.552 | H57: 37.558 | I57: 0.8751828925 | J57: =[1]!AgePb76($I$57) -> 5049.302384
I58: AVG | J58: =AVERAGE(J36:J57) -> 5016.166887
A59: s = clean, v = unclean | I59: MAX | J59: =MAX(J36:J57) -> 5066.498794
I60: MIN | J60: =MIN(J36:J57) -> 4986.922194
I61: STD DEV | J61: =STDEV(J36:J57) -> 28.58079932

Sheet Pb-206_17
E1: Pb-207/206 | F1: Pb-207/206 | H1: Geochimica et Cosmochimica Acta, Vol. 61, No. 23, pp. 5005-5022, 1997
A2: Locality | B2: Material | C2: 206pb/204pb | D2: 207pb/204pb | E2: Ratio | F2: Ages
A3: Amphibolites
A4: 148,western ore field | B4: Whole rock | C4: 18.31 | D4: 15.58 | E4: =(D4/C4) -> 0.8509011469 | F4: =[1]!AgePb76($E$4) -> 5009.418635
A5: 149,western ore field | B5: Whole rock | C5: 18.34 | D5: 15.58 | E5: =(D5/C5) -> 0.8495092694 | F5: =[1]!AgePb76($E$5) -> 5007.09592
A6: 81-88, western ore field | B6: Whole rock | C6: 18.29 | D6: 15.56 | E6: 0.8507381083 | F6: =[1]!AgePb76($E$6) -> 5009.14677
A7: 81-88, western ore field | B7: Plagioclase | C7: 18.12 | D7: 15.57 | E7: 0.8592715232 | F7: =[1]!AgePb76($E$7) -> 5023.302273
A8: Hornblendites
A9: 292, eastern field | B9: Whole rock | C9: 18.39 | D9: 15.59 | E9: 0.8477433388 | F9: =[1]!AgePb76($E$9) -> 5004.143175
A10: 291, eastern ore field | B10: Whole rock | C10: 18.58 | D10: 15.61 | E10: 0.8401506997 | F10: =[1]!AgePb76($E$10) -> 4991.372943
A11: 173, 82-206, TS 1220 | B11: Whole rock | C11: 18.25 | D11: 15.59 | E11: 0.8542465753 | F11: =[1]!AgePb76($E$11) -> 5014.9849
A12: 173, 82-206, TS 1220 | B12: Plagioclase | C12: 18.13 | D12: 15.58 | E12: 0.8593491451 | F12: =[1]!AgePb76($E$12) -> 5023.430348
A13: 173, 82-206, TS 1220 | B13: Molybdenite | C13: 18.21 | D13: 15.56 | E13: 0.8544755629 | F13: =[1]!AgePb76($E$13) -> 5015.365052
A14: 173, 82-206, TS 1220 | B14: Pyrite | C14: 18.18 | D14: 15.58 | E14: 0.8569856986 | F14: =[1]!AgePb76($E$14) -> 5019.525161
A15: Gneisses
A16: K2,TS 1164, 2-mica | B16: Whole rock | C16: 18.18 | D16: 15.59 | E16: 0.8575357536 | F16: =[1]!AgePb76($E$16) -> 5020.435052
A17: K1, TS 1175, W. mica | B17: Whole rock | C17: 18.53 | D17: 15.62 | E17: 0.8429573664 | F17: =[1]!AgePb76($E$17) -> 4996.107771
A18: K3,TS 1024, Biotite | B18: Whole rock | C18: 18.49 | D18: 15.64 | E18: 0.8458626284 | F18: =[1]!AgePb76($E$18) -> 5000.991319
A19: K3, TS 1024, Biotite | B19: Titanite | C19: 45.3 | D19: 17.2 | E19: 0.3796909492 | F19: =[1]!AgePb76($E$19) -> 3830.537865
A20: K3, TS 1024, Biotite | B20: Allanite | C20: 26.12 | D20: 16.14 | E20: 0.6179173047 | F20: =[1]!AgePb76($E$20) -> 4550.704711
A21: K3, TS 1024, Biotite | B21: K-feldspar | C21: 19.99 | D21: 15.79 | E21: 0.7898949475 | F21: =[1]!AgePb76($E$21) -> 4903.624449
A22: K3, TS 1024, Biotite | B22: *Galena | C22: 18.11 | D22: 15.59 | E22: 0.8608503589 | F22: =[1]!AgePb76($E$22) -> 5025.904928
A23: K3, TS 1024, Biotite | B23: *MoS2 | C23: 19.9 | D23: 15.69 | E23: 0.7884422111 | F23: =[1]!AgePb76($E$23) -> 4901.00033
A24: KS, TS 1024, Biotite | B24: *Pb-Bi-salts | C24: 18.1 | D24: 15.58 | E24: 0.8607734807 | F24: =[1]!AgePb76($E$24) -> 5025.778314
E25: AVG | F25: =AVERAGE(F3:F24) -> 4914.361575
E26: MAX | F26: =MAX(F3:F24) -> 5025.904928
E27: MIN | F27: =MIN(F3:F24) -> 3830.537865
E28: STD DEV | F28: =STDEV(F3:F24) -> 284.142935

Sheet Pb-206_18
A1: Sample | B1: TABLE 1 | F1: 206Pb/204Pb | G1: 207Pb/204Pb | I1: 238U/204Pb | M1: 207Pb/206Pb | N1: 207Pb/206Pb | O1: 206Pb/238U | P1: 238U/206Pb | Q1: Earth and Planetary Sctence Letters, 113 (1992) 107-128 | R1: 207Pb/206Pb | S1: 238U/206Pb
A2: Name | B2: Page 110 | F2: Ratio | G2: Ratio | I2: Ratio | M2: Ratio | N2: Age | O2: Ratio | P2: Age | R2: 5076.583029 | S2: 22200.70461
A3: BC-1-8 Pyroxene Megacryst | C3: 0.362 | D3: 56 | E3: 0.0228 | F3: 18.836 | G3: 15.602 | H3: 38.377 | I3: 0.99 | J3: 4.18 | K3: 6.92 | L3: -2.27 | M3: =(G3/F3) -> 0.8283074963 | N3: =[1]!AgePb76($M$3) -> 4971.206735 | O3: =(F3/I3) -> 19.02626263 | P3: =[1]!AgePb6U8(O3) -> 19320.19045 | R3: 5070.409555 | S3: 21813.20703
A4: BC-101-1 | B4: Garnet Mcgacryst | C4: 0.615 | D4: 0.0058 | E4: 0.0058 | F4: 18.185 | G4: 15.605 | H4: 38.061 | I4: 0.6 | J4: 0.941 | K4: 14.28 | L4: 44.83 | M4: =(G4/F4) -> 0.8581248282 | N4: =[1]!AgePb76($M$4) -> 5021.408801 | O4: 30.30833333 | P4: =[1]!AgePb6U8(O4) -> 22200.70461 | R4: 5061.966532 | S4: 19320.19045
A5: BC-101-6 | B5: Garnet Megacryst | C5: 0.0684 | D5: 0.0066 | E5: 0.0032 | F5: 18.841 | G5: 15.682 | H5: 38.474 | I5: 6.13 | J5: 0.501 | K5: 14.86 | L5: 6.82 | M5: 0.8323337402 | N5: =[1]!AgePb76($M$5) -> 4978.096676 | O5: 3.073572594 | P5: =[1]!AgePb6U8(O5) -> 9054.120236 | R5: 5060.066297 | S5: 16656.39067
A6: 13C-101-6-1 Garnet Megacryst | C6: 0.233 | D6: 0.0055 | E6: 0.0042 | F6: 18.494 | G6: 15.612 | H6: 38.221 | I6: 1.51 | J6: 0.774 | K6: 11.63 | L6: 23.48 | M6: 0.8441656754 | N6: =[1]!AgePb76($M$6) -> 4998.141024 | O6: 12.24768212 | P6: =[1]!AgePb6U8(O6) -> 16656.39067 | R6: 5058.615134 | S6: 16199.87803
A7: 13C-101-12 | B7: Garnet Mcgacryst | C7: 0.107 | D7: 0.0036 | E7: 0.003 | F7: 19.035 | G7: 15.773 | H7: 38.727 | I7: 2.15 | J7: 0.865 | K7: 21.86 | L7: 8.67 | M7: 0.8286314683 | N7: =[1]!AgePb76($M$7) -> 4971.76245 | O7: 8.853488372 | P7: =[1]!AgePb6U8(O7) -> 14748.27102 | R7: 5055.313786 | S7: 14748.27102
A8: BC-103-1 | B8: Pyroxene Megacryst | C8: -- | D8: 0.0083 | E8: 0.037 | F8: 18.627 | G8: 15.664 | H8: 38.441 | I8: 0 | J8: 4.61 | K8: 15.38 | L8: 29.4 | M8: 0.840929833 | N8: =[1]!AgePb76($M$8) -> 4992.689019 | O8: 0 | R8: 5051.016749 | S8: 13606.57621
A9: 13C-104 | B9: Garnet Pyroxenite, W.R. | C9: 0.19 | D9: 0.0237 | E9: 0.106 | F9: 17.698 | G9: 15.327 | H9: 37.745 | I9: 10.7 | J9: 3.34 | K9: -8.25 | L9: 72.11 | M9: 0.8660300599 | N9: =[1]!AgePb76($M$9) -> 5034.408037 | O9: 1.654018692 | P9: =[1]!AgePb6U8(O9) -> 6292.183585 | R9: 5049.855549 | S9: 9877.585027
A10: 13C-104 | B10: Clinopyroxene in BC-104 | C10: 0.0439 | D10: 0.0183 | E10: 0.718 | F10: 18.258 | G10: 15.488 | H10: 37.973 | I10: 26.3 | J10: 4.05 | K10: 1.78 | L10: 27.21 | M10: 0.848285683 | N10: =[1]!AgePb76($M$10) -> 5005.050703 | O10: 0.6942205323 | P10: =[1]!AgePb6U8(O10) -> 3398.696355 | R10: 5049.78663 | S10: 9656.105078
A11: 13C-104 | B11: Garnet in BC-104 | C11: 0.208 | D11: 0.0052 | E11: 0.0026 | F11: 18.374 | G11: 15.484 | H11: 37.904 | I11: 1.62 | J11: 0.513 | K11: 0.13 | L11: 6.28 | M11: 0.8427125286 | N11: =[1]!AgePb76($M$11) -> 4995.695398 | O11: 11.34197531 | P11: =[1]!AgePb6U8(O11) -> 16199.87803 | R11: 5044.555773 | S11: 9054.120236
A12: 13C-104-1 | B12: Amphibole Pyroxenite, W.R. | C12: 0.299 | D12: 0.0384 | E12: 0.105 | F12: 18.08 | G12: 15.48 | H12: 38.005 | I12: 8.05 | J12: 2.84 | K12: 2.91 | L12: 36.28 | M12: 0.8561946903 | N12: =[1]!AgePb76($M$12) -> 5018.215601 | O12: 2.245962733 | P12: =[1]!AgePb6U8(O12) -> 7590.085338 | R12: 5043.770924 | S12: 8241.764452
A13: BC-104-1 | B13: Chnopyroxene in BC-104-1 | C13: 0.0618 | D13: 0.096 | E13: 0.414 | F13: 18.814 | G13: 15.589 | H13: 38.62 | I13: 99.4 | J13: 4.46 | K13: 5.86 | L13: 24.69 | M13: 0.8285850962 | N13: =[1]!AgePb76($M$13) -> 4971.682921 | O13: 0.1892756539 | P13: =[1]!AgePb6U8(O13) -> 1117.449977 | R13: 5043.758873 | S13: 8044.476445
A14: 13C-1-2 | B14: Clinopyroxene in | C14: 0.0667 | D14: 0.0473 | E14: 0.187 | F14: 18.816 | G14: 15.581 | H14: 38.218 | I14: 45.2 | J14: 4.07 | K14: 5.04 | L14: -15.75 | M14: 0.8280718537 | N14: =[1]!AgePb76($M$14) -> 4970.802388 | O14: 0.4162831858 | P14: =[1]!AgePb6U8(O14) -> 2243.583982 | R14: 5043.671673 | S14: 7996.090563
O15: 0 | R15: 5034.408037 | S15: 7590.085338
A16: Basalts# | O16: 0 | R16: 5033.17972 | S16: 7421.885204
A17: BC-5-2 | B17: Olivine Tholciite (5th)° | C17: 3.95 | D17: 1.238 | E17: 4.8 | F17: 17.626 | G17: 15.432 | H17: 37.691 | I17: 19.52 | J17: 4.005 | K17: 3.03 | L17: 75.42 | M17: 0.8755247929 | N17: =[1]!AgePb76($M$17) -> 5049.855549 | O17: 0.9029713115 | P17: =[1]!AgePb6U8(O17) -> 4147.729333 | R17: 5032.918272 | S17: 7348.090529
A18: BC-4-1 | B18: Alkali Olivine basalt (4th) | C18: 4.122 | D18: 1.349 | E18: 5.096 | F18: 17.668 | G18: 15.411 | H18: 37.645 | I18: 20.37 | J18: 3.902 | K18: 0.48 | L18: 65.74 | M18: 0.8722549242 | N18: =[1]!AgePb76($M$18) -> 5044.555773 | O18: 0.8673539519 | P18: =[1]!AgePb6U8(O18) -> 4025.930249 | R18: 5032.686034 | S18: 7334.692352
A19: BC-5-2 | B19: Olivine Tholciite (3rd) | C19: 3.767 | D19: 1.713 | E19: 4.294 | F19: 17.628 | G19: 15.433 | H19: 37.711 | I19: 19.365 | J19: 3.788 | K19: 3.11 | L19: 77.17 | M19: 0.8754821874 | N19: =[1]!AgePb76($M$19) -> 5049.78663 | O19: 0.9103020914 | P19: =[1]!AgePb6U8(O19) -> 4172.515021 | R19: 5032.308615 | S19: 7249.068808
A20: BC-2-4 | B20: Olivine Tholeiite (2nd) | C20: 3.26 | D20: 0.763 | E20: 3.7 | F20: 17.599 | G20: 15.421 | H20: 37.716 | I20: 14.6 | J20: 5.01 | K20: 2.23 | L20: 81.18 | M20: 0.8762429684 | N20: =[1]!AgePb76($M$20) -> 5051.016749 | O20: 1.205410959 | P20: =[1]!AgePb6U8(O20) -> 5098.558372 | R20: 5029.610999 | S20: 7202.372991
A21: BC-1-4 | B21: Alkali Olivine Basalt (1st) | C21: 4.26 | D21: 1.495 | E21: 5.79 | F21: 17.671 | G21: 15.404 | H21: 37.621 | I21: 21.8 | J21: 4 | K21: -0.25 | L21: 62.98 | M21: 0.8717107125 | N21: =[1]!AgePb76($M$21) -> 5043.671673 | O21: 0.8105963303 | P21: =[1]!AgePb6U8(O21) -> 3826.954103 | R21: 5027.327462 | S21: 7019.2941
A22: Hanluoba | O22: 0 | R22: 5022.071295 | S22: 6923.1095
A23: Inclusions | O23: 0 | R23: 5021.408801 | S23: 6847.651696
A24: X-23 | B24: Lherzolite, W.R. | C24: 0.081 | D24: 0.0111 | E24: 0.0124 | F24: 17.773 | G24: 15.494 | H24: 37.683 | I24: 8.55 | J24: 1.17 | K24: 7.64 | L24: 56.84 | M24: 0.8717717887 | N24: =[1]!AgePb76($M$24) -> 5043.770924 | O24: 2.07871345 | P24: =[1]!AgePb6U8(O24) -> 7249.068808 | R24: 5018.215601 | S24: 6292.183585
A25: X-23 | B25: Clinopyroxene in X-23 | C25: 0.135 | D25: 0.0199 | E25: 0.0598 | F25: 18.428 | G25: 15.553 | H25: 38136 | I25: 9.35 | J25: 3.11 | K25: 644 | L25: 22.95 | M25: 0.8439874105 | N25: =[1]!AgePb76($M$25) -> 4997.841248 | O25: 1.970909091 | P25: =[1]!AgePb6U8(O25) -> 7019.2941 | R25: 5009.729002 | S25: 5699.879392
A26: X-11 | B26: Lherzolite, W.R. | C26: 0.0491 | D26: 0.0117 | E26: 0.0145 | F26: 18.293 | G26: 15.524 | H26: 37.409 | I26: 14.9 | J26: 1.28 | K26: 500 | L26: -33.42 | M26: 0.8486306237 | N26: =[1]!AgePb76($M$26) -> 5005.627586 | O26: 1.227718121 | P26: =[1]!AgePb6U8(O26) -> 5163.434633 | R26: 5008.220672 | S26: 5217.76718
A27: X-11 | B27: Clinopyroxene in X-11 | C27: 0.0864 | D27: 0.0119 | E27: 0.0543 | F27: 18.627 | G27: 15.563 | H27: 38.23 | I27: 8.76 | J27: 471 | K27: 5.28 | L27: 830 | M27: 0.8355075965 | N27: =[1]!AgePb76($M$27) -> 4983.503042 | O27: 2.126369863 | P27: =[1]!AgePb6U8(O27) -> 7348.090529 | R27: 5008.208618 | S27: 5201.371125
A28: X-11-1 | B28: Pyroxenite vein in X-11. | C28: 0.0409 | D28: 0.0126 | E28: 0.0248 | F28: 18.162 | G28: 15.367 | H28: 37.628 | I28: 19.3 | J28: 203 | K28: -9.28 | L28: 4.31 | M28: 0.8461072569 | N28: =[1]!AgePb76($M$28) -> 5001.40171 | O28: 0.9410362694 | P28: =[1]!AgePb6U8(O28) -> 4275.403642 | R28: 5005.627586 | S28: 5163.434633
A29: X-11-1 | B29: Chnopyroxene in vein X-11-1 | C29: 0.0424 | D29: 0.0118 | E29: 0.0371 | F29: 18.981 | G29: 15.666 | H29: 38.554 | I29: 17.8 | J29: 3.26 | K29: 11.75 | L29: -2.1 | M29: 0.8253516675 | N29: =[1]!AgePb76($M$29) -> 4966.125852 | O29: 1.066348315 | P29: =[1]!AgePb6U8(O29) -> 4678.697503 | R29: 5005.050703 | S29: 5098.558372
A30: X-15 | B30: Lherzolite, W.R. | C30: 0.0423 | D30: 99 | E30: 0.0143 | F30: 18.613 | G30: 15.41 | H30: 38.299 | I30: 15 | J30: 149 | K30: -9.87 | L30: 16.85 | M30: 0.8279159727 | N30: =[1]!AgePb76($M$30) -> 4970.534839 | O30: 1.240866667 | P30: =[1]!AgePb6U8(O30) -> 5201.371125 | R30: 5004.613702 | S30: 4812.348707
A31: X-15 | B31: Clinopyroxene in X-15 | C31: 0.0854 | D31: 0.0122 | E31: 0.054 | F31: 18.529 | G31: 15.557 | H31: 38.169 | I31: 9.01 | J31: 459 | K31: 5.75 | L31: 14.06 | M31: 0.8396027848 | N31: =[1]!AgePb76($M$31) -> 4990.446654 | O31: 2.056492786 | P31: =[1]!AgePb6U8(O31) -> 7202.372991 | R31: 5001.536431 | S31: 4678.697503
A32: X-15-1 | B32: Pyroxenite vein in X-15 | C32: 0.0704 | D32: 0.024 | E32: 0.115 | F32: 18.18 | G32: 15.608 | H32: 38.356 | I32: 21.6 | J32: 4.94 | K32: 14.63 | L32: 74.94 | M32: 0.8585258526 | N32: =[1]!AgePb76($M$32) -> 5022.071295 | O32: 0.8416666667 | P32: =[1]!AgePb6U8(O32) -> 3936.637929 | R32: 5001.40171 | S32: 4521.205896
A33: X-15-1 | B33: Clinopyroxene in X-15-1 | C33: 0.0952 | D33: 0.0248 | E33: 0.112 | F33: 18.309 | G33: 15.566 | H33: 38.242 | I33: 16.5 | J33: 4.67 | K33: 9.03 | L33: 47.94 | M33: 0.8501829701 | N33: =[1]!AgePb76($M$33) -> 5008.220672 | O33: 1.109636364 | P33: =[1]!AgePb6U8(O33) -> 4812.348707 | R33: 5000.337912 | S33: 4348.283884
A34: -2 | B34: Garnet Pyroxemte | C34: 0.148 | D34: 0.034. | E34: 0.195 | F34: 17.826 | G34: 15.415 | H34: 37.646 | I34: 14.3 | J34: 5.91 | K34: -0.83 | L34: 46.74 | M34: 0.8647481207 | N34: =[1]!AgePb76($M$34) -> 5032.308615 | O34: 1.246573427 | P34: =[1]!AgePb6U8(O34) -> 5217.76718 | R34: 4998.141024 | S34: 4275.403642
A35: -2 | B35: Clinopyroxene in F-2 | C35: 0.0873 | D35: 0.0103 | E35: 0.0401 | F35: 18.424 | G35: 15.577 | H35: 37.94 | I35: 7.42 | J35: 4.04 | K35: 8.88 | L35: 3.84 | M35: 0.8454732957 | N35: =[1]!AgePb76($M$35) -> 5000.337912 | O35: 2.483018868 | P35: =[1]!AgePb6U8(O35) -> 8044.476445 | R35: 4997.841248 | S35: 4172.515021
A36: -2 | B36: Garnet in F-2 | C36: 104 | D36: 0.0090. | E36: 0.0052 | F36: 19.306 | G36: 15.701 | H36: 38.527 | I36: 5.56 | J36: 595 | K36: 11.69 | L36: -44.46 | M36: 0.8132704859 | N36: =[1]!AgePb76($M$36) -> 4945.156008 | O36: 3.472302158 | P36: =[1]!AgePb6U8(O36) -> 9656.105078 | R36: 4997.402133 | S36: 4147.729333
A37: -1 | B37: Phlogopite Pyroxenite | C37: 658 | D37: 0.079 | E37: 0.611 | F37: 17.978 | G37: 15.556 | H37: 37.526 | I37: 74.8 | J37: 8 | K37: 11.62 | L37: 16.36 | M37: 0.8652797864 | N37: =[1]!AgePb76($M$37) -> 5033.17972 | O37: 0.2403475936 | P37: =[1]!AgePb6U8(O37) -> 1388.503837 | R37: 4995.695398 | S37: 4025.930249
A38: -1 | B38: Clinopyroxene in F-1 | C38: 0.6626 | D38: 0.0886 | E38: 0.723 | F38: 17.926 | G38: 15.472 | H38: 37.339 | I38: 8.29 | J38: 8.43 | K38: 3.78 | L38: 395 | M38: 0.8631038715 | N38: =[1]!AgePb76($M$38) -> 5029.610999 | O38: 2.162364294 | P38: =[1]!AgePb6U8(O38) -> 7421.885204 | R38: 4992.689019 | S38: 3936.637929
A39: D-12 | B39: Pyroxene Megacryst. | C39: 0.56 | D39: 0.0056 | E39: 0.0209 | F39: 18.798 | G39: 15.61 | H39: 38.251 | I39: 0.66 | J39: 3.85 | K39: 813 | L39: -10.28 | M39: 0.8304074902 | N39: =[1]!AgePb76($M$39) -> 4974.804796 | O39: 28.48181818 | P39: =[1]!AgePb6U8(O39) -> 21813.20703 | R39: 4990.446654 | S39: 3826.954103
A40: Basalts# | O40: 0 | R40: 4987.701232 | S40: 3398.696355
A41: DF1 | B41: Quartz Tholente | C41: 2.052 | D41: 0.3056 | E41: 1.293 | F41: 17.471 | G41: 15.407 | H41: 37.512 | I41: 9.23 | J41: 4.371 | K41: 221 | L41: 76.26 | M41: 0.8818613703 | N41: =[1]!AgePb76($M$41) -> 5060.066297 | O41: 1.892849404 | P41: =[1]!AgePb6U8(O41) -> 6847.651696 | R41: 4983.503042 | S41: 3331.342693
A42: D37 | B42: Quartz Tholeiite | C42: 1764 | D42: 0.258 | E42: 1.461 | F42: 17.4 | G42: 15.365 | H42: 37.442 | I42: 9.03 | J42: 5.86 | K42: -1.22 | L42: 77.84 | M42: 0.883045977 | N42: =[1]!AgePb76($M$42) -> 5061.966532 | O42: 1.926910299 | P42: =[1]!AgePb6U8(O42) -> 6923.1095 | R42: 4981.003209 | S42: 2733.954486
A43: Dll | B43: Basanite | C43: 3105 | D43: 0.9747 | E43: 4.409 | F43: 17.655 | G43: 15.391 | H43: 37.51 | I43: 1949 | J43: 4.674 | K43: -1.38 | L43: 53.81 | M43: 0.8717643727 | N43: =[1]!AgePb76($M$43) -> 5043.758873 | O43: 0.009058491534 | P43: =[1]!AgePb6U8(O43) -> 58.13189039 | R43: 4978.096676 | S43: 2624.797036
A44: D52 | B44: Olivine Tholeiite | C44: 183 | D44: 0.0368 | E44: 1.138 | F44: 17.173 | G44: 15.322 | H44: 37.111 | I44: 1194 | J44: 3.294 | K44: -3.06 | L44: 72.18 | M44: 0.8922145228 | N44: =[1]!AgePb76($M$44) -> 5076.583029 | O44: 0.01438274707 | P44: =[1]!AgePb6U8(O44) -> 92.05670614 | R44: 4974.804796 | S44: 2243.583982
A45: D1 | B45: Olivine Tholeiite | C45: 1.969 | D45: 0.4533 | E45: 1581 | F45: 17.414 | G45: 15.341 | H45: 37.333 | I45: 142 | J45: 3.605 | K45: -3.77 | L45: 6525 | M45: 0.88095785 | N45: =[1]!AgePb76($M$45) -> 5058.615134 | O45: 0.1226338028 | P45: =[1]!AgePb6U8(O45) -> 745.7052974 | R45: 4971.76245 | S45: 1388.503837
A46: DF2 | B46: Alkali Olivine Basalt | C46: 4.353 | D46: 1.836 | E46: 662 | F46: 17.849 | G46: 15.439 | H46: 37.769 | I46: 26.38 | J46: 3725 | K46: 1.32 | L46: 5626 | M46: 0.8649784302 | N46: =[1]!AgePb76($M$46) -> 5032.686034 | O46: 0.676611069 | P46: =[1]!AgePb6U8(O46) -> 3331.342693 | R46: 4971.682921 | S46: 1117.449977
A47: Minxi | O47: 0 | R47: 4971.206735 | S47: 745.7052974
A48: S-6 Garnet Lherzolite, W.R. | C48: 0.657 | D48: 0.0397 | E48: 0.0283 | F48: 17.697 | G48: 15.554 | H48: 37.312 | I48: 374 | J48: 0.737 | K48: 14.46 | L48: 2893 | M48: 0.8789060293 | N48: =[1]!AgePb76($M$48) -> 5055.313786 | O48: 0.04731818182 | P48: =[1]!AgePb6U8(O48) -> 298.0356764 | R48: 4970.802388 | S48: 298.0356764
A49: S-6 | B49: Chnopyroxene in S-6 | C49: 0.354 | D49: 474 | E49: 0.167 | F49: 17.489 | G49: 15.536 | H49: 37.239 | I49: 8.25 | J49: 364 | K49: 1492 | L49: 46.78 | M49: 0.8883298073 | N49: =[1]!AgePb76($M$49) -> 5070.409555 | O49: 2.119878788 | P49: =[1]!AgePb6U8(O49) -> 7334.692352 | R49: 4970.534839 | S49: 92.05670614
A50: S-6 | B50: Garnet in S-6 | C50: 117 | D50: 0.014 | E50: 0.0074 | F50: 18.673 | G50: 15.574 | H50: 38.312 | I50: 7.6 | J50: 0.544 | K50: 588 | L50: 10.93 | M50: 0.8340384512 | N50: =[1]!AgePb76($M$50) -> 4981.003209 | O50: 2.456973684 | P50: =[1]!AgePb6U8(O50) -> 7996.090563 | R50: 4966.125852 | S50: 58.13189039
A51: S-8 | B51: Garnet Lherzolite, W.R. | C51: 582 | D51: 0.032 | E51: 0.0277 | F51: 18.118 | G51: 15.42 | H51: 37.705 | I51: 34.3 | J51: 894 | K51: -3.5 | L51: 17.33 | M51: 0.8510873165 | N51: =[1]!AgePb76($M$51) -> 5009.729002 | O51: 0.5282215743 | P51: =[1]!AgePb6U8(O51) -> 2733.954486 | R51: 4945.156008
A52: S-8 | B52: Chnopyroxene in S-8 | C52: 0.0755 | D52: 0.228 | E52: 0.048 | F52: 18.299 | G52: 15.518 | H52: 37.817 | I52: 19 | J52: 218 | K52: 4.34 | L52: 6.65 | M52: 0.8480244822 | N52: =[1]!AgePb76($M$52) -> 5004.613702 | O52: 0.9631052632 | P52: =[1]!AgePb6U8(O52) -> 4348.283884
A53: S-8 | B53: Garnet in S-8 | C53: 0.123 | D53: 0.0049 | E53: 0.0026 | F53: 18.208 | G53: 15.48 | H53: 37.661 | I53: 2.51 | J53: 0.542 | K53: 1.53 | L53: 2.05 | M53: 0.8501757469 | N53: =[1]!AgePb76($M$53) -> 5008.208618 | O53: 7.254183267 | P53: =[1]!AgePb6U8(O53) -> 13606.57621
A54: S-9 | B54: Chnopyroxene Mcgacryst | C54: 0.093 | D54: 0.0074 | E54: 0.0316 | F54: 18.506 | G54: 15.614 | H54: 38.418 | I54: 5.1 | J54: 4.39 | K54: 1169 | L54: 41.72 | M54: 0.843726359 | N54: =[1]!AgePb76($M$54) -> 4997.402133 | O54: 3.628627451 | P54: =[1]!AgePb6U8(O54) -> 9877.585027
A55: S-10 | B55: Clinopyroxene Megacryst | C55: 0.0911 | D55: 0.0103 | E55: 0.0427 | F55: 18.683 | G55: 15.656 | H55: 38.558 | I55: 7.21 | J55: 4.3 | K55: 1398 | L55: 34.33 | M55: 0.8379810523 | N55: =[1]!AgePb76($M$55) -> 4987.701232 | O55: 2.591262136 | P55: =[1]!AgePb6U8(O55) -> 8241.764452
A56: S-13 | B56: Spinel Lherzolite, W.R. | C56: 0.0903 | D56: 0.0182 | E56: 0.0655 | F56: 17.905 | G56: 15.429 | H56: 37.74 | I56: 12.6 | J56: 3.72 | K56: -29 | L56: 46.59 | M56: 0.8617146049 | N56: =[1]!AgePb76($M$56) -> 5027.327462 | O56: 1.421031746 | P56: =[1]!AgePb6U8(O56) -> 5699.879392
A57: S-13 | B57: Clinopyroxene in S-13 | C57: 0.182 | D57: 0.0512 | E57: 184 | F57: 17.89 | G57: 15.477 | H57: 37.722 | I57: 17.6 | J57: 3.72 | K57: 4.67 | L57: 4660 | M57: 0.8651201789 | N57: =[1]!AgePb76($M$57) -> 5032.918272 | O57: 1.016477273 | P57: =[1]!AgePb6U8(O57) -> 4521.205896
A58: Basalt# MB-1 | B58: Limburgitc, Host rock | C58: 3.41 | D58: 1.96 | E58: 9 | F58: 18.243 | G58: 15.437 | H58: 38.092 | I58: 36.3 | J58: 474 | K58: -3.15 | L58: 4092 | M58: 0.8461875788 | N58: =[1]!AgePb76($M$58) -> 5001.536431 | O58: 0.5025619835 | P58: =[1]!AgePb6U8(O58) -> 2624.797036
M59: AVG | N59: =AVERAGE(N3:N58) -> 5013.656546 | O59: AVG | P59: =AVERAGE(P3:P58) -> 6853.117731
M60: MAX | N60: =MAX(N3:N58) -> 5076.583029 | O60: MAX | P60: =MAX(P3:P58) -> 22200.70461
M61: MIN | N61: =MIN(N3:N58) -> 4945.156008 | O61: MIN | P61: =MIN(P3:P58) -> 58.13189039
A62: Sample | B62: 238U/206Pb | M62: STD DEV | N62: =STDEV(N3:N58) -> 31.88180034 | O62: STD DEV | P62: =STDEV(P3:P58) -> 5264.03172
A63: Name | B63: Age
A64: Garnet Megacryst | M64: Dating | N64: 207Pb/206Pb | O64: 238U/206Pb
A65: 13C-104 | B65: 5751.415769 | M65: Summary | N65: Age | O65: Age
A66: BC-104-1 | B66: 11847.83412 | M66: AVG | N66: 5013.656546 | O66: 6853.117731
A67: 13C-1-2 | B67: 7893.153782 | M67: MAX | N67: 5076.583029 | O67: 22200.70461
A68: Basalts# | M68: MIN | N68: 4945.156008 | O68: 58.13189039
A69: BC-5-2 | B69: 4805.679349 | M69: STD DEV | N69: 31.88180034 | O69: 5264.03172
A70: BC-4-1 | B70: 4943.307438
A71: BC-5-2 | B71: 4778.341071
A72: BC-1-4 | B72: 5180.604978
A73: Hanluoba Inclusions
A74: X-15-1 | B74: 5047.814244
A75: -1 | B75: 10578.95732
A76: Basalts#
A77: Dll | B77: 30382.40374
A78: D52 | B78: 27435.97878
A79: D1 | B79: 14273.84439
A80: DF2 | B80: 5849.690239
A81: Minxi
A82: S-6 Garnet Lherzolite, W.R. | B82: 19965.14713
A83: S-8 | B83: 6848.310231
A84: S-8 | B84: 4590.621132
A85: Basalt# MB-1 | B85: 7060.163975
A86: AVG | B86: =AVERAGE(B64:B85) -> 10425.48633
A87: MAX | B87: =MAX(B64:B85) -> 30382.40374
A88: MIN | B88: =MIN(B64:B85) -> 4590.621132
A89: STD DEV | B89: =STDEV(B64:B85) -> 8111.784298

Sheet Pb-206_19
R1: Earth and Planetary Science Letters 174 (1999) 75-80
J2: 207Pb/206Pb | L2: 238U/206Pb | M2: 206Pb/238U | N2: 206Pb/238U
J3: Ratio | L3: Ratio | M3: Ratio | N3: Age
A4: 1.1 | B4: 44 | C4: 20 | D4: 36.7 | E4: 3.5 | F4: 16.3 | G4: 1.8 | H4: 39.7 | I4: 4.3 | J4: 0.446 | K4: 0.023 | L4: 8.82 | M4: =(1/L4) -> 0.1133786848 | N4: =[1]!AgePb6U8(M4) -> 692.3400635 | O4: 0.68
A5: 2.1 | B5: 37 | C5: 24 | D5: 26.4 | E5: 3 | F5: 14.6 | G5: 1.8 | H5: 33.2 | I5: 4.2 | J5: 0.552 | K5: 0.03 | L5: 5.95 | M5: =(1/L5) -> 0.1680672269 | N5: =[1]!AgePb6U8(M5) -> 1001.45328 | O5: 0.56
A6: 3.1 | B6: 68 | C6: 24 | D6: 29.9 | E6: 1.9 | F6: 15.2 | G6: 1.1 | H6: 39.4 | I6: 2.9 | J6: 0.509 | K6: 0.018 | L6: 7.34 | M6: 0.136239782 | N6: =[1]!AgePb6U8(M6) -> 823.3642143 | O6: 0.65
A7: 4.1 | B7: 39 | C7: 22 | D7: 28 | E7: 2.2 | F7: 15.9 | G7: 1.4 | H7: 35.6 | I7: 3.2 | J7: 0.569 | K7: 0.027 | L7: 6.29 | M7: 0.1589825119 | N7: =[1]!AgePb6U8(M7) -> 951.1199053 | O7: 0.66
A8: 5.1 | B8: 75 | C8: 21 | D8: 30.7 | E8: 1.9 | F8: 15.8 | G8: 1.2 | H8: 38.5 | I8: 2.8 | J8: 0.515 | K8: 0.021 | L8: 7.9 | M8: 0.1265822785 | N8: =[1]!AgePb6U8(M8) -> 768.338548 | O8: 0.48
A9: 6.1 | B9: 26 | C9: 18 | D9: 43.3 | E9: 9 | F9: 19.4 | G9: 4.2 | H9: 41.9 | I9: 8.9 | J9: 0.449 | K9: 0.02 | L9: 11.1 | M9: 0.09009009009 | N9: =[1]!AgePb6U8(M9) -> 556.0699067 | O9: 0.81
A10: 7.1 | B10: 119 | C10: 25 | D10: 57.8 | E10: 5.7 | F10: 19 | G10: 2.1 | H10: 43 | I10: 4.7 | J10: 0.329 | K10: 0.015 | L10: 13.99 | M10: 0.07147962831 | N10: =[1]!AgePb6U8(M10) -> 445.0638094 | O10: 0.56
A11: 8.1 | B11: 29 | C11: 20 | D11: 46 | E11: 6.4 | F11: 17.9 | G11: 2.6 | H11: 37.1 | I11: 5.3 | J11: 0.389 | K11: 0.01 | L11: 10.9 | M11: 0.09174311927 | N11: =[1]!AgePb6U8(M11) -> 565.8379428 | O11: 0.46
A12: 9.1 | B12: 27 | C12: 17 | D12: 37.5 | E12: 2.7 | F12: 16.8 | G12: 1.3 | H12: 37.7 | I12: 2.9 | J12: 0.447 | K12: 0.013 | L12: 10.82 | M12: 0.09242144177 | N12: =[1]!AgePb6U8(M12) -> 569.8419891 | O12: 0.44
A13: 10.1 | B13: 36 | C13: 21 | D13: 43.4 | E13: 3.7 | F13: 17.7 | G13: 1.8 | H13: 43.7 | I13: 4.4 | J13: 0.409 | K13: 0.022 | L13: 11.32 | M13: 0.08833922261 | N13: =[1]!AgePb6U8(M13) -> 545.7075606 | O13: 0.91
A14: 11.1 | B14: 46 | C14: 19 | D14: 44.8 | E14: 3.3 | F14: 17 | G14: 1.9 | H14: 36.6 | I14: 4.2 | J14: 0.38 | K14: 0.033 | L14: 11.05 | M14: 0.09049773756 | N14: =[1]!AgePb6U8(M14) -> 558.4801416 | O14: 0.78
A15: 12.1 | B15: 111 | C15: 25 | D15: 78.8 | E15: 5.1 | F15: 20.3 | G15: 1.4 | H15: 42.4 | I15: 2.9 | J15: 0.258 | K15: 0.005 | L15: 17.3 | M15: 0.05780346821 | N15: =[1]!AgePb6U8(M15) -> 362.2533979 | O15: 0.63
A16: 13.1 | B16: 26 | C16: 17 | D16: 29.7 | E16: 2.9 | F16: 17.3 | G16: 2 | H16: 34.6 | I16: 4.1 | J16: 0.583 | K16: 0.037 | L16: 8.56 | M16: 0.1168224299 | N16: =[1]!AgePb6U8(M16) -> 712.2484249 | O16: 0.7
A17: 14.1 | B17: 29 | C17: 19 | D17: 38.9 | E17: 3.3 | F17: 18 | G17: 1.9 | H17: 42.8 | I17: 4.4 | J17: 0.462 | K17: 0.027 | L17: 13.31 | M17: 0.07513148009 | N17: =[1]!AgePb6U8(M17) -> 466.9973322 | O17: 0.65
A18: 15.1 | B18: 48 | C18: 20 | D18: 44.2 | E18: 3.7 | F18: 17.7 | G18: 1.8 | H18: 42.2 | I18: 4.2 | J18: 0.401 | K18: 0.023 | L18: 13.781 | M18: 0.07256367462 | N18: =[1]!AgePb6U8(M18) -> 451.5825324 | O18: 0.31
A21: Sample | B21: Pb-207/206 | C21: 238U/206Pb
A22: Number | B22: Ages | C22: Age
A23: 0.446 | B23: 4071.921664 | C23: 692.3400635
A24: 0.552 | B24: 4386.462892 | C24: 1001.45328
A25: 0.509 | B25: 4267.486448 | C25: 823.3642143
A26: 0.569 | B26: 4430.765086 | C26: 951.1199053
A27: 0.515 | B27: 4284.72672 | C27: 768.338548
A28: 0.449 | B28: 4081.898121 | C28: 556.0699067
A29: 0.329 | B29: 3612.428342 | C29: 445.0638094
A30: 0.389 | B30: 3867.096179 | C30: 565.8379428
A31: 0.447 | B31: 4075.255246 | C31: 569.8419891
A32: 0.409 | B32: 3942.497979 | C32: 545.7075606
A33: 0.38 | B33: 3831.76728 | C33: 558.4801416
A34: 0.258 | B34: 3234.534778 | C34: 362.2533979
A35: 0.583 | B35: 4466.191536 | C35: 712.2484249
A36: 0.462 | B36: 4124.306962 | C36: 466.9973322
A37: 0.401 | B37: 3912.832132 | C37: 451.5825324
B38: AVG | C38: =AVERAGE(C23:C37) -> 631.3799366
B39: MAX | C39: =MAX(C23:C37) -> 1001.45328
B40: MIN | C40: =MIN(C23:C37) -> 362.2533979
B41: STD DEV | C41: =STDEV(C23:C37) -> 188.5961955

Sheet Pb-206_22
E1: 207Pb/206Pb | F1: 207Pb/206Pb | L1: Geochimica et Cosmochimica Acta 72 (2008) 5799–5818
A2: Table 4 | E2: Ratio | F2: Age
A3: Kf.F.1-1 | B3: 0.31 | C3: 0.013 | D3: 0.0011 | E3: 1.366 | F3: =[1]!AgePb76($E$3) -> 5671.947227 | G3: 1.065 | H3: 0.014 | I3: 2
A4: Kf.KA.1-1 | B4: 0.22 | C4: 0.005 | D4: 0.0014 | E4: 1.379 | F4: =[1]!AgePb76($E$4) -> 5685.036657 | G4: 1.029 | H4: 0.026 | I4: 1
A5: Kf.KA.1-1a | B5: 0.38 | C5: 0.0112 | D5: 0.002 | E5: 1.36 | F5: =[1]!AgePb76($E$5) -> 5665.861826 | G5: 1.034 | H5: 0.032 | I5: 2
A6: Kf.KA.1-1b | B6: 0.29 | C6: 0.0088 | D6: 0.0019 | E6: 1.398 | F6: =[1]!AgePb76($E$6) -> 5703.936466 | G6: 1.011 | H6: 0.028 | I6: 2
A7: Kf.KA.1-1c | B7: 0.39 | C7: 0.0115 | D7: 0.0022 | E7: 1.367 | F7: =[1]!AgePb76($E$7) -> 5672.958734 | G7: 1.005 | H7: 0.027 | I7: 2
A8: Kf.KA.1-1r | B8: 0.98 | C8: 0.0096 | D8: 0.001 | E8: 1.328 | F8: =[1]!AgePb76($E$8) -> 5632.92329 | G8: 1.072 | H8: 0.018 | I8: 1
A9: Kf.KA.1-2 | B9: 0.26 | C9: 0.0122 | D9: 0.0026 | E9: 1.454 | F9: =[1]!AgePb76($E$9) -> 5758.113585 | G9: 1.097 | H9: 0.04 | I9: 1
A10: Kf.KA.1-2 | B10: 1.2 | C10: 0.013 | D10: 0.0011 | E10: 1.366 | F10: =[1]!AgePb76($E$10) -> 5671.947227 | G10: 1.065 | H10: 0.014 | I10: 2
A11: Kf.KA.1-3 | B11: 1.37 | C11: 0.0119 | D11: 0.0011 | E11: 1.253 | F11: =[1]!AgePb76($E$11) -> 5552.34046 | G11: 1.148 | H11: 0.018 | I11: 1
A12: Kf.KA.2-1 | B12: 4.48 | C12: 0.049 | D12: 0.0025 | E12: 0.848 | F12: =[1]!AgePb76($E$12) -> 5004.572734 | G12: 1.937 | H12: 0.049 | I12: 1
A13: Kf.KA.2-2 | B13: 0.56 | C13: 0.0367 | D13: 0.0057 | E13: 0.905 | F13: =[1]!AgePb76($E$13) -> 5096.701873 | G13: 1.72 | H13: 0.066 | I13: 1
A14: Kf.KA.4-1 | B14: 0.04 | C14: 0.0148 | D14: 0.0105 | E14: 1.165 | F14: =[1]!AgePb76($E$14) -> 5451.062605 | G14: 1.048 | H14: 0.108 | I14: 1
A15: Kf.KB.1-1 | B15: 0.07 | C15: 0.0544 | D15: 0.0112 | E15: 1.255 | F15: =[1]!AgePb76($E$15) -> 5554.554408 | G15: 1.42 | H15: 0.304 | I15: 1
A16: Kf.KB.2-1 | B16: 0.04 | C16: 0.0119 | D16: 0.0033 | E16: 0.556 | F16: =[1]!AgePb76($E$16) -> 4397.017993 | G16: 0.7 | H16: 0.071 | I16: 1
A17: Kf.KB.2-2 | B17: 0.15 | C17: 0.0456 | D17: 0.0166 | E17: 0.955 | F17: =[1]!AgePb76($E$17) -> 5172.587569 | G17: 1.613 | H17: 0.132 | I17: 1
A18: Mst.A.1-1 | B18: 0.77 | C18: 0.0082 | D18: 0.0009 | E18: 1.215 | F18: =[1]!AgePb76($E$18) -> 5509.554937 | G18: 1.202 | H18: 0.02 | I18: 2
A19: Mst.C.1-1 | B19: 0.24 | C19: 0.0101 | D19: 0.0021 | E19: 1.334 | F19: =[1]!AgePb76($E$19) -> 5639.162261 | G19: 1.591 | H19: 0.046 | I19: 2
A20: Mst.C.1-1r | B20: 0.09 | C20: 0.0042 | D20: 0.0015 | E20: 1.358 | F20: =[1]!AgePb76($E$20) -> 5663.8271 | G20: 1.159 | H20: 0.038 | I20: 2
A21: Mst.D.1-1 | B21: 0.31 | C21: 0.0044 | D21: 0.0008 | E21: 0.999 | F21: =[1]!AgePb76($E$21) -> 5235.966503 | G21: 1.358 | H21: 0.021 | I21: 2
A22: Mst.KA.1-1 | B22: 0.14 | C22: 0.013 | D22: 0.0011 | E22: 1.366 | F22: =[1]!AgePb76($E$22) -> 5671.947227 | G22: 1.065 | H22: 0.014 | I22: 2
A23: Mst.KA.3-1 | B23: 0.06 | C23: 0.0178 | D23: 0.0074 | E23: 1.566 | F23: =[1]!AgePb76($E$23) -> 5860.201579 | G23: 1.235 | H23: 0.142 | I23: 1
A24: Pyf.A.1-1 | B24: 0.61 | C24: 0.013 | D24: 0.0011 | E24: 1.366 | F24: =[1]!AgePb76($E$24) -> 5671.947227 | G24: 1.065 | H24: 0.014 | I24: 2
A25: Pbm.A.1-1 | B25: 0.18 | C25: 0.0128 | D25: 0.0038 | E25: 1.411 | F25: =[1]!AgePb76($E$25) -> 5716.713429 | G25: 1.054 | H25: 0.039 | I25: 2
E26: AVG | F26: =AVERAGE(F3:F25) -> 5506.994909
E27: MAX | F27: =MAX(F3:F25) -> 5860.201579
E28: MIN | F28: =MIN(F3:F25) -> 4397.017993
E29: STD DEV | F29: =STDEV(F3:F25) -> 328.0368215
D33: 207Pb/206Pb | E33: 207Pb/206Pb
A34: Table 5 | D34: Ratio | E34: Age
A35: A2-1 | B35: 0.00026 | C35: 30 | D35: 0.3508 | E35: =[1]!AgePb76($D$35) -> 3710.476063 | F35: 0.884 | G35: 0.037
A36: A2-2 | B36: 0.00011 | C36: 23 | D36: 0.3517 | E36: =[1]!AgePb76($D$36) -> 3714.378215 | F36: 0.779 | G36: 0.008
A37: A2-3 | B37: 0.00011 | C37: 45 | D37: 0.3495 | E37: =[1]!AgePb76($D$37) -> 3704.820091 | F37: 1.022 | G37: 0.044
A38: A2-4 | B38: 8e-05 | C38: 38 | D38: 0.351 | E38: =[1]!AgePb76($D$38) -> 3711.344161 | F38: 1.304 | G38: 0.012
A39: A3-1 | B39: 0.00029 | C39: 32 | D39: 0.3511 | E39: =[1]!AgePb76($D$39) -> 3711.778006 | F39: 2.536 | G39: 0.02
A40: A5-1 | B40: 4e-05 | C40: 27 | D40: 0.3527 | E40: =[1]!AgePb76($D$40) -> 3718.701049 | F40: 0.288 | G40: 0.001
A41: C1-1 | B41: 0.0002 | C41: 21 | D41: 0.3512 | E41: =[1]!AgePb76($D$41) -> 3712.211714 | F41: 1.242 | G41: 0.022
A42: C2-1 | B42: 0.00035 | C42: 24 | D42: 0.3545 | E42: =[1]!AgePb76($D$42) -> 3726.448216 | F42: 0.472 | G42: 0.007
A43: D1-1 | B43: 0.0001 | C43: 38 | D43: 0.3572 | E43: =[1]!AgePb76($D$43) -> 3737.988067 | F43: 1.387 | G43: 0.013
A44: D2-1 | B44: 7e-05 | C44: 23 | D44: 0.3522 | E44: =[1]!AgePb76($D$44) -> 3716.541323 | F44: 0.371 | G44: 0.007
A45: D2-2 | B45: 0.00068 | C45: 22 | D45: 0.3515 | E45: =[1]!AgePb76($D$45) -> 3713.512022 | F45: 1.012 | G45: 0.015
A46: D2-3 | B46: 0.00024 | C46: 20 | D46: 0.355 | E46: =[1]!AgePb76($D$46) -> 3728.592516 | F46: 0.936 | G46: 0.008
A47: D2-4 | B47: 0.00068 | C47: 22 | D47: 0.3483 | E47: =[1]!AgePb76($D$47) -> 3699.578563 | F47: 0.974 | G47: 0.014
A48: E1-1 | B48: 0.00048 | C48: 24 | D48: 0.3606 | E48: =[1]!AgePb76($D$48) -> 3752.38382 | F48: 1.601 | G48: 0.017
A49: H3-1 | B49: 0.00019 | C49: 29 | D49: 0.353 | E49: =[1]!AgePb76($D$49) -> 3719.995266 | F49: 1.021 | G49: 0.131
A50: H3-2 | B50: 0.00019 | C50: 55 | D50: 0.3563 | E50: =[1]!AgePb76($D$50) -> 3734.152159 | F50: 1.07 | G50: 0.124
A51: H3-3 | B51: 0.00035 | C51: 36 | D51: 0.354 | E51: =[1]!AgePb76($D$51) -> 3724.300582 | F51: 0.807 | G51: 0.083
A52: H3-3 | B52: 4e-05 | C52: 29 | D52: 0.35 | E52: =[1]!AgePb76($D$52) -> 3706.998206 | F52: 0.3 | G52: 0.003
A53: X1-1 | B53: -2.7e-05 | C53: 0.0725 | D53: 0.0725 | E53: =[1]!AgePb76($D$53) -> 1000.009876 | F53: 0.0006
A54: X1-2 | B54: 1.5e-05 | C54: 22 | D54: 0.0726 | E54: =[1]!AgePb76($D$54) -> 1002.808497 | F54: 0.0556 | G54: 0.0006
A55: X1-3 | B55: 1.5e-05 | C55: 30 | D55: 0.0725 | E55: =[1]!AgePb76($D$55) -> 1000.009876 | F55: 0.0552 | G55: 0.0006
A56: X1-4 | B56: 0 | D56: 0.0728 | E56: =[1]!AgePb76($D$56) -> 1008.390629 | F56: 0.056 | G56: 0.0006
A57: X1-5 | B57: 9e-06 | C57: 50 | D57: 0.0724 | E57: =[1]!AgePb76($D$57) -> 997.2061959 | F57: 0.055 | G57: 0.0006
A58: X1-6 | B58: 1.9e-05 | C58: 26 | D58: 0.0724 | E58: =[1]!AgePb76($D$58) -> 997.2061959 | F58: 0.0564 | G58: 0.0006
A59: X1-7 | B59: 1.5e-05 | C59: 33 | D59: 0.0728 | E59: =[1]!AgePb76($D$59) -> 1008.390629 | F59: 0.0551 | G59: 0.0006
A60: X1-8 | B60: 2.7e-05 | C60: 1 | D60: 0.0726 | E60: =[1]!AgePb76($D$60) -> 1002.808497 | F60: 0.0551 | G60: 0.0006
A61: X1-9 | B61: 1e-05 | C61: 37 | D61: 0.0727 | E61: =[1]!AgePb76($D$61) -> 1005.602075 | F61: 0.0552 | G61: 0.0006
A62: X1-10 | B62: 1.4e-05 | C62: 31 | D62: 0.0729 | E62: =[1]!AgePb76($D$62) -> 1011.174175 | F62: 0.0557 | G62: 0.0006
A63: X1-11 | B63: 7e-06 | C63: 45 | D63: 0.0727 | E63: =[1]!AgePb76($D$63) -> 1005.602075 | F63: 0.0549 | G63: 0.0006
A64: X1-12 | B64: 0 | D64: 0.0729 | E64: =[1]!AgePb76($D$64) -> 1011.174175 | F64: 0.0555 | G64: 0.0006
A65: X1-13 | B65: 4.2e-05 | C65: 28 | D65: 0.0728 | E65: =[1]!AgePb76($D$65) -> 1008.390629 | F65: 0.0568 | G65: 0.0007
A66: X1-14 | B66: 3e-05 | C66: 21 | D66: 0.0727 | E66: =[1]!AgePb76($D$66) -> 1005.602075 | F66: 0.0558 | G66: 0.0007
A67: X1-15 | B67: 2.9e-05 | C67: 25 | D67: 0.072 | E67: =[1]!AgePb76($D$67) -> 985.9405279 | F67: 0.056 | G67: 0.0012
A68: X1-16 | B68: 1.9e-05 | C68: 23 | D68: 0.0728 | E68: =[1]!AgePb76($D$68) -> 1008.390629 | F68: 0.0558 | G68: 0.0006
A69: X1-17 | B69: 7e-06 | C69: 45 | D69: 0.0727 | E69: =[1]!AgePb76($D$69) -> 1005.602075 | F69: 0.0553 | G69: 0.0006
A70: X1-18 | B70: 0 | D70: 0.0726 | E70: =[1]!AgePb76($D$70) -> 1002.808497 | F70: 0.0535 | G70: 0.0006
A71: X1-19 | B71: 1.7e-05 | C71: 22 | D71: 0.0731 | E71: =[1]!AgePb76($D$71) -> 1016.726313 | F71: 0.0559 | G71: 0.0006
A72: X1-20 | B72: 0 | D72: 0.0732 | E72: =[1]!AgePb76($D$72) -> 1019.494939 | F72: 0.0547 | G72: 0.0007
A73: X1-21 | B73: 2.7e-05 | C73: 36 | D73: 0.0728 | E73: =[1]!AgePb76($D$73) -> 1008.390629 | F73: 0.0558 | G73: 0.0006
A74: X1-22 | B74: 0 | D74: 0.0726 | E74: =[1]!AgePb76($D$74) -> 1002.808497 | F74: 0.0548 | G74: 0.0006
A75: X1-23 | B75: 2.2e-05 | C75: 26 | D75: 0.0727 | E75: =[1]!AgePb76($D$75) -> 1005.602075 | F75: 0.0553 | G75: 0.0007
A76: X1-24 | B76: 2.5e-05 | C76: 40 | D76: 0.0724 | E76: =[1]!AgePb76($D$76) -> 997.2061959 | F76: 0.0544 | G76: 0.0007
G80: 207Pb/206Pb | H80: 207Pb/206Pb
G81: Ratio | H81: Age
A82: A1-1 | B82: 0 | C82: 0.3524 | D82: 0.0016 | E82: 0.2557 | F82: 0.0022 | G82: =(C82) -> 0.3524 | H82: =[1]!AgePb76($G$82) -> 3717.405619
A83: A1-2 | B83: 4.2e-05 | C83: 0.351 | D83: 0.0022 | E83: 0.244 | F83: 0.0019 | G83: =(C83) -> 0.351 | H83: =[1]!AgePb76($G$83) -> 3711.344161
A84: A1-3 | B84: 4.6e-05 | C84: 0.3496 | D84: 0.0017 | E84: 0.3186 | F84: 0.0033 | G84: 0.3496 | H84: =[1]!AgePb76($G$84) -> 3705.255989
A85: A2-1 | B85: 0.000147 | C85: 0.3505 | D85: 0.0023 | E85: 0.3879 | F85: 0.0035 | G85: 0.3505 | H85: =[1]!AgePb76($G$85) -> 3709.172892
A86: A3-1 | B86: 2.8e-05 | C86: 0.3484 | D86: 0.0016 | E86: 0.1467 | F86: 0.0013 | G86: 0.3484 | H86: =[1]!AgePb76($G$86) -> 3700.016118
A87: A3-2 | B87: 1.9e-05 | C87: 0.3514 | D87: 0.0015 | E87: 0.1432 | F87: 0.0032 | G87: 0.3514 | H87: =[1]!AgePb76($G$87) -> 3713.078722
A88: A3-3 | B88: 0 | C88: 0.3511 | D88: 0.0016 | E88: 0.1604 | F88: 0.0014 | G88: 0.3511 | H88: =[1]!AgePb76($G$88) -> 3711.778006
A89: B1-1 | B89: 0 | C89: 0.3507 | D89: 0.0042 | E89: 0.2336 | F89: 0.0022 | G89: 0.3507 | H89: =[1]!AgePb76($G$89) -> 3710.041809
A90: B1-2 | B90: 2.7e-05 | C90: 0.3512 | D90: 0.0022 | E90: 0.242 | F90: 0.0025 | G90: 0.3512 | H90: =[1]!AgePb76($G$90) -> 3712.211714
A91: B1-3 | B91: 0 | C91: 0.3544 | D91: 0.002 | E91: 0.2458 | F91: 0.0023 | G91: 0.3544 | H91: =[1]!AgePb76($G$91) -> 3726.018957
A92: B2-1 | B92: 0 | C92: 0.3529 | D92: 0.0021 | E92: 0.1906 | F92: 0.0022 | G92: 0.3529 | H92: =[1]!AgePb76($G$92) -> 3719.563995
A93: B2-2 | B93: 3.9e-05 | C93: 0.349 | D93: 0.0022 | E93: 0.201 | F93: 0.0072 | G93: 0.349 | H93: =[1]!AgePb76($G$93) -> 3702.638537
A94: B3-1 | B94: 2.5e-05 | C94: 0.3489 | D94: 0.0019 | E94: 0.1953 | F94: 0.0019 | G94: 0.3489 | H94: =[1]!AgePb76($G$94) -> 3702.201813
A95: B3-2 | B95: 2.5e-05 | C95: 0.3514 | D95: 0.0021 | E95: 0.1613 | F95: 0.0019 | G95: 0.3514 | H95: =[1]!AgePb76($G$95) -> 3713.078722
A96: B3-3 | B96: 0 | C96: 0.3507 | D96: 0.0025 | E96: 0.1713 | F96: 0.0019 | G96: 0.3507 | H96: =[1]!AgePb76($G$96) -> 3710.041809
A97: C1-1 | B97: 0 | C97: 0.3521 | D97: 0.002 | E97: 0.2485 | F97: 0.0038 | G97: 0.3521 | H97: =[1]!AgePb76($G$97) -> 3716.108973
A98: C1-2 | B98: 2.9e-05 | C98: 0.3512 | D98: 0.0019 | E98: 0.1395 | F98: 0.0015 | G98: 0.3512 | H98: =[1]!AgePb76($G$98) -> 3712.211714
A99: D1-1 | B99: 2.8e-05 | C99: 0.3525 | D99: 0.0022 | E99: 0.154 | F99: 0.0019 | G99: 0.3525 | H99: =[1]!AgePb76($G$99) -> 3717.837564
A100: D1-2 | B100: 2.9e-05 | C100: 0.3501 | D100: 0.0021 | E100: 0.1438 | F100: 0.0029 | G100: 0.3501 | H100: =[1]!AgePb76($G$100) -> 3707.433417
A101: D1-3 | B101: 6.3e-05 | C101: 0.3484 | D101: 0.0022 | E101: 0.1576 | F101: 0.002 | G101: 0.3484 | H101: =[1]!AgePb76($G$101) -> 3700.016118
A102: D1-4 | B102: 0 | C102: 0.3487 | D102: 0.0025 | E102: 0.1675 | F102: 0.0022 | G102: 0.3487 | H102: =[1]!AgePb76($G$102) -> 3701.327949
A103: E1-1 | B103: 1.9e-05 | C103: 0.349 | D103: 0.0017 | E103: 0.1581 | F103: 0.0026 | G103: 0.349 | H103: =[1]!AgePb76($G$103) -> 3702.638537
A104: E1-2 | B104: 0 | C104: 0.3505 | D104: 0.0016 | E104: 0.1488 | F104: 0.0013 | G104: 0.3505 | H104: =[1]!AgePb76($G$104) -> 3709.172892
A105: G1-1 | B105: 4.6e-05 | C105: 0.3504 | D105: 0.0019 | E105: 0.2264 | F105: 0.0026 | G105: 0.3504 | H105: =[1]!AgePb76($G$105) -> 3708.738229
A106: G1-2 | B106: 3.8e-05 | C106: 0.353 | D106: 0.002 | E106: 0.2142 | F106: 0.0033 | G106: 0.353 | H106: =[1]!AgePb76($G$106) -> 3719.995266
A108: C2-1 | B108: 0 | C108: 0.3462 | D108: 0.0069 | E108: 0.0952 | F108: 0.0065 | G108: 0.3462 | H108: =[1]!AgePb76($G$108) -> 3690.357779
A109: F1-1 | B109: 0.000236 | C109: 0.3571 | D109: 0.0065 | E109: 0.0614 | F109: 0.0033 | G109: 0.3571 | H109: =[1]!AgePb76($G$109) -> 3737.562381
A111: X1-1 | B111: 1.2e-05 | C111: 0.0721 | D111: 0.0003 | E111: 0.0547 | F111: 0.0003 | G111: 0.0721 | H111: =[1]!AgePb76($G$111) -> 988.7646224
A112: X1-2 | B112: 6e-06 | C112: 0.0729 | D112: 0.0002 | E112: 0.0552 | F112: 0.0003 | G112: 0.0729 | H112: =[1]!AgePb76($G$112) -> 1011.174175
A113: X1-3 | B113: 1.3e-05 | C113: 0.0728 | D113: 0.0002 | E113: 0.0546 | F113: 0.0003 | G113: 0.0728 | H113: =[1]!AgePb76($G$113) -> 1008.390629
A114: X1-4 | B114: 7e-06 | C114: 0.0729 | D114: 0.0002 | E114: 0.0548 | F114: 0.0003 | G114: 0.0729 | H114: =[1]!AgePb76($G$114) -> 1011.174175
A115: X1-5 | B115: 4e-06 | C115: 0.0723 | D115: 0.0002 | E115: 0.0548 | F115: 0.0003 | G115: 0.0723 | H115: =[1]!AgePb76($G$115) -> 994.3974387
A116: X1-6 | B116: 5e-06 | C116: 0.0723 | D116: 0.0002 | E116: 0.055 | F116: 0.0003 | G116: 0.0723 | H116: =[1]!AgePb76($G$116) -> 994.3974387
A117: X1-7 | B117: 5e-06 | C117: 0.0726 | D117: 0.0002 | E117: 0.0547 | F117: 0.0004 | G117: 0.0726 | H117: =[1]!AgePb76($G$117) -> 1002.808497
A118: X1-8 | B118: 0 | C118: 0.0722 | D118: 0.0002 | E118: 0.0541 | F118: 0.0003 | G118: 0.0722 | H118: =[1]!AgePb76($G$118) -> 991.5835867
A119: X1-10 | B119: 4e-06 | C119: 0.0726 | D119: 0.0003 | E119: 0.0547 | F119: 0.0003 | G119: 0.0726 | H119: =[1]!AgePb76($G$119) -> 1002.808497
A120: X1-11 | B120: 8e-06 | C120: 0.0723 | D120: 0.0002 | E120: 0.055 | F120: 0.0003 | G120: 0.0723 | H120: =[1]!AgePb76($G$120) -> 994.3974387
A121: X1-12 | B121: 6e-06 | C121: 0.0726 | D121: 0.0002 | E121: 0.0551 | F121: 0.0003 | G121: 0.0726 | H121: =[1]!AgePb76($G$121) -> 1002.808497
A122: X1-13 | B122: 5e-06 | C122: 0.0726 | D122: 0.0002 | E122: 0.0549 | F122: 0.0003 | G122: 0.0726 | H122: =[1]!AgePb76($G$122) -> 1002.808497
A123: X1-14 | B123: 0 | C123: 0.0726 | D123: 0.0002 | E123: 0.0553 | F123: 0.0003 | G123: 0.0726 | H123: =[1]!AgePb76($G$123) -> 1002.808497
A124: X1-15 | B124: 0 | C124: 0.0724 | D124: 0.0002 | E124: 0.0544 | F124: 0.0003 | G124: 0.0724 | H124: =[1]!AgePb76($G$124) -> 997.2061959
A125: X1-16 | B125: 4e-06 | C125: 0.0722 | D125: 0.0002 | E125: 0.0546 | F125: 0.0003 | G125: 0.0722 | H125: =[1]!AgePb76($G$125) -> 991.5835867
A127: X1-9 | B127: 3e-06 | C127: 0.0719 | D127: 0.0002 | E127: 0.0548 | F127: 0.0003 | G127: 0.0719 | H127: =[1]!AgePb76($G$127) -> 983.1112854

Sheet Pb-206_23
A1: Sample | B1: 208Pb/232Th | C1: 208Pb/232Th | D1: 206Pb/238U | E1: 206Pb/238U | F1: 206Pb/204Pb | G1: 207Pb/204Pb | H1: 208Pb/204Pb | I1: 238U/204Pb | J1: 232Th/204Pb | K1: 207Pb/206Pb | L1: 207Pb/206Pb | N1: Geochimica et Cosmochimica Acta 73 (2009) 469–488 | O1: 207Pb/206Pb | P1: 206Pb/238U | Q1: 208Pb/232Th
A2: Name | B2: Ratio | C2: Age | D2: Ratio | E2: Age | F2: Ratio | G2: Ratio | H2: Ratio | I2: Ratio | J2: Ratio | K2: Ratio | L2: Age | O2: 5007.992406 | P2: 18639.33445 | Q2: 92494.77459
A3: Atl-3A | B3: =(H3/J3) -> 0.2936517267 | C3: =[1]!AgePb8Th2(B3) -> 5204.022538 | D3: =(F3/I3) -> 0.6809830508 | E3: =[1]!AgePb6U8(D3) -> 3348.130679 | F3: 20.089 | G3: 15.635 | H3: 39.966 | I3: 29.5 | J3: 136.1 | K3: =(G3/F3) -> 0.7782866245 | L3: =[1]!AgePb76(K3) -> 4882.510971 | O3: 5001.234374 | P3: 15306.78499 | Q3: 73503.49994
A4: Atl-3A | B4: 0 | D4: 0 | F4: 20.093 | G4: 15.638 | H4: 39.977 | I4: — | J4: — | K4: =(G4/F4) -> 0.7782809934 | L4: =[1]!AgePb76(K4) -> 4882.500648 | O4: 5000.08979 | P4: 10772.25468 | Q4: 42037.68124
A5: Atl-3A | B5: =(H5/J5) -> 3.251610169 | C5: =[1]!AgePb8Th2(B5) -> 29253.11318 | D5: =(F5/I5) -> 9.745263158 | E5: =[1]!AgePb6U8(D5) -> 15306.78499 | F5: 18.516 | G5: 15.607 | H5: 38.369 | I5: 1.9 | J5: 11.8 | K5: =(G5/F5) -> 0.8428926334 | L5: =[1]!AgePb76(K5) -> 4995.998755 | O5: 4995.998755 | P5: 10311.67118 | Q5: 29253.11318
A6: Atl-3C | B6: =(H6/J6) -> 0.1068097015 | C6: =[1]!AgePb8Th2(B6) -> 2051.171991 | D6: =(F6/I6) -> 0.2497066832 | E6: =[1]!AgePb6U8(D6) -> 1436.962903 | F6: 20.1763 | G6: 15.64 | H6: 40.075 | I6: 80.8 | J6: 375.2 | K6: =(G6/F6) -> 0.7751669037 | L6: =[1]!AgePb76(K6) -> 4876.779553 | O6: 4983.925729 | P6: 9290.722192 | Q6: 13018.34034
A7: Atl-3C | B7: 0 | D7: 0 | F7: 31 | G7: — | H7: — | I7: — | O7: 4964.327121 | P7: 5624.682121 | Q7: 10956.14129
A8: Atl-3C | B8: =(H8/J8) -> 0.1099753019 | C8: =[1]!AgePb8Th2(B8) -> 2108.898727 | D8: =(F8/I8) -> 0.2603393548 | E8: =[1]!AgePb6U8(D8) -> 1491.57785 | F8: 20.1763 | G8: 15.64 | H8: 40.075 | I8: 77.5 | J8: 364.4 | K8: =(G8/F8) -> 0.7751669037 | L8: =[1]!AgePb76(K8) -> 4876.779553 | O8: 4958.577663 | P8: 4508.478519 | Q8: 10621.14883
A9: Atl-3C | B9: 0 | D9: 0 | F9: — | G9: — | H9: — | O9: 4948.502248 | P9: 3766.971255 | Q9: 10021.95777
A10: Atl-3C | B10: 0 | D10: 0 | F10: 19 | G10: — | H10: — | I10: — | O10: 4942.615377 | P10: 3692.526518 | Q10: 5204.022538
A11: Atl-3E | B11: =(H11/J11) -> 0.1071891747 | C11: =[1]!AgePb8Th2(B11) -> 2058.10063 | D11: =(F11/I11) -> 0.2673670213 | E11: =[1]!AgePb6U8(D11) -> 1527.423283 | F11: 20.106 | G11: 15.635 | H11: 40.003 | I11: 75.2 | J11: 373.2 | K11: =(G11/F11) -> 0.7776285686 | L11: =[1]!AgePb76(K11) -> 4881.304058 | O11: 4893.357329 | P11: 3348.130679 | Q11: 4955.718468
A12: Atl-3E | B12: =(H12/J12) -> 0.6418708609 | C12: =[1]!AgePb8Th2(B12) -> 10021.95777 | D12: =(F12/I12) -> 3.951041667 | E12: =[1]!AgePb6U8(D12) -> 10311.67118 | F12: 18.965 | G12: 15.633 | H12: 38.769 | I12: 4.8 | J12: 60.4 | K12: =(G12/F12) -> 0.8243079357 | L12: =[1]!AgePb76(K12) -> 4964.327121 | O12: 4889.910349 | P12: 2920.571159 | Q12: 4429.416579
A13: Atl-3E | B13: =(H13/J13) -> 0.1049881921 | C13: =[1]!AgePb8Th2(B13) -> 2017.880728 | D13: =(F13/I13) -> 0.266729443 | E13: =[1]!AgePb6U8(D13) -> 1524.179449 | F13: 20.1114 | G13: 15.636 | H13: 40.011 | I13: 75.4 | J13: 381.1 | K13: =(G13/F13) -> 0.7774694949 | L13: =[1]!AgePb76(K13) -> 4881.012144 | O13: 4889.774704 | P13: 2258.854481 | Q13: 3132.882908
A14: Atl-3E | B14: 0 | D14: 0 | F14: 19.176 | G14: 15.632 | H14: 38.769± | I14: — | J14: — | K14: =(G14/F14) -> 0.8151856487 | L14: =[1]!AgePb76(K14) -> 4948.502248 | O14: 4882.510971 | P14: 2130.618933 | Q14: 2798.76329
A15: Atl-3E | B15: 0 | D15: 0 | F15: 45 | G15: — | H15: — | I15: — | O15: 4882.500648 | P15: 1980.287552 | Q15: 2597.757292
A16: Atl-3F | B16: =(H16/J16) -> 0.1371487603 | C16: =[1]!AgePb8Th2(B16) -> 2597.757292 | D16: =(F16/I16) -> 0.2770790569 | E16: =[1]!AgePb6U8(D16) -> 1576.634865 | F16: 19.9774 | G16: 15.629 | H16: 39.828 | I16: 72.1 | J16: 290.4 | K16: =(G16/F16) -> 0.7823340375 | L16: =[1]!AgePb76(K16) -> 4889.910349 | O16: 4881.810988 | P16: 1965.998895 | Q16: 2393.784399
A17: Atl-3F | B17: 0 | D17: 0 | F17: 19.9793 | G17: 15.629 | H17: 39.831 | I17: — | J17: — | K17: =(G17/F17) -> 0.7822596387 | L17: =[1]!AgePb76(K17) -> 4889.774704 | O17: 4881.304058 | P17: 1678.571999 | Q17: 2238.335413
A18: Atl-3F | B18: =(H18/J18) -> 0.9042388759 | C18: =[1]!AgePb8Th2(B18) -> 13018.34034 | D18: =(F18/I18) -> 3.225862069 | E18: =[1]!AgePb6U8(D18) -> 9290.722192 | F18: 18.71 | G18: 15.637 | H18: 38.611 | I18: 5.8 | J18: 42.7 | K18: =(G18/F18) -> 0.8357562801 | L18: =[1]!AgePb76(K18) -> 4983.925729 | O18: 4881.012144 | P18: 1576.634865 | Q18: 2108.898727
A19: Atl-3F | B19: 0 | D19: 0 | F19: 50 | G19: — | H19: — | I19: — | O19: 4876.779553 | P19: 1527.423283 | Q19: 2058.10063
A20: Atl-3I | B20: =(H20/J20) -> 0.1676572393 | C20: =[1]!AgePb8Th2(B20) -> 3132.882908 | D20: =(F20/I20) -> 0.4196421053 | E20: =[1]!AgePb6U8(D20) -> 2258.854481 | F20: 19.933 | G20: 15.632 | H20: 39.718 | I20: 47.5 | J20: 236.9 | K20: =(G20/F20) -> 0.784227161 | L20: =[1]!AgePb76(K20) -> 4893.357329 | O20: 4876.779553 | P20: 1524.179449 | Q20: 2051.171991
A21: Atl-3I | B21: 0 | D21: 0 | F21: — | G21: — | H21: — | O21: 4876.663596 | P21: 1491.57785 | Q21: 2017.880728
A22: Atl-3I | B22: 0 | D22: 0 | F22: 20 | G22: — | H22: — | I22: — | O22: 4874.368323 | P22: 1457.084426 | Q22: 1938.689533
A23: Atl-3K | B23: =(H23/J23) -> 0.1485138632 | C23: =[1]!AgePb8Th2(B23) -> 2798.76329 | D23: =(F23/I23) -> 0.3916808511 | E23: =[1]!AgePb6U8(D23) -> 2130.618933 | F23: 20.2499 | G23: 15.657 | H23: 40.173 | I23: 51.7 | J23: 270.5 | K23: =(G23/F23) -> 0.7731890034 | L23: =[1]!AgePb76(K23) -> 4873.133098 | O23: 4874.205382 | P23: 1436.962903
A24: Atl-3K | B24: 0 | D24: 0 | F24: 38 | G24: — | H24: — | I24: — | O24: 4873.133098
A25: Atl-3L | B25: =(H25/J25) -> 0.1257308657 | C25: =[1]!AgePb8Th2(B25) -> 2393.784399 | D25: =(F25/I25) -> 0.3565918728 | E25: =[1]!AgePb6U8(D25) -> 1965.998895 | F25: 20.1831 | G25: 15.644 | H25: 40.083 | I25: 56.6 | J25: 318.8 | K25: =(G25/F25) -> 0.7751039236 | L25: =[1]!AgePb76(K25) -> 4876.663596 | O25: 4872.980327
A26: Atl-3L | B26: =(H26/J26) -> 0.719537037 | C26: =[1]!AgePb8Th2(B26) -> 10956.14129 | D26: =(F26/I26) -> 4.317727273 | E26: =[1]!AgePb6U8(D26) -> 10772.25468 | F26: 18.998 | G26: 15.597 | H26: 38.855 | I26: 4.4 | J26: 54 | K26: =(G26/F26) -> 0.8209811559 | L26: =[1]!AgePb76(K26) -> 4958.577663 | O26: 4871.481281
A27: Atl-3U | B27: =(H27/J27) -> 0.1006673357 | C27: =[1]!AgePb8Th2(B27) -> 1938.689533 | D27: =(F27/I27) -> 0.2536135508 | E27: =[1]!AgePb6U8(D27) -> 1457.084426 | F27: 20.213 | G27: 15.642 | H27: 40.126 | I27: 79.7 | J27: 398.6 | K27: =(G27/F27) -> 0.773858408 | L27: =[1]!AgePb76(K27) -> 4874.368323
A28: Atl-3U | B28: 0 | D28: 0 | F28: 20.2166 | G28: 15.643 | H28: 40.134 | I28: — | J28: — | K28: =(G28/F28) -> 0.7737700701 | L28: =[1]!AgePb76(K28) -> 4874.205382
A29: Atl-3U | B29: =(H29/J29) -> 0.2778566359 | C29: =[1]!AgePb8Th2(B29) -> 4955.718468 | D29: =(F29/I29) -> 0.7938271605 | E29: =[1]!AgePb6U8(D29) -> 3766.971255 | F29: 19.29 | G29: 15.66 | H29: 39.15 | I29: 24.3 | J29: 140.9 | K29: =(G29/F29) -> 0.8118195956 | L29: =[1]!AgePb76(K29) -> 4942.615377
A30: Atl-3V | B30: =(H30/J30) -> 0.2450122699 | C30: =[1]!AgePb8Th2(B30) -> 4429.416579 | D30: =(F30/I30) -> 0.7732307692 | E30: =[1]!AgePb6U8(D30) -> 3692.526518 | F30: 20.104 | G30: 15.639 | H30: 39.937 | I30: 26 | J30: 163 | K30: =(G30/F30) -> 0.7779048945 | L30: =[1]!AgePb76(K30) -> 4881.810988
A31: Atl-3V | B31: 0 | D31: 0 | F31: — | G31: — | H31: —
A32: Atl-3V | B32: 0 | D32: 0 | F32: 74 | G32: — | H32: — | I32: —
A33: Atl-3T | B33: =(H33/J33) -> 0.1171062591 | C33: =[1]!AgePb8Th2(B33) -> 2238.335413 | D33: =(F33/I33) -> 0.3596021314 | E33: =[1]!AgePb6U8(D33) -> 1980.287552 | F33: 20.2456 | G33: 15.652 | H33: 40.226 | I33: 56.3 | J33: 343.5 | K33: =(G33/F33) -> 0.7731062552 | L33: =[1]!AgePb76(K33) -> 4872.980327
A34: Atl-3T | B34: 0 | D34: 0 | F34: — | G34: — | H34: —
A35: Atl-3T | B35: 0 | D35: 0 | F35: 36 | G35: — | H35: — | I35: —
A36: France | B36: 0 | D36: 0
A37: French | B37: 0 | D37: 0
A38: Mb47 | B38: =(H38/J38) -> 7.002982456 | C38: =[1]!AgePb8Th2(B38) -> 42037.68124 | D38: =(F38/I38) -> 0.2974340176 | E38: =[1]!AgePb6U8(D38) -> 1678.571999 | F38: 20.285 | G38: 15.666 | H38: 39.917 | I38: 68.2 | J38: 5.7 | K38: =(G38/F38) -> 0.7722947991 | L38: =[1]!AgePb76(K38) -> 4871.481281
A39: Mb47 | B39: 0 | D39: 0 | F39: 18.399 | G39: 15.64 | H39: 38.299 | I39: — | J39: — | K39: =(G39/F39) -> 0.8500461982 | L39: =[1]!AgePb76(K39) -> 5007.992406
A40: Br12 | B40: =(H40/J40) -> 0.6912727273 | C40: =[1]!AgePb8Th2(B40) -> 10621.14883 | D40: =(F40/I40) -> 1.392954545 | E40: =[1]!AgePb6U8(D40) -> 5624.682121 | F40: 18.387 | G40: 15.543 | H40: 38.02 | I40: 13.2 | J40: 55 | K40: =(G40/F40) -> 0.8453255017 | L40: =[1]!AgePb76(K40) -> 5000.08979
A41: Br12 | B41: 0 | D41: 0 | F41: 18.397 | G41: 15.564 | H41: 38.12 | I41: — | J41: — | K41: =(G41/F41) -> 0.8460075012 | L41: =[1]!AgePb76(K41) -> 5001.234374
A42: 71-321 | D42: =(F42/I42) -> 17.019 | E42: =[1]!AgePb6U8(D42) -> 18639.33445 | F42: 17.019 | I42: 1
A43: 70-379 w | D43: =(F43/I43) -> 1.0125 | E43: =[1]!AgePb6U8(D43) -> 4508.478519 | F43: 17.01 | I43: 16.8
A44: 71-321 | B44: =(H44/J44) -> 36.962 | C44: =[1]!AgePb8Th2(B44) -> 73503.49994 | H44: 36.962 | J44: 1
A45: 72-228 | D45: =(F45/I45) -> 0.5731085044 | E45: =[1]!AgePb6U8(D45) -> 2920.571159 | F45: 19.543 | I45: 34.1
B46: =(H46/J46) -> 96.1425 | C46: =[1]!AgePb8Th2(B46) -> 92494.77459 | H46: 38.457 | J46: 0.4
B47: Average | C47: =AVERAGE(C3:C41) -> 8096.51606 | D47: Average | E47: =AVERAGE(E3:E41) -> 4270.628329 | K47: Average | L47: =AVERAGE(L3:L41) -> 4915.273431
B48: Maximum | C48: =MAX(C3:C47) -> 92494.77459 | D48: Maximum | E48: =MAX(E3:E47) -> 18639.33445 | K48: Maximum | L48: =MAX(L3:L47) -> 5007.992406
B49: Minimum | C49: =MIN(C3:C48) -> 1938.689533 | D49: Minimum | E49: =MIN(E3:E48) -> 1436.962903 | K49: Minimum | L49: =MIN(L3:L48) -> 4871.481281
A50: ( | B50: Difference | C50: =(C48-C49) -> 90556.08505 | D50: Difference | E50: =(E48-E49) -> 17202.37155 | K50: Difference | L50: =(L48-L49) -> 136.511125
A53: Sample | B53: 207Pb/206Pb | F53: 232Th/208Pb | G53: 207Pb/206Pb
A54: Name | B54: Age | F54: Age | G54: Age
A55: Atl-3A | B55: 5007.992406 | F55: 8096.51606 | G55: 4915.273431
A56: Atl-3A | B56: 5001.234374 | F56: 92494.77459 | G56: 5007.992406
A57: Atl-3A | B57: 5000.08979 | F57: 1938.689533 | G57: 4871.481281
A58: Atl-3C | B58: 4995.998755 | F58: 90556.08505 | G58: 136.511125
A59: Atl-3C | B59: 4983.925729
A60: Atl-3E | B60: 4964.327121
A61: Atl-3E | B61: 4958.577663
A62: Atl-3E | B62: 4948.502248
A63: Atl-3E | B63: 4942.615377
A64: Atl-3F | B64: 4893.357329
A65: Atl-3F | B65: 4889.910349
A66: Atl-3F | B66: 4889.774704
A67: Atl-3I | B67: 4882.510971
A68: Atl-3K | B68: 4882.500648
A69: Atl-3L | B69: 4881.810988
A70: Atl-3L | B70: 4881.304058
A71: Atl-3U | B71: 4881.012144
A72: Atl-3U | B72: 4876.779553
A73: Atl-3U | B73: 4876.779553
A74: Atl-3V | B74: 4876.663596
A75: Atl-3T | B75: 4874.368323
A76: Mb47 | B76: 4874.205382
A77: Mb47 | B77: 4873.133098
A78: Br12 | B78: 4872.980327
A79: Br12 | B79: 4871.481281
A80: AVG
A81: MAX
A82: MIN
A83: STD DEV
A92: Age
A93: 42037.68124
A94: 29253.11318
A95: 13018.34034
A96: 10956.14129
A97: 10621.14883
A98: 10021.95777
A99: 5204.022538
A100: 4955.718468
A101: 4429.416579
A102: 3132.882908
A103: 2798.76329
A104: 2597.757292
A105: 2393.784399
A106: 2238.335413
A107: 2108.898727
A108: 2058.10063
A109: 2051.171991
A110: 2017.880728
A111: 1938.689533
A112: 0
A113: 0
A114: 0
A115: 0
A116: 0
A117: 0
A118: 0
A119: 0
A120: 0
A121: 0
A122: 0
A123: 0
A124: 0
A125: 0
A126: 0
A127: 0
A128: 0
A129: 0
A130: 0
A131: 0

Sheet Pb-206_24
D1: 238U/204Pb | F1: 206Pb/204Pb | H1: 207Pb/204Pb | L1: 206Pb/238U | M1: 206Pb/238U | O1: 207Pb/235U | P1: 207Pb/235U | R1: 207Pb/206Pb | S1: 207Pb/206Pb | U1: 4982.058295 | V1: Geochimica et Cosmochimica Acta, Vol. 62, No. 16, pp. 2823–2835, 1998
D2: Ratio | F2: Ratio | H2: Ratio | L2: Ratio | M2: Age | O2: Ratio | P2: Age | R2: Ratio | S2: Age | U2: 4971.347986
A3: A1 | B3: 2.02 | C3: 0.76 | D3: 183 | E3: -2 | F3: 24.28 | G3: -14 | H3: 15.99 | I3: -13 | J3: 39.06 | K3: -38 | L3: 0.1325 | M3: =[1]!AgePb6U8(L3) -> 802.1117059 | N3: -16 | O3: 12.03 | P3: =[1]!AgePb7U5(O3) -> 2606.746602 | Q3: -16 | R3: =(H3/F3) -> 0.6585667216 | S3: =[1]!AgePb76($R$3) -> 4642.857639 | U3: 4950.258802
A4: A2 | B4: 2.68 | C4: 0.54 | D4: 382 | E4: -3 | F4: 31.24 | G4: -18 | H4: 16.53 | I4: -10 | J4: 39.69 | K4: -24 | L4: 0.0819 | M4: =[1]!AgePb6U8(L4) -> 507.4536968 | N4: -7 | O4: 5.97 | P4: =[1]!AgePb7U5(O4) -> 1971.483195 | Q4: -5 | R4: =(H4/F4) -> 0.5291293214 | S4: =[1]!AgePb76($R$4) -> 4324.481993 | U4: 4942.602278
A5: A3 | B5: 2.4 | C5: 0.52 | D5: 344 | E5: -2 | F5: 29.68 | G5: -7 | H5: 16.22 | I5: -3 | J5: 39.02 | K5: -9 | L5: 0.0863 | M5: =[1]!AgePb6U8(L5) -> 533.6175759 | N5: -7 | O5: 6.51 | P5: =[1]!AgePb7U5(O5) -> 2047.251323 | Q5: -6 | R5: 0.5464959569 | S5: =[1]!AgePb76($R$5) -> 4371.803305 | U5: 4937.034185
A6: A4 | B6: 2.68 | C6: 0.36 | D6: 605 | E6: -4 | F6: 38.53 | G6: -13 | H6: 16.7 | I6: -3 | J6: 39 | K6: -9 | L6: 0.0636 | M6: =[1]!AgePb6U8(L6) -> 397.4819042 | N6: -6 | O6: 3.8 | P6: =[1]!AgePb7U5(O6) -> 1592.74602 | Q6: -3 | R6: 0.4334284973 | S6: =[1]!AgePb76($R$6) -> 4029.305247 | U6: 4936.934085
A7: A5 | B7: 1.27 | C7: 0.75 | D7: 114 | E7: -1 | F7: 21.96 | G7: -18 | H7: 15.77 | I7: -13 | J7: 38.85 | K7: -34 | L7: 0.1925 | M7: =[1]!AgePb6U8(L7) -> 1134.903747 | N7: -18 | O7: 19.05 | P7: =[1]!AgePb7U5(O7) -> 3044.351073 | Q7: -18 | R7: 0.7181238616 | S7: =[1]!AgePb76($R$7) -> 4767.417159 | U7: 4928.095934
A8: A6 | B8: 2.58 | C8: 0.51 | D8: 381 | E8: -2 | F8: 31.09 | G8: -8 | H8: 16.33 | I8: -5 | J8: 38.95 | K8: -12 | L8: 0.0817 | M8: =[1]!AgePb6U8(L8) -> 506.2619027 | N8: -7 | O8: 5.91 | P8: =[1]!AgePb7U5(O8) -> 1962.704613 | Q8: -5 | R8: 0.5252492763 | S8: =[1]!AgePb76($R$8) -> 4313.680184 | U8: 4919.914811
A9: A7 | B9: 1.49 | C9: 0.39 | D9: 279 | E9: -2 | F9: 27.6 | G9: -9 | H9: 16.1 | I9: -5 | J9: 38.89 | K9: -13 | L9: 0.099 | M9: =[1]!AgePb6U8(L9) -> 608.5458528 | N9: -9 | O9: 7.96 | P9: =[1]!AgePb7U5(O9) -> 2226.501728 | Q9: -7 | R9: 0.5833333333 | S9: =[1]!AgePb76($R$9) -> 4467.023823 | U9: 4919.602856
A10: A8 | B10: 1.54 | C10: 0.31 | D10: 374 | E10: -3 | F10: 31.04 | G10: -20 | H10: 16.5 | I10: -10 | J10: 39.4 | K10: -25 | L10: 0.083 | M10: =[1]!AgePb6U8(L10) -> 514.0046286 | N10: -7 | O10: 6.08 | P10: =[1]!AgePb7U5(O10) -> 1987.382756 | Q10: -5 | R10: 0.5315721649 | S10: =[1]!AgePb76($R$10) -> 4331.238904 | U10: 4902.364434
A11: A9 | B11: 1.85 | C11: 0.25 | D11: 617 | E11: -6 | F11: 38.82 | G11: -28 | H11: 16.77 | I11: -11 | J11: 39.27 | K11: -26 | L11: 0.0629 | M11: =[1]!AgePb6U8(L11) -> 393.2378505 | N11: -5 | O11: 3.74 | P11: =[1]!AgePb7U5(O11) -> 1579.973738 | Q11: -4 | R11: 0.4319938176 | S11: =[1]!AgePb76($R$11) -> 4024.356321 | U11: 4901.778566
A12: Zw2 | B12: 2.14 | C12: 0.51 | D12: 309 | E12: -4 | F12: 29.09 | G12: -13 | H12: 16.25 | I12: -4 | J12: 39.28 | K12: -10 | L12: 0.0942 | M12: =[1]!AgePb6U8(L12) -> 580.3287842 | N12: -7 | O12: 7.26 | P12: =[1]!AgePb7U5(O12) -> 2143.904744 | Q12: -6 | R12: 0.5586112066 | S12: =[1]!AgePb76($R$12) -> 4403.8643 | U12: 4887.819554
A13: M25JJ | B13: 1.57 | C13: 0.61 | D13: 179.7 | E13: -7 | F13: 24.52 | G13: -4 | H13: 15.96 | I13: -3 | J13: 38.98 | K13: -9 | L13: 0.1364 | M13: =[1]!AgePb6U8(L13) -> 824.273141 | N13: -5 | O13: 12.24 | P13: =[1]!AgePb7U5(O13) -> 2622.980708 | Q13: -5 | R13: 0.6508972268 | S13: =[1]!AgePb76($R$13) -> 4625.946004 | U13: 4882.282588
A14: M25KK | B14: 1.19 | C14: 0.82 | D14: 98 | E14: -6 | F14: 21.9 | G14: -3 | H14: 15.84 | I14: -3 | J14: 39.1 | K14: -9 | L14: 0.2234 | M14: =[1]!AgePb6U8(L14) -> 1299.815425 | N14: -13 | O14: 22.27 | P14: =[1]!AgePb7U5(O14) -> 3195.577984 | Q14: -13 | R14: 0.7232876712 | S14: =[1]!AgePb76($R$14) -> 4777.692319 | U14: 4871.091481
A15: Zw15 | B15: 0.16 | C15: 1.35 | D15: 7.4 | E15: -15 | F15: 18.87 | G15: -5 | H15: 15.75 | I15: -5 | J15: 38.91 | K15: -13 | L15: 2.55 | M15: =[1]!AgePb6U8(L15) -> 8167.268999 | N15: -5 | O15: 293 | P15: =[1]!AgePb7U5(O15) -> 5771.010578 | Q15: -6 | R15: 0.8346581876 | S15: =[1]!AgePb76($R$15) -> 4982.058295 | U15: 4854.080207
A16: Zw20 | B16: 1.22 | C16: 1.25 | D16: 64.5 | E16: -6 | F16: 20.67 | G16: -5 | H16: 15.77 | I16: -4 | J16: 38.96 | K16: -11 | L16: 0.3204 | M16: =[1]!AgePb6U8(L16) -> 1791.682327 | N16: -25 | O16: 33.71 | P16: =[1]!AgePb7U5(O16) -> 3601.591948 | Q16: -27 | R16: 0.7629414611 | S16: =[1]!AgePb76($R$16) -> 4854.080207 | U16: 4838.437412
A17: Zw100 | B17: 2.4 | C17: 0.5 | D17: 364 | E17: -4 | F17: 30.88 | G17: -14 | H17: 16.44 | I17: -4 | J17: 39.3 | K17: -11 | L17: 0.0847 | M17: =[1]!AgePb6U8(L17) -> 524.11572 | N17: -6 | O17: 6.22 | P17: =[1]!AgePb7U5(O17) -> 2007.265018 | Q17: -5 | R17: 0.5323834197 | S17: =[1]!AgePb76($R$17) -> 4333.475419 | U17: 4836.42506
A18: Zw101 | B18: 1.77 | C18: 0.39 | D18: 341 | E18: -7 | F18: 29.91 | G18: -21 | H18: 16.4 | I18: -4 | J18: 39.27 | K18: -10 | L18: 0.0878 | M18: =[1]!AgePb6U8(L18) -> 542.5128639 | N18: -9 | O18: 6.64 | P18: =[1]!AgePb7U5(O18) -> 2064.677467 | Q18: -8 | R18: 0.5483116015 | S18: =[1]!AgePb76($R$18) -> 4376.65667 | U18: 4824.673203
A19: Zw104 | B19: 1.51 | C19: 0.89 | D19: 115 | E19: -1 | F19: 22.48 | G19: -4 | H19: 15.92 | I19: -3 | J19: 39.12 | K19: -8 | L19: 0.1956 | M19: =[1]!AgePb6U8(L19) -> 1151.639977 | N19: -12 | O19: 19.1 | P19: =[1]!AgePb7U5(O19) -> 3046.880048 | Q19: -12 | R19: 0.7081850534 | S19: =[1]!AgePb76($R$19) -> 4747.416515 | U19: 4824.43543
A20: Zw105 | B20: 1.52 | C20: 0.58 | D20: 184 | E20: -2 | F20: 24.73 | G20: -6 | H20: 16.03 | I20: -3 | J20: 39.03 | K20: -8 | L20: 0.1346 | M20: =[1]!AgePb6U8(L20) -> 814.0542524 | N20: -9 | O20: 12.03 | P20: =[1]!AgePb7U5(O20) -> 2606.746602 | Q20: -9 | R20: 0.6482005661 | S20: =[1]!AgePb76($R$20) -> 4619.948934 | U20: 4809.677746
A21: Zw102 | B21: 2.48 | C21: 1.35 | D21: 125.9 | E21: -6 | F21: 23.17 | G21: -3 | H21: 15.93 | I21: -2 | J21: 39.11 | K21: -8 | L21: 0.184 | M21: =[1]!AgePb6U8(L21) -> 1088.789921 | N21: -7 | O21: 17.45 | P21: =[1]!AgePb7U5(O21) -> 2959.906961 | Q21: -7 | R21: 0.6875269745 | S21: =[1]!AgePb76($R$21) -> 4704.867337 | U21: 4787.376926
A22: B1 | B22: 4.36 | C22: 1.83 | D22: 159.9 | E22: -7 | F22: 22.16 | G22: -3 | H22: 15.85 | I22: -3 | J22: 38.79 | K22: -11 | L22: 0.1385 | M22: =[1]!AgePb6U8(L22) -> 836.1747399 | N22: -6 | O22: 13.67 | P22: =[1]!AgePb7U5(O22) -> 2727.120467 | Q22: -6 | R22: 0.7152527076 | S22: =[1]!AgePb76($R$22) -> 4761.66983 | U22: 4777.692319
A23: B3 | B23: 4.18 | C23: 1.78 | D23: 160 | E23: -1 | F23: 22.55 | G23: -3 | H23: 15.92 | I23: -3 | J23: 39.03 | K23: -8 | L23: 0.1413 | M23: =[1]!AgePb6U8(L23) -> 852.0094348 | N23: -12 | O23: 13.75 | P23: =[1]!AgePb7U5(O23) -> 2732.642618 | Q23: -12 | R23: 0.7059866962 | S23: =[1]!AgePb76($R$23) -> 4742.952091 | U23: 4774.124613
A24: N24a | B24: 14.4 | C24: 2.45 | D24: 398 | E24: -4 | F24: 22.66 | G24: -3 | H24: 15.93 | I24: -3 | J24: 38.7 | K24: -9 | L24: 0.0569 | M24: =[1]!AgePb6U8(L24) -> 356.7451735 | N24: -6 | O24: 5.52 | P24: =[1]!AgePb7U5(O24) -> 1903.715668 | Q24: -6 | R24: 0.7030008826 | S24: =[1]!AgePb76($R$24) -> 4736.864651 | U24: 4767.417159
A25: N24b | B25: 7.8 | C25: 1.85 | D25: 284 | E25: -1 | F25: 22.21 | G25: -5 | H25: 15.9 | I25: -4 | J25: 38.83 | K25: -11 | L25: 0.0783 | M25: =[1]!AgePb6U8(L25) -> 485.9676191 | N25: -3 | O25: 7.73 | P25: =[1]!AgePb7U5(O25) -> 2200.096837 | Q25: -3 | R25: 0.7158937416 | S25: =[1]!AgePb76($R$25) -> 4762.955153 | U25: 4766.051046
A26: NH1 | B26: 7.44 | C26: 2.5 | D26: 197.8 | E26: -8 | F26: 21.22 | G26: -2 | H26: 15.86 | I26: -2 | J26: 38.98 | K26: -8 | L26: 0.1073 | M26: =[1]!AgePb6U8(L26) -> 657.0483141 | N26: -4 | O26: 11.05 | P26: =[1]!AgePb7U5(O26) -> 2527.354074 | Q26: -4 | R26: 0.7474081056 | S26: =[1]!AgePb76($R$26) -> 4824.673203 | U26: 4762.955153
A27: NH2 | B27: 8.62 | C27: 3.97 | D27: 145.7 | E27: -5 | F27: 22.01 | G27: -2 | H27: 15.88 | I27: -3 | J27: 38.86 | K27: -8 | L27: 0.1511 | M27: =[1]!AgePb6U8(L27) -> 907.1265556 | N27: -5 | O27: 15.02 | P27: =[1]!AgePb7U5(O27) -> 2816.508038 | Q27: -5 | R27: 0.7214902317 | S27: =[1]!AgePb76($R$27) -> 4774.124613 | U27: 4761.66983
A28: NH3 | B28: 10.4 | C28: 2.86 | D28: 240 | E28: -1 | F28: 20.49 | G28: -2 | H28: 15.82 | I28: -2 | J28: 38.86 | K28: -8 | L28: 0.0853 | M28: =[1]!AgePb6U8(L28) -> 527.6805574 | N28: -4 | O28: 9.08 | P28: =[1]!AgePb7U5(O28) -> 2346.096627 | Q28: -4 | R28: 0.7720839434 | S28: =[1]!AgePb76($R$28) -> 4871.091481 | U28: 4747.416515
A29: NH4 | B29: 13.1 | C29: 2.87 | D29: 308 | E29: -2 | F29: 22.19 | G29: -2 | H29: 15.92 | I29: -2 | J29: 38.98 | K29: -8 | L29: 0.072 | M29: =[1]!AgePb6U8(L29) -> 448.1937963 | N29: -4 | O29: 7.12 | P29: =[1]!AgePb7U5(O29) -> 2126.547346 | Q29: -4 | R29: 0.7174402884 | S29: =[1]!AgePb76($R$29) -> 4766.051046 | U29: 4742.952091
A30: NH5 | B30: 8.35 | C30: 3.08 | D30: 180.5 | E30: -5 | F30: 21.43 | G30: -2 | H30: 15.85 | I30: -3 | J30: 38.87 | K30: -8 | L30: 0.1187 | M30: =[1]!AgePb6U8(L30) -> 723.0768533 | N30: -4 | O30: 12.1 | P30: =[1]!AgePb7U5(O30) -> 2612.186861 | Q30: -4 | R30: 0.7396173588 | S30: =[1]!AgePb76($R$30) -> 4809.677746 | U30: 4736.864651
A31: NH6 | B31: 5.86 | C31: 3.12 | D31: 124.7 | E31: -5 | F31: 21.17 | G31: -2 | H31: 15.82 | I31: -2 | J31: 38.83 | K31: -8 | L31: 0.1697 | M31: =[1]!AgePb6U8(L31) -> 1010.458054 | N31: -7 | O31: 17.49 | P31: =[1]!AgePb7U5(O31) -> 2962.105951 | Q31: -7 | R31: 0.7472838923 | S31: =[1]!AgePb76($R$31) -> 4824.43543 | U31: 4704.867337
A32: NH8 | B32: 7.91 | C32: 3.42 | D32: 153.2 | E32: -6 | F32: 20.98 | G32: -2 | H32: 15.81 | I32: -2 | J32: 38.89 | K32: -8 | L32: 0.1369 | M32: =[1]!AgePb6U8(L32) -> 827.1088487 | N32: -5 | O32: 14.23 | P32: =[1]!AgePb7U5(O32) -> 2765.159331 | Q32: -6 | R32: 0.7535748332 | S32: =[1]!AgePb76($R$32) -> 4836.42506 | U32: 4642.857639
A33: NH9 | B33: 6.55 | C33: 3.28 | D33: 132 | E33: -1 | F33: 21.03 | G33: -3 | H33: 15.87 | I33: -3 | J33: 38.84 | K33: -9 | L33: 0.1588 | M33: =[1]!AgePb6U8(L33) -> 950.1046699 | N33: -15 | O33: 16.52 | P33: =[1]!AgePb7U5(O33) -> 2907.390045 | Q33: -16 | R33: 0.754636234 | S33: =[1]!AgePb76($R$33) -> 4838.437412 | U33: 4625.946004
A34: NH10 | B34: 8.65 | C34: 3.09 | D34: 187.2 | E34: -7 | F34: 21.78 | G34: -2 | H34: 15.86 | I34: -2 | J34: 38.85 | K34: -8 | L34: 0.1163 | M34: =[1]!AgePb6U8(L34) -> 709.2322001 | N34: -4 | O34: 11.68 | P34: =[1]!AgePb7U5(O34) -> 2579.099303 | Q34: -4 | R34: 0.7281910009 | S34: =[1]!AgePb76($R$34) -> 4787.376926 | U34: 4619.948934
A35: S1 | B35: 7.21 | C35: 1.12 | D35: 506 | E35: -2 | F35: 34.62 | G35: -8 | H35: 16.43 | I35: -5 | J35: 38.78 | K35: -13 | L35: 0.0684 | M35: =[1]!AgePb6U8(L35) -> 426.5089589 | N35: -4 | O35: 4.48 | P35: =[1]!AgePb7U5(O35) -> 1727.273291 | Q35: -3 | R35: 0.474581167 | S35: =[1]!AgePb76($R$35) -> 4164.13195 | U35: 4467.023823
A36: S2 | B36: 5.45 | C36: 1.02 | D36: 404 | E36: -1 | F36: 31.33 | G36: -3 | H36: 16.3 | I36: -3 | J36: 38.85 | K36: -9 | L36: 0.0776 | M36: =[1]!AgePb6U8(L36) -> 481.7814415 | N36: -5 | O36: 5.57 | P36: =[1]!AgePb7U5(O36) -> 1911.472643 | Q36: -4 | R36: 0.5202681136 | S36: =[1]!AgePb76($R$36) -> 4299.685802 | U36: 4403.8643
A37: S3 | B37: 5.84 | C37: 1.24 | D37: 352 | E37: -1 | F37: 30.44 | G37: -4 | H37: 16.31 | I37: -3 | J37: 38.97 | K37: -9 | L37: 0.0866 | M37: =[1]!AgePb6U8(L37) -> 535.3976157 | N37: -5 | O37: 6.4 | P37: =[1]!AgePb7U5(O37) -> 2032.268874 | Q37: -4 | R37: 0.5358081472 | S37: =[1]!AgePb76($R$37) -> 4342.876509 | U37: 4376.65667
A38: S4 | B38: 5.9 | C38: 1.07 | D38: 420 | E38: -1 | F38: 32.29 | G38: -4 | H38: 16.37 | I38: -3 | J38: 38.95 | K38: -8 | L38: 0.0768 | M38: =[1]!AgePb6U8(L38) -> 476.9939075 | N38: -5 | O38: 5.37 | P38: =[1]!AgePb7U5(O38) -> 1880.082723 | Q38: -3 | R38: 0.5069681016 | S38: =[1]!AgePb76($R$38) -> 4261.598135 | U38: 4371.803305
A39: S5 | B39: 8.37 | C39: 1.05 | D39: 601 | E39: -2 | F39: 31.34 | G39: -4 | H39: 16.3 | I39: -3 | J39: 38.93 | K39: -8 | L39: 0.0522 | M39: =[1]!AgePb6U8(L39) -> 328.0142486 | N39: -3 | O39: 3.74 | P39: =[1]!AgePb7U5(O39) -> 1579.973738 | Q39: -2 | R39: 0.5201021059 | S39: =[1]!AgePb76($R$39) -> 4299.216919 | U39: 4342.876509
A40: S6 | B40: 5.87 | C40: 1.15 | D40: 399 | E40: -1 | F40: 33.9 | G40: -7 | H40: 16.47 | I40: -4 | J40: 38.95 | K40: -11 | L40: 0.0851 | M40: =[1]!AgePb6U8(L40) -> 526.4924973 | N40: -5 | O40: 5.7 | P40: =[1]!AgePb7U5(O40) -> 1931.367748 | Q40: -3 | R40: 0.485840708 | S40: =[1]!AgePb76($R$40) -> 4198.813251 | U40: 4333.475419
A41: S7 | B41: 6.64 | C41: 0.87 | D41: 583 | E41: -1 | F41: 31.81 | G41: -4 | H41: 16.31 | I41: -3 | J41: 38.97 | K41: -9 | L41: 0.0545 | M41: =[1]!AgePb6U8(L41) -> 342.0900624 | N41: -3 | O41: 3.85 | P41: =[1]!AgePb7U5(O41) -> 1603.268218 | Q41: -2 | R41: 0.5127318453 | S41: =[1]!AgePb76($R$41) -> 4278.235127 | U41: 4331.238904
A42: S8 | B42: 4.9 | C42: 0.98 | D42: 381.3 | E42: -9 | F42: 32.49 | G42: -4 | H42: 16.36 | I42: -3 | J42: 38.89 | K42: -8 | L42: 0.0852 | M42: =[1]!AgePb6U8(L42) -> 527.0865547 | N42: -5 | O42: 5.92 | P42: =[1]!AgePb7U5(O42) -> 1964.17299 | Q42: -4 | R42: 0.5035395506 | S42: =[1]!AgePb76($R$42) -> 4251.604247 | U42: 4326.588362
A43: S9 | B43: 3.99 | C43: 1.18 | D43: 253.5 | E43: -6 | F43: 30.78 | G43: -3 | H43: 16.31 | I43: -3 | J43: 38.9 | K43: -8 | L43: 0.1214 | M43: =[1]!AgePb6U8(L43) -> 738.6166299 | N43: -7 | O43: 8.87 | P43: =[1]!AgePb7U5(O43) -> 2324.719352 | Q43: -5 | R43: 0.5298895387 | S43: =[1]!AgePb76($R$43) -> 4326.588362 | U43: 4324.481993
A44: S10 | B44: 5.37 | C44: 1.09 | D44: 387 | E44: -1 | F44: 34.82 | G44: -4 | H44: 16.49 | I44: -3 | J44: 38.89 | K44: -9 | L44: 0.09 | M44: =[1]!AgePb6U8(L44) -> 555.5371232 | N44: -6 | O44: 5.88 | P44: =[1]!AgePb7U5(O44) -> 1958.286695 | Q44: -4 | R44: 0.4735784032 | S44: =[1]!AgePb76($R$44) -> 4161.000049 | U44: 4313.680184
A45: S11 | B45: 5.56 | C45: 0.82 | D45: 530 | E45: -1 | F45: 34.34 | G45: -4 | H45: 16.44 | I45: -3 | J45: 38.84 | K45: -8 | L45: 0.0647 | M45: =[1]!AgePb6U8(L45) -> 404.1454913 | N45: -4 | O45: 4.27 | P45: =[1]!AgePb7U5(O45) -> 1687.597464 | Q45: -3 | R45: 0.4787419918 | S45: =[1]!AgePb76($R$45) -> 4177.051015 | U45: 4299.685802
A46: N1 | B46: 0.375 | C46: 0.344 | D46: 70.46 | E46: -39 | F46: 19.55 | G46: -2 | H46: 15.71 | I46: -3 | J46: 38.6 | K46: -8 | L46: 0.277 | M46: =[1]!AgePb6U8(L46) -> 1576.235791 | N46: -2 | O46: 30.7 | P46: =[1]!AgePb7U5(O46) -> 3509.485384 | Q46: -2 | R46: 0.8035805627 | S46: =[1]!AgePb76($R$46) -> 4928.095934 | U46: 4299.216919
A47: N2 | B47: 0.122 | C47: 0.353 | D47: 22.13 | E47: -9 | F47: 18.88 | G47: -3 | H47: 15.64 | I47: -3 | J47: 38.58 | K47: -9 | L47: 0.852 | M47: =[1]!AgePb6U8(L47) -> 3972.706761 | N47: -5 | O47: 97.4 | P47: =[1]!AgePb7U5(O47) -> 4659.634263 | Q47: -6 | R47: 0.8283898305 | S47: =[1]!AgePb76($R$47) -> 4971.347986 | U47: 4278.235127
A48: N3 | B48: 0.623 | C48: 0.337 | D48: 120.98 | E48: -57 | F48: 20.24 | G48: -2 | H48: 15.75 | I48: -2 | J48: 38.68 | K48: -8 | L48: 0.167 | M48: =[1]!AgePb6U8(L48) -> 995.5606982 | N48: -1 | O48: 17.9 | P48: =[1]!AgePb7U5(O48) -> 2984.375206 | Q48: -1 | R48: 0.7781620553 | S48: =[1]!AgePb76($R$48) -> 4882.282588 | U48: 4261.598135
A49: N4 | B49: 0.618 | C49: 0.33 | D49: 122.71 | E49: -60 | F49: 20.2 | G49: -3 | H49: 15.78 | I49: -3 | J49: 38.78 | K49: -9 | L49: 0.164 | M49: =[1]!AgePb6U8(L49) -> 978.9676023 | N49: -1 | O49: 17.7 | P49: =[1]!AgePb7U5(O49) -> 2973.573157 | Q49: -1 | R49: 0.7811881188 | S49: =[1]!AgePb76($R$49) -> 4887.819554 | U49: 4251.604247
A50: N5 | B50: 0.304 | C50: 0.35 | D50: 56.34 | E50: -22 | F50: 19.44 | G50: -2 | H50: 15.72 | I50: -3 | J50: 38.69 | K50: -9 | L50: 0.345 | M50: =[1]!AgePb6U8(L50) -> 1910.678569 | N50: -2 | O50: 38.4 | P50: =[1]!AgePb7U5(O50) -> 3730.279552 | Q50: -2 | R50: 0.8086419753 | S50: =[1]!AgePb76($R$50) -> 4937.034185 | U50: 4198.813251
A51: M20A | F51: 19.976 | G51: -12 | H51: 15.765 | I51: -13 | J51: 40.008 | K51: -43 | R51: 0.7891970364 | S51: =[1]!AgePb76($R$51) -> 4902.364434 | U51: 4177.051015
A52: M20B | F52: 19.429 | G52: -10 | H52: 15.71 | I52: -12 | J52: 39.407 | K52: -40 | R52: 0.8085851047 | S52: =[1]!AgePb76($R$52) -> 4936.934085 | U52: 4164.13195
A53: M20C | F53: 19.969 | G53: -10 | H53: 15.753 | I53: -12 | J53: 39.97 | K53: -40 | R53: 0.7888727528 | S53: =[1]!AgePb76($R$53) -> 4901.778566 | U53: 4161.000049
A54: M47A | F54: 19.707 | G54: -10 | H54: 15.742 | I54: -12 | J54: 39.229 | K54: -39 | R54: 0.798802456 | S54: =[1]!AgePb76($R$54) -> 4919.602856 | U54: 4029.305247
A55: M47B | F55: 19.754 | G55: -12 | H55: 15.783 | I55: -13 | J55: 39.351 | K55: -41 | R55: 0.7989774223 | S55: =[1]!AgePb76($R$55) -> 4919.914811 | U55: 4024.356321
A56: N15A | F56: 19.243 | G56: -10 | H56: 15.706 | I56: -12 | J56: 39.066 | K56: -39 | R56: 0.8161929013 | S56: =[1]!AgePb76($R$56) -> 4950.258802
A57: N15B | F57: 19.353 | G57: -10 | H57: 15.711 | I57: -12 | J57: 39.144 | K57: -39 | R57: 0.8118121222 | S57: =[1]!AgePb76($R$57) -> 4942.602278
R58: AVG | S58: =AVERAGE(S3:S57) -> 4615.922594
R59: MAX | S59: =MAX(S3:S57) -> 4982.058295
R60: MIN | S60: =MIN(S3:S57) -> 4024.356321
R61: STD DEV | S61: =STDEV(S3:S57) -> 290.9047592

Sheet Pb-206_25
M1: 207Pb/206Pb | N1: 207Pb/206Pb | Q1: Geochimica et Cosmochimica Acta 71 (2007) 5514–5527
E2: 207Pb/204Pb | G2: 206Pb/204Pb | M2: Ratio | N2: Age
A3: B00-1-3, | B3: pl | C3: 34.35 | D3: 0.219 | E3: 14.985 | F3: 0.094 | G3: 14.758 | H3: 0.091 | I3: 2.3276 | J3: 0.0031 | K3: 1.0154 | L3: 0.0015 | M3: =(E3/G3) -> 1.015381488 | N3: =[1]!AgePb76($M$3) -> 5258.812041
A4: B00-1-3, | B4: pl | C4: 34.386 | D4: 0.226 | E4: 15.002 | F4: 0.098 | G4: 14.773 | H4: 0.096 | I4: 2.3277 | J4: 0.0038 | K4: 1.0156 | L4: 0.0015 | M4: =(E4/G4) -> 1.015501252 | N4: =[1]!AgePb76($M$4) -> 5258.977626
A5: B00-1-3, | B5: pl | C5: 34.394 | D5: 0.227 | E5: 15.012 | F5: 0.097 | G5: 14.783 | H5: 0.095 | I5: 2.3266 | J5: 0.0035 | K5: 1.0155 | L5: 0.0019 | M5: 1.015490766 | N5: =[1]!AgePb76($M$5) -> 5258.963129
A6: B00-1-3, | B6: pl | C6: 34.35 | D6: 0.219 | E6: 14.985 | F6: 0.094 | G6: 14.758 | H6: 0.091 | I6: 2.3276 | J6: 0.0031 | K6: 1.0154 | L6: 0.0015 | M6: 1.015381488 | N6: =[1]!AgePb76($M$6) -> 5258.812041
A7: B00-1-3, | B7: pl | C7: 34.386 | D7: 0.226 | E7: 15.002 | F7: 0.098 | G7: 14.773 | H7: 0.096 | I7: 2.3277 | J7: 0.0038 | K7: 1.0156 | L7: 0.0015 | M7: 1.015501252 | N7: =[1]!AgePb76($M$7) -> 5258.977626
A8: B00-1-3, | B8: pl | C8: 34.394 | D8: 0.227 | E8: 15.012 | F8: 0.097 | G8: 14.783 | H8: 0.095 | I8: 2.3266 | J8: 0.0035 | K8: 1.0155 | L8: 0.0019 | M8: 1.015490766 | N8: =[1]!AgePb76($M$8) -> 5258.963129
A9: B00-1-3, | B9: pl | C9: 34.697 | D9: 0.234 | E9: 15.135 | F9: 0.1 | G9: 14.893 | H9: 0.096 | I9: 2.3297 | J9: 0.0026 | K9: 1.0162 | L9: 0.001 | M9: 1.016249245 | N9: =[1]!AgePb76($M$9) -> 5260.011326
A10: B00-1-3, | B10: pl | C10: 34.745 | D10: 0.237 | E10: 15.164 | F10: 0.108 | G10: 14.932 | H10: 0.114 | I10: 2.327 | J10: 0.0077 | K10: 1.0155 | L10: 0.0028 | M10: 1.015537102 | N10: =[1]!AgePb76($M$10) -> 5259.027186
A11: B00-1-5, | B11: pl | C11: 35.154 | D11: 0.235 | E11: 15.36 | F11: 0.099 | G11: 15.133 | H11: 0.106 | I11: 2.323 | J11: 0.0047 | K11: 1.015 | L11: 0.0027 | M11: 1.01500033 | N11: =[1]!AgePb76($M$11) -> 5258.284918
A12: B00-1-5, | B12: pl | C12: 34.357 | D12: 0.228 | E12: 14.998 | F12: 0.099 | G12: 14.752 | H12: 0.1 | I12: 2.3289 | J12: 0.0046 | K12: 1.0166 | L12: 0.0016 | M12: 1.016675705 | N12: =[1]!AgePb76($M$12) -> 5260.60032
A13: B00-1-5, | B13: pl | C13: 35.278 | D13: 0.256 | E13: 15.394 | F13: 0.111 | G13: 15.168 | H13: 0.122 | I13: 2.326 | J13: 0.0057 | K13: 1.015 | L13: 0.0031 | M13: 1.014899789 | N13: =[1]!AgePb76($M$13) -> 5258.14584
A14: B00-1-5, | B14: pl | C14: 34.495 | D14: 0.233 | E14: 15.043 | F14: 0.1 | G14: 14.814 | H14: 0.103 | I14: 2.3287 | J14: 0.0056 | K14: 1.0155 | L14: 0.0029 | M14: 1.01545835 | N14: =[1]!AgePb76($M$14) -> 5258.918312
A15: B00-1-5, | B15: pl | C15: 34.405 | D15: 0.269 | E15: 14.998 | F15: 0.119 | G15: 14.791 | H15: 0.112 | I15: 2.3261 | J15: 0.0077 | K15: 1.014 | L15: 0.0047 | M15: 1.013994997 | N15: =[1]!AgePb76($M$15) -> 5256.893588
A16: B00-1-5, | B16: pl | C16: 34.552 | D16: 0.242 | E16: 15.121 | F16: 0.106 | G16: 14.826 | H16: 0.107 | I16: 2.3306 | J16: 0.0044 | K16: 1.02 | L16: 0.0021 | M16: 1.019897477 | N16: =[1]!AgePb76($M$16) -> 5265.041568
A17: B00-1-17, | B17: pl | C17: 34.834 | D17: 0.234 | E17: 15.051 | F17: 0.095 | G17: 14.826 | H17: 0.092 | I17: 2.3495 | J17: 0.0043 | K17: 1.0152 | L17: 0.0009 | M17: 1.015176042 | N17: =[1]!AgePb76($M$17) -> 5258.527945
A18: B00-1-17, | B18: pl | C18: 34.522 | D18: 0.229 | E18: 15.041 | F18: 0.098 | G18: 14.789 | H18: 0.095 | I18: 2.3343 | J18: 0.0029 | K18: 1.0171 | L18: 0.0011 | M18: 1.017039692 | N18: =[1]!AgePb76($M$18) -> 5261.102824
A19: B00-1-17, | B19: pl | C19: 34.561 | D19: 0.226 | E19: 15.047 | F19: 0.095 | G19: 14.792 | H19: 0.093 | I19: 2.3365 | J19: 0.0028 | K19: 1.0173 | L19: 0.0008 | M19: 1.017239048 | N19: =[1]!AgePb76($M$19) -> 5261.377966
A20: B00-1-17, | B20: pl | C20: 34.563 | D20: 0.226 | E20: 15.053 | F20: 0.096 | G20: 14.817 | H20: 0.094 | I20: 2.3327 | J20: 0.0027 | K20: 1.0159 | L20: 0.0011 | M20: 1.015927651 | N20: =[1]!AgePb76($M$20) -> 5259.566992
A21: B00-1-17, | B21: pl | C21: 34.658 | D21: 0.221 | E21: 15.106 | F21: 0.094 | G21: 14.849 | H21: 0.092 | I21: 2.334 | J21: 0.0027 | K21: 1.0173 | L21: 0.0009 | M21: 1.017307563 | N21: =[1]!AgePb76($M$21) -> 5261.472514
A22: B00-1-4, | B22: pl | C22: 34.038 | D22: 0.249 | E22: 14.832 | F22: 0.113 | G22: 14.663 | H22: 0.104 | I22: 2.3215 | J22: 0.0036 | K22: 1.0116 | L22: 0.0023 | M22: 1.011525609 | N22: =[1]!AgePb76($M$22) -> 5253.469883
A23: B00-1-4, | B23: pl | C23: 34.634 | D23: 0.238 | E23: 15.025 | F23: 0.1 | G23: 14.833 | H23: 0.093 | I23: 2.3349 | J23: 0.0072 | K23: 1.0129 | L23: 0.0014 | M23: 1.012944111 | N23: =[1]!AgePb76($M$23) -> 5255.437656
A24: B00-1-4, | B24: pl | C24: 34.43 | D24: 0.232 | E24: 14.994 | F24: 0.099 | G24: 14.772 | H24: 0.097 | I24: 2.3307 | J24: 0.0028 | K24: 1.015 | L24: 0.0009 | M24: 1.015028432 | N24: =[1]!AgePb76($M$24) -> 5258.323789
A25: B00-1-6, | B25: pl | C25: 34.644 | D25: 0.272 | E25: 15.095 | F25: 0.121 | G25: 14.873 | H25: 0.108 | I25: 2.3293 | J25: 0.0051 | K25: 1.0149 | L25: 0.0023 | M25: 1.014926377 | N25: =[1]!AgePb76($M$25) -> 5258.18262
A26: B00-1-6, | B26: pl | C26: 34.569 | D26: 0.225 | E26: 15.084 | F26: 0.12 | G26: 14.85 | H26: 0.112 | I26: 2.328 | J26: 0.0089 | K26: 1.0158 | L26: 0.0052 | M26: 1.015757576 | N26: =[1]!AgePb76($M$26) -> 5259.331947
A27: B00-1-6, | B27: pl | C27: 34.354 | D27: 0.28 | E27: 14.998 | F27: 0.136 | G27: 14.788 | H27: 0.117 | I27: 2.3233 | J27: 0.0067 | K27: 1.0142 | L27: 0.0028 | M27: 1.014200703 | N27: =[1]!AgePb76($M$27) -> 5257.178393
A28: B00-1-6, | B28: pl | C28: 34.451 | D28: 0.238 | E28: 15.05 | F28: 0.1 | G28: 14.805 | H28: 0.101 | I28: 2.3271 | J28: 0.0042 | K28: 1.0166 | L28: 0.0022 | M28: 1.016548463 | N28: =[1]!AgePb76($M$28) -> 5260.424611
A29: 12.56, | B29: pl | C29: 34.676 | D29: 0.221 | E29: 15.192 | F29: 0.097 | G29: 15.025 | H29: 0.096 | I29: 2.3078 | J29: 0.0146 | K29: 1.0111 | L29: 0.0064 | M29: 1.011114809 | N29: =[1]!AgePb76($M$29) -> 5252.899468
A30: 12.56, | B30: pl | C30: 34.653 | D30: 0.221 | E30: 15.185 | F30: 0.097 | G30: 15.017 | H30: 0.096 | I30: 2.3076 | J30: 0.0146 | K30: 1.0112 | L30: 0.0064 | M30: 1.011187321 | N30: =[1]!AgePb76($M$30) -> 5253.000173
A31: 12.56, | B31: s | C31: 34.541 | D31: 0.229 | E31: 15.125 | F31: 0.1 | G31: 14.957 | H31: 0.099 | I31: 2.3094 | J31: 0.0146 | K31: 1.0112 | L31: 0.0064 | M31: 1.011232199 | N31: =[1]!AgePb76($M$31) -> 5253.062495
A32: 25.00, | B32: pl | C32: 38.058 | D32: 0.283 | E32: 15.702 | F32: 0.116 | G32: 17.872 | H32: 0.132 | I32: 2.1291 | J32: 0.0135 | K32: 0.8784 | L32: 0.0056 | M32: 0.8785810206 | N32: =[1]!AgePb76($M$32) -> 5054.790103
A33: 25.00, | B33: pl | C33: 37.759 | D33: 0.272 | E33: 15.616 | F33: 0.113 | G33: 17.727 | H33: 0.125 | I33: 2.1296 | J33: 0.0135 | K33: 0.8805 | L33: 0.0056 | M33: 0.8809161167 | N33: =[1]!AgePb76($M$33) -> 5058.548067
A34: 25.00, | B34: pl | C34: 37.451 | D34: 0.299 | E34: 15.591 | F34: 0.117 | G34: 17.395 | H34: 0.157 | I34: 2.1531 | J34: 0.0144 | K34: 0.8972 | L34: 0.0067 | M34: 0.8962920379 | N34: =[1]!AgePb76($M$34) -> 5083.032306
A35: B90-7, | B35: s | C35: 35.752 | D35: 0.23 | E35: 15.276 | F35: 0.098 | G35: 15.406 | H35: 0.1 | I35: 2.3208 | J35: 0.0147 | K35: 0.9918 | L35: 0.0063 | M35: 0.9915617292 | N35: =[1]!AgePb76($M$35) -> 5225.462082
A36: B90-7, | B36: s | C36: 35.673 | D36: 0.237 | E36: 15.281 | F36: 0.099 | G36: 15.385 | H36: 0.102 | I36: 2.3189 | J36: 0.0147 | K36: 0.9931 | L36: 0.0063 | M36: 0.993240169 | N36: =[1]!AgePb76($M$36) -> 5227.839657
A37: B90-7, | B37: pl | C37: 34.923 | D37: 0.222 | E37: 15.274 | F37: 0.097 | G37: 15.071 | H37: 0.096 | I37: 2.3173 | J37: 0.0147 | K37: 1.0136 | L37: 0.0064 | M37: 1.013469577 | N37: =[1]!AgePb76($M$37) -> 5256.165853
A38: B90-7, | B38: pl | C38: 34.938 | D38: 0.223 | E38: 15.281 | F38: 0.097 | G38: 15.076 | H38: 0.096 | I38: 2.3178 | J38: 0.0147 | K38: 1.0136 | L38: 0.0064 | M38: 1.013597771 | N38: =[1]!AgePb76($M$38) -> 5256.343446
A39: B90-7, | B39: pn | C39: 35.791 | D39: 0.254 | E39: 15.341 | F39: 0.11 | G39: 15.406 | H39: 0.111 | I39: 2.3229 | J39: 0.0147 | K39: 0.9959 | L39: 0.0063 | M39: 0.9957808646 | N39: =[1]!AgePb76($M$39) -> 5231.430582
A40: B90-7, | B40: pn | C40: 35.491 | D40: 0.314 | E40: 15.239 | F40: 0.132 | G40: 15.302 | H40: 0.133 | I40: 2.3195 | J40: 0.0149 | K40: 0.9954 | L40: 0.0064 | M40: 0.9958828911 | N40: =[1]!AgePb76($M$40) -> 5231.57458
A41: B90-7, | B41: ccp | C41: 35.809 | D41: 0.259 | E41: 15.29 | F41: 0.11 | G41: 15.418 | H41: 0.111 | I41: 2.3223 | J41: 0.0147 | K41: 0.9925 | L41: 0.0063 | M41: 0.9916980153 | N41: =[1]!AgePb76($M$41) -> 5225.655295
A42: B90-7, | B42: po | C42: 35.378 | D42: 0.228 | E42: 15.29 | F42: 0.097 | G42: 15.287 | H42: 0.098 | I42: 2.3142 | J42: 0.0147 | K42: 1.0002 | L42: 0.0064 | M42: 1.000196245 | N42: =[1]!AgePb76($M$42) -> 5237.648135
A43: B90-7, | B43: po | C43: 35.537 | D43: 0.252 | E43: 15.316 | F43: 0.107 | G43: 15.323 | H43: 0.109 | I43: 2.3189 | J43: 0.0147 | K43: 0.9972 | L43: 0.0064 | M43: 0.9995431704 | N43: =[1]!AgePb76($M$43) -> 5236.730333
A44: 29.20, | B44: pl | C44: 34.599 | D44: 0.376 | E44: 15.085 | F44: 0.164 | G44: 14.967 | H44: 0.162 | I44: 2.3143 | J44: 0.015 | K44: 1.0099 | L44: 0.0067 | M44: 1.007884011 | N44: =[1]!AgePb76($M$44) -> 5248.404809
A45: 29.20, | B45: pl | C45: 34.179 | D45: 0.33 | E45: 14.892 | F45: 0.145 | G45: 14.784 | H45: 0.147 | I45: 2.3142 | J45: 0.0149 | K45: 1.009 | L45: 0.0066 | M45: 1.007305195 | N45: =[1]!AgePb76($M$45) -> 5247.597956
A46: 29.20, | B46: pl | C46: 34.823 | D46: 0.258 | E46: 15.183 | F46: 0.11 | G46: 15.081 | H46: 0.116 | I46: 2.3107 | J46: 0.0149 | K46: 1.0083 | L46: 0.0067 | M46: 1.006763477 | N46: =[1]!AgePb76($M$46) -> 5246.842373
A47: 29.20, | B47: pl | C47: 34.352 | D47: 0.364 | E47: 14.976 | F47: 0.156 | G47: 14.842 | H47: 0.157 | I47: 2.313 | J47: 0.0148 | K47: 1.0085 | L47: 0.0065 | M47: 1.009028433 | N47: =[1]!AgePb76($M$47) -> 5249.998658
A48: 29.20, | B48: s | C48: 36.769 | D48: 0.388 | E48: 14.899 | F48: 0.158 | G48: 15.687 | H48: 0.165 | I48: 2.346 | J48: 0.0153 | K48: 0.9504 | L48: 0.0062 | M48: 0.9497673233 | N48: =[1]!AgePb76($M$48) -> 5164.8454
A49: 29.20, | B49: s | C49: 37.82 | D49: 0.246 | E49: 15.367 | F49: 0.1 | G49: 15.87 | H49: 0.109 | I49: 2.3788 | J49: 0.0157 | K49: 0.9665 | L49: 0.0063 | M49: 0.9683049779 | N49: =[1]!AgePb76($M$49) -> 5192.072903
A50: B00-1-3, | B50: pl | C50: 35.45 | D50: 0.273 | E50: 15.448 | F50: 0.119 | G50: 15.215 | H50: 0.116 | I50: 2.3301 | J50: 0.0148 | K50: 1.0155 | L50: 0.0065 | M50: 1.015313835 | N50: =[1]!AgePb76($M$50) -> 5258.718495
A51: B00-1-3, | B51: pl | C51: 34.922 | D51: 0.271 | E51: 15.233 | F51: 0.117 | G51: 14.992 | H51: 0.118 | I51: 2.3295 | J51: 0.0148 | K51: 1.0159 | L51: 0.0064 | M51: 1.01607524 | N51: =[1]!AgePb76($M$51) -> 5259.770929
A52: B00-1-3, | B52: s | C52: 38.094 | D52: 0.259 | E52: 15.291 | F52: 0.098 | G52: 15.851 | H52: 0.106 | I52: 2.4031 | J52: 0.0152 | K52: 0.965 | L52: 0.0063 | M52: 0.9646709987 | N52: =[1]!AgePb76($M$52) -> 5186.779143
A53: B00-1-3, | B53: s | C53: 37.689 | D53: 0.254 | E53: 15.288 | F53: 0.097 | G53: 15.84 | H53: 0.103 | I53: 2.3789 | J53: 0.0151 | K53: 0.9656 | L53: 0.0062 | M53: 0.9651515152 | N53: =[1]!AgePb76($M$53) -> 5187.48034
A54: B00-1-6, | B54: pl | C54: 35.011 | D54: 0.245 | E54: 15.273 | F54: 0.108 | G54: 15.021 | H54: 0.107 | I54: 2.3309 | J54: 0.0148 | K54: 1.0168 | L54: 0.0064 | M54: 1.016776513 | N54: =[1]!AgePb76($M$54) -> 5260.73951
A55: B00-1-6, | B55: pl | C55: 34.822 | D55: 0.241 | E55: 15.194 | F55: 0.105 | G55: 14.936 | H55: 0.103 | I55: 2.3313 | J55: 0.0148 | K55: 1.0171 | L55: 0.0064 | M55: 1.017273701 | N55: =[1]!AgePb76($M$55) -> 5261.425787
A56: B00-1-6, | B56: pl | C56: 34.937 | D56: 0.246 | E56: 15.216 | F56: 0.109 | G56: 14.959 | H56: 0.103 | I56: 2.3335 | J56: 0.0148 | K56: 1.0173 | L56: 0.0064 | M56: 1.017180293 | N56: =[1]!AgePb76($M$56) -> 5261.296881
A57: B00-1-6, | B57: pl | C57: 34.907 | D57: 0.237 | E57: 15.219 | F57: 0.103 | G57: 14.964 | H57: 0.101 | I57: 2.3328 | J57: 0.0148 | K57: 1.0172 | L57: 0.0064 | M57: 1.017040898 | N57: =[1]!AgePb76($M$57) -> 5261.10449
A58: B00-1-5, | B58: pl | C58: 34.952 | D58: 0.394 | E58: 15.239 | F58: 0.171 | G58: 14.987 | H58: 0.165 | I58: 2.3316 | J58: 0.0148 | K58: 1.0165 | L58: 0.0065 | M58: 1.016814573 | N58: =[1]!AgePb76($M$58) -> 5260.792057
A59: B00-1-5, | B59: pl | C59: 34.525 | D59: 0.387 | E59: 15.054 | F59: 0.168 | G59: 14.802 | H59: 0.163 | I59: 2.3316 | J59: 0.0149 | K59: 1.0166 | L59: 0.0065 | M59: 1.017024726 | N59: =[1]!AgePb76($M$59) -> 5261.082168
A60: B00-1-5, | B60: pl | C60: 34.605 | D60: 0.341 | E60: 15.084 | F60: 0.149 | G60: 14.837 | H60: 0.144 | I60: 2.3327 | J60: 0.0148 | K60: 1.017 | L60: 0.0065 | M60: 1.01664757 | N60: =[1]!AgePb76($M$60) -> 5260.561471
A61: B00-1-5, | B61: s | C61: 38.618 | D61: 0.432 | E61: 15.225 | F61: 0.127 | G61: 15.156 | H61: 0.133 | I61: 2.5548 | J61: 0.0202 | K61: 1.0027 | L61: 0.0066 | M61: 1.004552652 | N61: =[1]!AgePb76($M$61) -> 5243.754276
A62: B00-1-17, | B62: pl | C62: 34.435 | D62: 0.262 | E62: 15.005 | F62: 0.114 | G62: 14.76 | H62: 0.112 | I62: 2.3328 | J62: 0.0148 | K62: 1.0167 | L62: 0.0064 | M62: 1.016598916 | N62: =[1]!AgePb76($M$62) -> 5260.494284
A63: B00-1-17, | B63: pl | C63: 34.675 | D63: 0.301 | E63: 15.105 | F63: 0.129 | G63: 14.858 | H63: 0.129 | I63: 2.3338 | J63: 0.0148 | K63: 1.017 | L63: 0.0065 | M63: 1.016624041 | N63: =[1]!AgePb76($M$63) -> 5260.52898
A64: B00-1-17, | B64: pl | C64: 34.571 | D64: 0.278 | E64: 15.021 | F64: 0.12 | G64: 14.783 | H64: 0.119 | I64: 2.3392 | J64: 0.0148 | K64: 1.0163 | L64: 0.0065 | M64: 1.016099574 | N64: =[1]!AgePb76($M$64) -> 5259.80455
A65: B00-1-17, | B65: pl | C65: 34.454 | D65: 0.311 | E65: 14.943 | F65: 0.128 | G65: 14.761 | H65: 0.142 | I65: 2.3348 | J65: 0.015 | K65: 1.0129 | L65: 0.007 | M65: 1.012329788 | N65: =[1]!AgePb76($M$65) -> 5254.585813
A66: B00-1-17, | B66: pl | C66: 34.782 | D66: 0.278 | E66: 15.118 | F66: 0.122 | G66: 14.877 | H66: 0.119 | I66: 2.3384 | J66: 0.0148 | K66: 1.0164 | L66: 0.0064 | M66: 1.016199503 | N66: =[1]!AgePb76($M$66) -> 5259.942609
A67: B00-1-17, | B67: pl | C67: 34.53 | D67: 0.324 | E67: 15.003 | F67: 0.139 | G67: 14.759 | H67: 0.137 | I67: 2.3394 | J67: 0.0149 | K67: 1.0167 | L67: 0.0064 | M67: =(E67/G67) -> 1.016532285 | N67: =[1]!AgePb76($M$67) -> 5260.402269
A68: B00-1-17, | B68: pl | C68: 34.859 | D68: 0.287 | E68: 15.121 | F68: 0.123 | G68: 14.873 | H68: 0.124 | I68: 2.3439 | J68: 0.0149 | K68: 1.0166 | L68: 0.0065 | M68: 1.016674511 | N68: =[1]!AgePb76($M$68) -> 5260.598671
A69: B00-1-4, | B69: pl | C69: 33.989 | D69: 0.331 | E69: 14.8 | F69: 0.144 | G69: 14.552 | H69: 0.141 | I69: 2.3361 | J69: 0.0149 | K69: 1.017 | L69: 0.0065 | M69: 1.017042331 | N69: =[1]!AgePb76($M$69) -> 5261.106467
A70: B00-1-4, | B70: pl | C70: 34.207 | D70: 0.316 | E70: 14.893 | F70: 0.139 | G70: 14.656 | H70: 0.137 | I70: 2.3345 | J70: 0.0149 | K70: 1.0167 | L70: 0.0065 | M70: 1.016170852 | N70: =[1]!AgePb76($M$70) -> 5259.903027
A71: B00-1-7, | B71: pl | C71: 35.138 | D71: 0.359 | E71: 15.304 | F71: 0.155 | G71: 15.071 | H71: 0.154 | I71: 2.3316 | J71: 0.0148 | K71: 1.0152 | L71: 0.0065 | M71: 1.015460155 | N71: =[1]!AgePb76($M$71) -> 5258.920808
A72: B00-1-7, | B72: pl | C72: 35.014 | D72: 0.312 | E72: 15.238 | F72: 0.137 | G72: 14.996 | H72: 0.135 | I72: 2.3353 | J72: 0.0148 | K72: 1.0162 | L72: 0.0065 | M72: 1.016137637 | N72: =[1]!AgePb76($M$72) -> 5259.857139
A73: B00-1-7, | B73: pl | C73: 35.344 | D73: 0.331 | E73: 15.38 | F73: 0.142 | G73: 15.139 | H73: 0.142 | I73: 2.3351 | J73: 0.0148 | K73: 1.0157 | L73: 0.0065 | M73: 1.015919149 | N73: =[1]!AgePb76($M$73) -> 5259.555244
A74: B00-1-7, | B74: pl | C74: 35.558 | D74: 0.287 | E74: 15.48 | F74: 0.125 | G74: 15.218 | H74: 0.124 | I74: 2.3363 | J74: 0.0148 | K74: 1.0172 | L74: 0.0065 | M74: 1.017216454 | N74: =[1]!AgePb76($M$74) -> 5261.346786
A75: B00-2-5, | B75: pl | C75: 34.695 | D75: 0.237 | E75: 15.129 | F75: 0.102 | G75: 14.879 | H75: 0.102 | I75: 2.332 | J75: 0.0148 | K75: 1.0174 | L75: 0.0064 | M75: 1.016802204 | N75: =[1]!AgePb76($M$75) -> 5260.774981
A76: B00-2-5, | B76: pl | C76: 34.718 | D76: 0.23 | E76: 15.139 | F76: 0.101 | G76: 14.873 | H76: 0.098 | I76: 2.3342 | J76: 0.0148 | K76: 1.0181 | L76: 0.0064 | M76: 1.017884758 | N76: =[1]!AgePb76($M$76) -> 5262.268753
A77: B00-2-5, | B77: s | C77: 34.91 | D77: 0.273 | E77: 15.18 | F77: 0.121 | G77: 14.979 | H77: 0.117 | I77: 2.3303 | J77: 0.0148 | K77: 1.0138 | L77: 0.0064 | M77: 1.013418786 | N77: =[1]!AgePb76($M$77) -> 5256.095484
A78: B00-2-5, | B78: s | C78: 35.002 | D78: 0.279 | E78: 15.164 | F78: 0.122 | G78: 15.046 | H78: 0.119 | I78: 2.3263 | J78: 0.0147 | K78: 1.0077 | L78: 0.0064 | M78: 1.007842616 | N78: =[1]!AgePb76($M$78) -> 5248.347121
A79: B00-2-5, | B79: s | C79: 35.052 | D79: 0.231 | E79: 15.219 | F79: 0.1 | G79: 15.067 | H79: 0.099 | I79: 2.3264 | J79: 0.0147 | K79: 1.0097 | L79: 0.0064 | M79: 1.010088272 | N79: =[1]!AgePb76($M$79) -> 5251.473006
A80: B00-2-5, | B80: s | C80: 35.024 | D80: 0.225 | E80: 15.197 | F80: 0.097 | G80: 15.101 | H80: 0.098 | I80: 2.3184 | J80: 0.0147 | K80: 1.0059 | L80: 0.0064 | M80: 1.006357195 | N80: =[1]!AgePb76($M$80) -> 5246.275413
A81: B00-2-5, | B81: s | C81: 34.991 | D81: 0.341 | E81: 15.152 | F81: 0.146 | G81: 15.058 | H81: 0.145 | I81: 2.3237 | J81: 0.0148 | K81: 1.0061 | L81: 0.0064 | M81: 1.006242529 | N81: =[1]!AgePb76($M$81) -> 5246.115354
A82: B00-2-5, | B82: s | C82: 35.085 | D82: 0.224 | E82: 15.23 | F82: 0.097 | G82: 15.105 | H82: 0.096 | I82: 2.3229 | J82: 0.0147 | K82: 1.0084 | L82: 0.0064 | M82: 1.008275405 | N82: =[1]!AgePb76($M$82) -> 5248.950123
A83: B00-2-5, | B83: s | C83: 35.107 | D83: 0.223 | E83: 15.22 | F83: 0.097 | G83: 15.128 | H83: 0.096 | I83: 2.3207 | J83: 0.0147 | K83: 1.0061 | L83: 0.0064 | M83: 1.006081438 | N83: =[1]!AgePb76($M$83) -> 5245.890461
A84: B00A-6-8-1, | B84: pl | C84: 34.938 | D84: 0.234 | E84: 15.222 | F84: 0.102 | G84: 14.927 | H84: 0.1 | I84: 2.3406 | J84: 0.0148 | K84: 1.0199 | L84: 0.0065 | M84: 1.019762846 | N84: =[1]!AgePb76($M$84) -> 5264.856274
A85: B00A-6-8-1, | B85: pl | C85: 34.83 | D85: 0.226 | E85: 15.172 | F85: 0.098 | G85: 14.884 | H85: 0.096 | I85: 2.3402 | J85: 0.0148 | K85: 1.0196 | L85: 0.0065 | M85: 1.019349637 | N85: =[1]!AgePb76($M$85) -> 5264.287411
A86: B00A-6-8-1, | B86: pl | C86: 34.794 | D86: 0.227 | E86: 15.162 | F86: 0.099 | G86: 14.879 | H86: 0.097 | I86: 2.3383 | J86: 0.0148 | K86: 1.0193 | L86: 0.0065 | M86: 1.019020095 | N86: =[1]!AgePb76($M$86) -> 5263.833558
A87: B00A-6-8-1, | B87: pl | C87: 34.854 | D87: 0.23 | E87: 15.19 | F87: 0.1 | G87: 14.9 | H87: 0.098 | I87: 2.3393 | J87: 0.0148 | K87: 1.0193 | L87: 0.0065 | M87: 1.019463087 | N87: =[1]!AgePb76($M$87) -> 5264.443621
A88: B00A-6-8-1, | B88: pl | C88: 34.863 | D88: 0.226 | E88: 15.19 | F88: 0.098 | G88: 14.905 | H88: 0.096 | I88: 2.3396 | J88: 0.0148 | K88: 1.0198 | L88: 0.0065 | M88: 1.0191211 | N88: =[1]!AgePb76($M$88) -> 5263.972681
A89: B00A-6-8-1, | B89: s | C89: 34.975 | D89: 0.229 | E89: 15.152 | F89: 0.105 | G89: 14.983 | H89: 0.098 | I89: 2.3335 | J89: 0.0149 | K89: 1.0099 | L89: 0.0072 | M89: 1.01127945 | N89: =[1]!AgePb76($M$89) -> 5253.12811
A90: B00A-6-8-1, | B90: s | C90: 35.054 | D90: 0.274 | E90: 15.126 | F90: 0.124 | G90: 15.051 | H90: 0.118 | I90: 2.3289 | J90: 0.0149 | K90: 1.0049 | L90: 0.0066 | M90: 1.004983058 | N90: =[1]!AgePb76($M$90) -> 5244.356032
A91: B00A-6-8-1, | B91: s | C91: 34.829 | D91: 0.355 | E91: 14.973 | F91: 0.163 | G91: 14.975 | H91: 0.137 | I91: 2.3203 | J91: 0.015 | K91: 0.9964 | L91: 0.0066 | M91: 0.9998664441 | N91: =[1]!AgePb76($M$91) -> 5237.184726
A92: B00A-6-8-1, | B92: s | C92: 35.212 | D92: 0.333 | E92: 15.072 | F92: 0.142 | G92: 15.184 | H92: 0.145 | I92: 2.3186 | J92: 0.0147 | K92: 0.9924 | L92: 0.0063 | M92: 0.9926238145 | N92: =[1]!AgePb76($M$92) -> 5226.967061
A93: B00-3-2, | B93: s | C93: 36.166 | D93: 0.244 | E93: 15.387 | F93: 0.103 | G93: 15.742 | H93: 0.107 | I93: 2.2984 | J93: 0.0146 | K93: 0.9775 | L93: 0.0064 | M93: 0.9774488629 | N93: =[1]!AgePb76($M$93) -> 5205.300723
A94: B00-3-2, | B94: s | C94: 36.362 | D94: 0.245 | E94: 15.388 | F94: 0.104 | G94: 15.879 | H94: 0.107 | I94: 2.2899 | J94: 0.0145 | K94: 0.9692 | L94: 0.0061 | M94: 0.9690786573 | N94: =[1]!AgePb76($M$94) -> 5193.197237
A95: B00-3-2, | B95: pl | C95: 35.073 | D95: 0.243 | E95: 15.297 | F95: 0.106 | G95: 15.011 | H95: 0.104 | I95: 2.3365 | J95: 0.0148 | K95: 1.019 | L95: 0.0065 | M95: 1.019052695 | N95: =[1]!AgePb76($M$95) -> 5263.878461
A96: B00-1-8, | B96: s | C96: 37.717 | D96: 0.302 | E96: 15.456 | F96: 0.114 | G96: 17.086 | H96: 0.159 | I96: 2.2075 | J96: 0.0154 | K96: 0.9046 | L96: 0.0073 | M96: 0.9046002575 | N96: =[1]!AgePb76($M$96) -> 5096.077425
A97: B04-4, | B97: s | C97: 37.971 | D97: 0.246 | E97: 15.238 | F97: 0.097 | G97: 15.366 | H97: 0.098 | I97: 2.469 | J97: 0.0159 | K97: 0.9918 | L97: 0.0063 | M97: 0.9916699206 | N97: =[1]!AgePb76($M$97) -> 5225.615468
A98: B04-4, | B98: pl | C98: 34.655 | D98: 0.282 | E98: 15.105 | F98: 0.121 | G98: 14.837 | H98: 0.119 | I98: 2.3349 | J98: 0.0148 | K98: 1.0179 | L98: 0.0064 | M98: 1.018062951 | N98: =[1]!AgePb76($M$98) -> 5262.514473
A99: OV69 | B99: 401.11, | C99: 34.802 | D99: 0.27 | E99: 15.213 | F99: 0.117 | G99: 14.986 | H99: 0.116 | I99: 2.3224 | J99: 0.0147 | K99: 1.0151 | L99: 0.0064 | M99: 1.015147471 | N99: =[1]!AgePb76($M$99) -> 5258.488431
A100: OV69 | B100: 401.11, | C100: 34.904 | D100: 0.247 | E100: 15.258 | F100: 0.108 | G100: 15.022 | H100: 0.106 | I100: 2.3234 | J100: 0.0147 | K100: 1.0157 | L100: 0.0064 | M100: 1.015710292 | N100: =[1]!AgePb76($M$100) -> 5259.266592
A101: OV69 | B101: 401.11, | C101: 34.79 | D101: 0.238 | E101: 15.205 | F101: 0.104 | G101: 14.972 | H101: 0.102 | I101: 2.3236 | J101: 0.0147 | K101: 1.0156 | L101: 0.0064 | M101: 1.015562383 | N101: =[1]!AgePb76($M$101) -> 5259.062136
A102: OV69 | B102: 401.11, | C102: 34.813 | D102: 0.288 | E102: 15.218 | F102: 0.127 | G102: 14.99 | H102: 0.124 | I102: 2.3224 | J102: 0.0147 | K102: 1.0153 | L102: 0.0064 | M102: 1.01521014 | N102: =[1]!AgePb76($M$102) -> 5258.575101
A103: OV69 | B103: 401.11, | C103: 35.204 | D103: 0.236 | E103: 15.278 | F103: 0.104 | G103: 15.308 | H103: 0.103 | I103: 2.2998 | J103: 0.0146 | K103: 0.9973 | L103: 0.0063 | M103: 0.9980402404 | N103: =[1]!AgePb76($M$103) -> 5234.615772
A104: OV69 | B104: 401.11, | C104: 35.242 | D104: 0.264 | E104: 15.294 | F104: 0.109 | G104: 15.35 | H104: 0.111 | I104: 2.2988 | J104: 0.0145 | K104: 0.9968 | L104: 0.0063 | M104: 0.9963517915 | N104: =[1]!AgePb76($M$104) -> 5232.236176
A105: OV69 | B105: 401.11, | C105: 35.609 | D105: 0.297 | E105: 15.429 | F105: 0.129 | G105: 15.488 | H105: 0.129 | I105: 2.2991 | J105: 0.0146 | K105: 0.9961 | L105: 0.0063 | M105: 0.9961905992 | N105: =[1]!AgePb76($M$105) -> 5232.008778
A106: OV69 | B106: 401.11, | C106: 35.35 | D106: 0.244 | E106: 15.313 | F106: 0.106 | G106: 15.393 | H106: 0.106 | I106: 2.2964 | J106: 0.0145 | K106: 0.995 | L106: 0.0063 | M106: 0.9948028325 | N106: =[1]!AgePb76($M$106) -> 5230.049415
A107: B00A-6-8-4, | B107: s | C107: 36.485 | D107: 0.374 | E107: 15.454 | F107: 0.167 | G107: 15.868 | H107: 0.164 | I107: 2.2986 | J107: 0.0148 | K107: 0.974 | L107: 0.0066 | M107: 0.9739097555 | N107: =[1]!AgePb76($M$107) -> 5200.196532
A108: B04-2B, | B108: pl | C108: 35.177 | D108: 0.356 | E108: 15.34 | F108: 0.158 | G108: 15.071 | H108: 0.157 | I108: 2.3349 | J108: 0.0149 | K108: 1.0177 | L108: 0.0065 | M108: 1.017848849 | N108: =[1]!AgePb76($M$108) -> 5262.219231
A109: B00-4-1, | B109: pl | C109: 34.576 | D109: 0.287 | E109: 15.151 | F109: 0.121 | G109: 14.947 | H109: 0.124 | I109: 2.313 | J109: 0.0147 | K109: 1.012 | L109: 0.0064 | M109: 1.013648224 | N109: =[1]!AgePb76($M$109) -> 5256.413333
A110: B00-4-1, | B110: pl | C110: 34.661 | D110: 0.285 | E110: 15.177 | F110: 0.126 | G110: 14.989 | H110: 0.123 | I110: 2.3124 | J110: 0.0146 | K110: 1.0126 | L110: 0.0064 | M110: 1.012542531 | N110: =[1]!AgePb76($M$110) -> 5254.880872
A111: B00-4-1, | B111: pl | C111: 34.975 | D111: 0.268 | E111: 15.298 | F111: 0.117 | G111: 15.126 | H111: 0.115 | I111: 2.3124 | J111: 0.0146 | K111: 1.0116 | L111: 0.0064 | M111: 1.011371149 | N111: =[1]!AgePb76($M$111) -> 5253.255437
A112: B00-4-1, | B112: pl | C112: 34.858 | D112: 0.262 | E112: 15.248 | F112: 0.115 | G112: 15.069 | H112: 0.113 | I112: 2.3135 | J112: 0.0147 | K112: 1.0121 | L112: 0.0064 | M112: 1.011878691 | N112: =[1]!AgePb76($M$112) -> 5253.959958
A113: PK231 | B113: pl | C113: 34.779 | D113: 0.314 | E113: 15.217 | F113: 0.137 | G113: 15.09 | H113: 0.136 | I113: 2.3048 | J113: 0.0146 | K113: 1.0086 | L113: 0.0064 | M113: 1.00841617 | N113: =[1]!AgePb76($M$113) -> 5249.14619
A114: PK231 | B114: pl | C114: 34.97 | D114: 0.306 | E114: 15.327 | F114: 0.141 | G114: 15.183 | H114: 0.142 | I114: 2.3038 | J114: 0.0147 | K114: 1.0081 | L114: 0.0064 | M114: 1.009484292 | N114: =[1]!AgePb76($M$114) -> 5250.633006
A115: PK231 | B115: pl | C115: 34.945 | D115: 0.352 | E115: 15.292 | F115: 0.156 | G115: 15.159 | H115: 0.155 | I115: 2.3054 | J115: 0.0146 | K115: 1.0088 | L115: 0.0064 | M115: 1.008773666 | N115: =[1]!AgePb76($M$115) -> 5249.644006
M116: AVG | N116: =AVERAGE(N3:N115) -> 5243.360864
M117: MAX | N117: =MAX(N3:N115) -> 5265.041568
M118: MIN | N118: =MIN(N3:N115) -> 5054.790103
M119: STD DEV | N119: =STDEV(N3:N115) -> 37.77781223
